Workbook

Sheet Main
B10: 2020-08-12
B12: Sheet No. | C12: Template Name | D12: Summary
B13: 1 | C13: Future Intra | D13: For Intraday trading in F&O segment
B14: 2 | C14: Cash Intra | D14: For Intraday trading in cash market segment
B15: 3 | C15: Mid-cap Intra | D15: For Intraday trading in Mid-cap stocks
B16: 4 | C16: Bulk Deals | D16: Reveals Bulk Deals carried on NSE & BSE
B17: 5 | C17: Call Tracker
K27: `

Sheet Future Intra
M5: Back to Main Page
A6: FOR INTRA DAY TRADING | L6: =Main!B10 -> 2020-08-12
A9: Sr.no | B9: Sector | C9: Scrip | D9: CLOSE RATE | E9: Pivot Point | F9: Supports | I9: Resistances
B10: Sector | D10: Point | E10: Point | F10: S1 | G10: S2 | H10: S3 | I10: R1 | J10: R2 | K10: R3 | L10: HIGH | M10: LOW | N10: OI | O10: % Change in OI
A11: 1 | B11: Index | C11: BANKNIFTY | D11: 22296.35 | E11: 22180.45 | F11: 22015.90 | G11: 21735.45 | H11: 21570.90 | I11: 22460.90 | J11: 22625.45 | K11: 22905.90 | L11: 22345 | M11: 21900 | N11: 1580950 | O11: 14.11%
A12: 2 | B12: Index | C12: NIFTY | D12: 11344.35 | E12: 11341.17 | F12: 11305.58 | G12: 11266.82 | H12: 11231.23 | I12: 11379.93 | J12: 11415.52 | K12: 11454.28 | L12: 11376.75 | M12: 11302.4 | N12: 11367075 | O12: -0.12%
A13: 3 | B13: Cement | C13: ACC | D13: 1415.60 | E13: 1420.85 | F13: 1399.75 | G13: 1383.90 | H13: 1362.80 | I13: 1436.70 | J13: 1457.80 | K13: 1473.65 | L13: 1441.95 | M13: 1405 | N13: 2473000 | O13: -2.94%
A14: 4 | B14: Others | C14: ADANIENT | D14: 196.90 | E14: 197.42 | F14: 194.53 | G14: 192.17 | H14: 189.28 | I14: 199.78 | J14: 202.67 | K14: 205.03 | L14: 200.3 | M14: 195.05 | N14: 18496000 | O14: -0.99%
A15: 5 | B15: Others | C15: ADANIPORTS | D15: 336.80 | E15: 335.27 | F15: 332.43 | G15: 328.07 | H15: 325.23 | I15: 339.63 | J15: 342.47 | K15: 346.83 | L15: 338.1 | M15: 330.9 | N15: 32215000 | O15: 1.07%
A16: 6 | B16: Automobile | C16: AMARAJABAT | D16: 744.05 | E16: 746.85 | F16: 737.00 | G16: 729.95 | H16: 720.10 | I16: 753.90 | J16: 763.75 | K16: 770.80 | L16: 756.7 | M16: 739.8 | N16: 1420000 | O16: -6.52%
A17: 7 | B17: Cement | C17: AMBUJACEM | D17: 223.30 | E17: 224.88 | F17: 220.07 | G17: 216.83 | H17: 212.02 | I17: 228.12 | J17: 232.93 | K17: 236.17 | L17: 229.7 | M17: 221.65 | N17: 18123000 | O17: 3.34%
A18: 8 | B18: Others | C18: APOLLOHOSP | D18: 1748.05 | E18: 1755.18 | F18: 1727.52 | G18: 1706.98 | H18: 1679.32 | I18: 1775.72 | J18: 1803.38 | K18: 1823.92 | L18: 1782.85 | M18: 1734.65 | N18: 1228500 | O18: -6.90%
A19: 9 | B19: Automobile | C19: APOLLOTYRE | D19: 126.40 | E19: 127.08 | F19: 124.32 | G19: 122.23 | H19: 119.47 | I19: 129.17 | J19: 131.93 | K19: 134.02 | L19: 129.85 | M19: 125 | N19: 15990000 | O19: -2.74%
A20: 10 | B20: Automobile | C20: ASHOKLEY | D20: 52.40 | E20: 51.90 | F20: 51.20 | G20: 50.00 | H20: 49.30 | I20: 53.10 | J20: 53.80 | K20: 55.00 | L20: 52.6 | M20: 50.7 | N20: 52704000 | O20: 0.12%
A21: 11 | B21: FMCG | C21: ASIANPAINT | D21: 1795.65 | E21: 1806.67 | F21: 1774.33 | G21: 1753.02 | H21: 1720.68 | I21: 1827.98 | J21: 1860.32 | K21: 1881.63 | L21: 1839 | M21: 1785.35 | N21: 4803300 | O21: -3.73%
A22: 12 | B22: Pharma | C22: AUROPHARMA | D22: 950.25 | E22: 950.70 | F22: 934.60 | G22: 918.95 | H22: 902.85 | I22: 966.35 | J22: 982.45 | K22: 998.10 | L22: 966.8 | M22: 935.05 | N22: 15917200 | O22: 2.70%
A23: 13 | B23: Banking | C23: AXISBANK | D23: 450.35 | E23: 446.43 | F23: 440.52 | G23: 430.68 | H23: 424.77 | I23: 456.27 | J23: 462.18 | K23: 472.02 | L23: 452.35 | M23: 436.6 | N23: 56791200 | O23: 1.60%
A24: 14 | B24: Automobile | C24: BAJAJ-AUTO | D24: 3021.65 | E24: 3036.25 | F24: 2997.65 | G24: 2973.65 | H24: 2935.05 | I24: 3060.25 | J24: 3098.85 | K24: 3122.85 | L24: 3074.85 | M24: 3012.25 | N24: 1456500 | O24: -2.82%
A25: 15 | B25: Finance | C25: BAJAJFINSV | D25: 6471.90 | E25: 6471.58 | F25: 6413.82 | G25: 6355.73 | H25: 6297.97 | I25: 6529.67 | J25: 6587.43 | K25: 6645.52 | L25: 6529.35 | M25: 6413.5 | N25: 823625 | O25: 0.73%
A26: 16 | B26: Finance | C26: BAJFINANCE | D26: 3451.85 | E26: 3444.57 | F26: 3399.68 | G26: 3347.52 | H26: 3302.63 | I26: 3496.73 | J26: 3541.62 | K26: 3593.78 | L26: 3489.45 | M26: 3392.4 | N26: 5606250 | O26: 0.60%
A27: 17 | B27: Automobile | C27: BALKRISIND | D27: 1354.55 | E27: 1360.38 | F27: 1344.72 | G27: 1334.88 | H27: 1319.22 | I27: 1370.22 | J27: 1385.88 | K27: 1395.72 | L27: 1376.05 | M27: 1350.55 | N27: 2363200 | O27: -4.59%
A28: 18 | B28: Banking | C28: BANDHANBNK | D28: 301.95 | E28: 300.75 | F28: 295.70 | G28: 289.45 | H28: 284.40 | I28: 307.00 | J28: 312.05 | K28: 318.30 | L28: 305.8 | M28: 294.5 | N28: 27950400 | O28: 1.39%
A29: 19 | B29: Banking | C29: BANKBARODA | D29: 47.30 | E29: 47.52 | F29: 46.48 | G29: 45.67 | H29: 44.63 | I29: 48.33 | J29: 49.37 | K29: 50.18 | L29: 48.55 | M29: 46.7 | N29: 50028200 | O29: 5.32%
A30: 20 | B30: FMCG | C30: BATAINDIA | D30: 1234.15 | E30: 1239.45 | F30: 1225.15 | G30: 1216.15 | H30: 1201.85 | I30: 1248.45 | J30: 1262.75 | K30: 1271.75 | L30: 1253.75 | M30: 1230.45 | N30: 2892450 | O30: 6.67%
A31: 21 | B31: Capital_Goods | C31: BEL | D31: 106.30 | E31: 107.47 | F31: 104.48 | G31: 102.67 | H31: 99.68 | I31: 109.28 | J31: 112.27 | K31: 114.08 | L31: 110.45 | M31: 105.65 | N31: 28279600 | O31: 9.83%
A32: 22 | B32: FMCG | C32: BERGEPAINT | D32: 549.90 | E32: 553.33 | F32: 544.97 | G32: 540.03 | H32: 531.67 | I32: 558.27 | J32: 566.63 | K32: 571.57 | L32: 561.7 | M32: 548.4 | N32: 3964400 | O32: -0.39%
A33: 23 | B33: Automobile | C33: BHARATFORG | D33: 414.90 | E33: 416.67 | F33: 410.33 | G33: 405.77 | H33: 399.43 | I33: 421.23 | J33: 427.57 | K33: 432.13 | L33: 423 | M33: 412.1 | N33: 5688000 | O33: -0.03%
A34: 24 | B34: Telecom | C34: BHARTIARTL | D34: 553.80 | E34: 556.42 | F34: 550.33 | G34: 546.87 | H34: 540.78 | I34: 559.88 | J34: 565.97 | K34: 569.43 | L34: 562.5 | M34: 552.95 | N34: 82497219 | O34: 1.39%
A35: 25 | B35: Capital_Goods | C35: BHEL | D35: 35.95 | E35: 36.18 | F35: 35.57 | G35: 35.18 | H35: 34.57 | I35: 36.57 | J35: 37.18 | K35: 37.57 | L35: 36.8 | M35: 35.8 | N35: 55104000 | O35: 8.47%
A36: 26 | B36: Pharma | C36: BIOCON | D36: 409.50 | E36: 412.02 | F36: 406.08 | G36: 402.67 | H36: 396.73 | I36: 415.43 | J36: 421.37 | K36: 424.78 | L36: 417.95 | M36: 408.6 | N36: 16721000 | O36: 0.99%
A37: 27 | B37: Automobile | C37: BOSCHLTD | D37: 13296.45 | E37: 13427.80 | F37: 12984.15 | G37: 12671.85 | H37: 12228.20 | I37: 13740.10 | J37: 14183.75 | K37: 14496.05 | L37: 13871.45 | M37: 13115.5 | N37: 111700 | O37: 5.88%
A38: 28 | B38: Oil_Gas | C38: BPCL | D38: 429.75 | E38: 426.77 | F38: 419.98 | G38: 410.22 | H38: 403.43 | I38: 436.53 | J38: 443.32 | K38: 453.08 | L38: 433.55 | M38: 417 | N38: 18529200 | O38: -5.39%
A39: 29 | B39: FMCG | C39: BRITANNIA | D39: 3885.30 | E39: 3903.93 | F39: 3847.87 | G39: 3810.43 | H39: 3754.37 | I39: 3941.37 | J39: 3997.43 | K39: 4034.87 | L39: 3960 | M39: 3866.5 | N39: 1264600 | O39: -0.77%
A40: 30 | B40: Pharma | C40: CADILAHC | D40: 395.95 | E40: 400.62 | F40: 389.88 | G40: 383.82 | H40: 373.08 | I40: 406.68 | J40: 417.42 | K40: 423.48 | L40: 411.35 | M40: 394.55 | N40: 9363200 | O40: -2.76%
A41: 31 | B41: Banking | C41: CANBK | D41: 100.30 | E41: 100.63 | F41: 99.27 | G41: 98.23 | H41: 96.87 | I41: 101.67 | J41: 103.03 | K41: 104.07 | L41: 102 | M41: 99.6 | N41: 13110000 | O41: -2.49%
A42: 32 | B42: Textile | C42: CENTURYTEX | D42: 313.25 | E42: 317.02 | F42: 308.78 | G42: 304.32 | H42: 296.08 | I42: 321.48 | J42: 329.72 | K42: 334.18 | L42: 325.25 | M42: 312.55 | N42: 2969400 | O42: -8.34%
A43: 33 | B43: Finance | C43: CHOLAFIN | D43: 207.55 | E43: 208.87 | F43: 205.73 | G43: 203.92 | H43: 200.78 | I43: 210.68 | J43: 213.82 | K43: 215.63 | L43: 212 | M43: 207.05 | N43: 5097500 | O43: -9.62%
A44: 34 | B44: Pharma | C44: CIPLA | D44: 782.05 | E44: 786.20 | F44: 768.80 | G44: 755.55 | H44: 738.15 | I44: 799.45 | J44: 816.85 | K44: 830.10 | L44: 803.6 | M44: 772.95 | N44: 15382900 | O44: -4.82%
A45: 35 | B45: Others | C45: COALINDIA | D45: 130.80 | E45: 130.93 | F45: 130.22 | G45: 129.63 | H45: 128.92 | I45: 131.52 | J45: 132.23 | K45: 132.82 | L45: 131.65 | M45: 130.35 | N45: 31061500 | O45: -0.06%
A46: 36 | B46: FMCG | C46: COLPAL | D46: 1454.50 | E46: 1464.92 | F46: 1439.98 | G46: 1425.47 | H46: 1400.53 | I46: 1479.43 | J46: 1504.37 | K46: 1518.88 | L46: 1489.85 | M46: 1450.4 | N46: 2737000 | O46: -2.15%
A47: 37 | B47: Others | C47: CONCOR | D47: 379.40 | E47: 383.47 | F47: 374.03 | G47: 368.67 | H47: 359.23 | I47: 388.83 | J47: 398.27 | K47: 403.63 | L47: 392.9 | M47: 378.1 | N47: 6988173 | O47: 7.94%
A48: 38 | B48: Capital_Goods | C48: CUMMINSIND | D48: 412.80 | E48: 415.32 | F48: 409.68 | G48: 406.57 | H48: 400.93 | I48: 418.43 | J48: 424.07 | K48: 427.18 | L48: 420.95 | M48: 412.2 | N48: 2188800 | O48: 6.79%
A49: 39 | B49: FMCG | C49: DABUR | D49: 512.80 | E49: 515.77 | F49: 508.18 | G49: 503.57 | H49: 495.98 | I49: 520.38 | J49: 527.97 | K49: 532.58 | L49: 523.35 | M49: 511.15 | N49: 10321250 | O49: -4.49%
A50: 40 | B50: Pharma | C50: DIVISLAB | D50: 3146.70 | E50: 3140.45 | F50: 3101.90 | G50: 3057.10 | H50: 3018.55 | I50: 3185.25 | J50: 3223.80 | K50: 3268.60 | L50: 3179 | M50: 3095.65 | N50: 3674000 | O50: -3.59%
A51: 41 | B51: Realty | C51: DLF | D51: 147.55 | E51: 148.27 | F51: 145.88 | G51: 144.22 | H51: 141.83 | I51: 149.93 | J51: 152.32 | K51: 153.98 | L51: 150.65 | M51: 146.6 | N51: 26277900 | O51: 0.62%
A52: 42 | B52: Pharma | C52: DRREDDY | D52: 4616.05 | E52: 4646.05 | F52: 4547.20 | G52: 4478.35 | H52: 4379.50 | I52: 4714.90 | J52: 4813.75 | K52: 4882.60 | L52: 4744.9 | M52: 4577.2 | N52: 3139250 | O52: -3.90%
A53: 43 | B53: Automobile | C53: EICHERMOT | D53: 21478.90 | E53: 21489.93 | F53: 21277.82 | G53: 21076.73 | H53: 20864.62 | I53: 21691.02 | J53: 21903.13 | K53: 22104.22 | L53: 21702.05 | M53: 21288.85 | N53: 259840 | O53: -5.88%
A54: 44 | B54: Finance | C54: EQUITAS | D54: 49.90 | E54: 50.40 | F54: 48.50 | G54: 47.10 | H54: 45.20 | I54: 51.80 | J54: 53.70 | K54: 55.10 | L54: 52.3 | M54: 49 | N54: 12950400 | O54: 1.37%
A55: 45 | B55: Automobile | C55: ESCORTS | D55: 1119.65 | E55: 1125.70 | F55: 1107.60 | G55: 1095.55 | H55: 1077.45 | I55: 1137.75 | J55: 1155.85 | K55: 1167.90 | L55: 1143.8 | M55: 1113.65 | N55: 2491500 | O55: -4.31%
A56: 46 | B56: Automobile | C56: EXIDEIND | D56: 163.30 | E56: 163.85 | F56: 162.00 | G56: 160.70 | H56: 158.85 | I56: 165.15 | J56: 167.00 | K56: 168.30 | L56: 165.7 | M56: 162.55 | N56: 12085200 | O56: 0.90%
A57: 47 | B57: Banking | C57: FEDERALBNK | D57: 54.55 | E57: 54.38 | F57: 53.97 | G57: 53.38 | H57: 52.97 | I57: 54.97 | J57: 55.38 | K57: 55.97 | L57: 54.8 | M57: 53.8 | N57: 83580500 | O57: 1.60%
A58: 48 | B58: Oil_Gas | C58: GAIL | D58: 97.75 | E58: 98.18 | F58: 97.07 | G58: 96.38 | H58: 95.27 | I58: 98.87 | J58: 99.98 | K58: 100.67 | L58: 99.3 | M58: 97.5 | N58: 26882700 | O58: -2.54%
A59: 49 | B59: Pharma | C59: GLENMARK | D59: 479.40 | E59: 477.53 | F59: 473.37 | G59: 467.33 | H59: 463.17 | I59: 483.57 | J59: 487.73 | K59: 493.77 | L59: 481.7 | M59: 471.5 | N59: 8204100 | O59: 12.59%
A60: 50 | B60: Infrastructure | C60: GMRINFRA | D60: 21.25 | E60: 21.52 | F60: 20.93 | G60: 20.62 | H60: 20.03 | I60: 21.83 | J60: 22.42 | K60: 22.73 | L60: 22.1 | M60: 21.2 | N60: 85995000 | O60: 0.37%
A61: 51 | B61: FMCG | C61: GODREJCP | D61: 688.55 | E61: 689.97 | F61: 682.63 | G61: 676.72 | H61: 669.38 | I61: 695.88 | J61: 703.22 | K61: 709.13 | L61: 697.3 | M61: 684.05 | N61: 4061000 | O61: -2.59%
A62: 52 | B62: Others | C62: GODREJPROP | D62: 897.30 | E62: 898.68 | F62: 890.37 | G62: 883.43 | H62: 875.12 | I62: 905.62 | J62: 913.93 | K62: 920.87 | L62: 907 | M62: 891.75 | N62: 415350 | O62: -0.16%
A63: 53 | B63: Cement | C63: GRASIM | D63: 626.80 | E63: 630.52 | F63: 618.23 | G63: 609.67 | H63: 597.38 | I63: 639.08 | J63: 651.37 | K63: 659.93 | L63: 642.8 | M63: 621.95 | N63: 17944550 | O63: 0.32%
A64: 54 | B64: Others | C64: HAVELLS | D64: 608.95 | E64: 613.15 | F64: 602.60 | G64: 596.25 | H64: 585.70 | I64: 619.50 | J64: 630.05 | K64: 636.40 | L64: 623.7 | M64: 606.8 | N64: 5367000 | O64: -3.64%
A65: 55 | B65: Technology | C65: HCLTECH | D65: 687.00 | E65: 691.73 | F65: 680.47 | G65: 673.93 | H65: 662.67 | I65: 698.27 | J65: 709.53 | K65: 716.07 | L65: 703 | M65: 685.2 | N65: 16969400 | O65: -0.48%
A66: 56 | B66: Finance | C66: HDFC | D66: 1830.90 | E66: 1831.70 | F66: 1813.70 | G66: 1796.50 | H66: 1778.50 | I66: 1848.90 | J66: 1866.90 | K66: 1884.10 | L66: 1849.7 | M66: 1814.5 | N66: 29173800 | O66: -2.86%
A67: 57 | B67: Banking | C67: HDFCBANK | D67: 1065.90 | E67: 1060.93 | F67: 1052.02 | G67: 1038.13 | H67: 1029.22 | I67: 1074.82 | J67: 1083.73 | K67: 1097.62 | L67: 1069.85 | M67: 1047.05 | N67: 34117600 | O67: 0.07%
A68: 58 | B68: Finance | C68: HDFCLIFE | D68: 611.80 | E68: 612.52 | F68: 608.08 | G68: 604.37 | H68: 599.93 | I68: 616.23 | J68: 620.67 | K68: 624.38 | L68: 616.95 | M68: 608.8 | N68: 11359700 | O68: -0.44%
A69: 59 | B69: Automobile | C69: HEROMOTOCO | D69: 2726.35 | E69: 2744.13 | F69: 2699.22 | G69: 2672.08 | H69: 2627.17 | I69: 2771.27 | J69: 2816.18 | K69: 2843.32 | L69: 2789.05 | M69: 2717 | N69: 2158800 | O69: 1.54%
A70: 60 | B70: Metals | C70: HINDALCO | D70: 179.60 | E70: 181.85 | F70: 176.80 | G70: 174.00 | H70: 168.95 | I70: 184.65 | J70: 189.70 | K70: 192.50 | L70: 186.9 | M70: 179.05 | N70: 28027400 | O70: -6.71%
A71: 61 | B71: Oil_Gas | C71: HINDPETRO | D71: 216.25 | E71: 216.95 | F71: 213.90 | G71: 211.55 | H71: 208.50 | I71: 219.30 | J71: 222.35 | K71: 224.70 | L71: 220 | M71: 214.6 | N71: 28711800 | O71: 6.19%
A72: 62 | B72: FMCG | C72: HINDUNILVR | D72: 2220.85 | E72: 2227.20 | F72: 2210.65 | G72: 2200.45 | H72: 2183.90 | I72: 2237.40 | J72: 2253.95 | K72: 2264.15 | L72: 2243.75 | M72: 2217 | N72: 14850000 | O72: -0.03%
A73: 63 | B73: Finance | C73: IBULHSGFIN | D73: 215.75 | E73: 214.90 | F73: 208.25 | G73: 200.75 | H73: 194.10 | I73: 222.40 | J73: 229.05 | K73: 236.55 | L73: 221.55 | M73: 207.4 | N73: 18407800 | O73: 20.37%
A74: 64 | B74: Banking | C74: ICICIBANK | D74: 368.95 | E74: 369.93 | F74: 364.27 | G74: 359.58 | H74: 353.92 | I74: 374.62 | J74: 380.28 | K74: 384.97 | L74: 375.6 | M74: 365.25 | N74: 135913250 | O74: -0.24%
A75: 65 | B75: Finance | C75: ICICIPRULI | D75: 474.25 | E75: 476.77 | F75: 470.53 | G75: 466.82 | H75: 460.58 | I75: 480.48 | J75: 486.72 | K75: 490.43 | L75: 483 | M75: 473.05 | N75: 9133500 | O75: -0.18%
A76: 66 | B76: Telecom | C76: IDEA | D76: 8.80 | E76: 8.78 | F76: 8.67 | G76: 8.53 | H76: 8.42 | I76: 8.92 | J76: 9.03 | K76: 9.17 | L76: 8.9 | M76: 8.65 | N76: 376880000 | O76: -1.61%
A77: 67 | B77: Banking | C77: IDFCFIRSTB | D77: 30.40 | E77: 29.80 | F77: 28.95 | G77: 27.50 | H77: 26.65 | I77: 31.25 | J77: 32.10 | K77: 33.55 | L77: 30.65 | M77: 28.35 | N77: 134026000 | O77: 2.72%
A78: 68 | B78: Oil_Gas | C78: IGL | D78: 391.00 | E78: 391.63 | F78: 387.42 | G78: 383.83 | H78: 379.62 | I78: 395.22 | J78: 399.43 | K78: 403.02 | L78: 395.85 | M78: 388.05 | N78: 9739125 | O78: 1.29%
A79: 69 | B79: Others | C79: INDIGO | D79: 942.30 | E79: 948.87 | F79: 931.28 | G79: 920.27 | H79: 902.68 | I79: 959.88 | J79: 977.47 | K79: 988.48 | L79: 966.45 | M79: 937.85 | N79: 2957000 | O79: -0.74%
A80: 70 | B80: Banking | C80: INDUSINDBK | D80: 524.95 | E80: 521.60 | F80: 515.15 | G80: 505.35 | H80: 498.90 | I80: 531.40 | J80: 537.85 | K80: 547.65 | L80: 528.05 | M80: 511.8 | N80: 31650400 | O80: 0.99%
A81: 71 | B81: Telecom | C81: INFRATEL | D81: 194.75 | E81: 195.72 | F81: 191.88 | G81: 189.02 | H81: 185.18 | I81: 198.58 | J81: 202.42 | K81: 205.28 | L81: 199.55 | M81: 192.85 | N81: 13748000 | O81: -0.87%
A82: 72 | B82: Technology | C82: INFY | D82: 953.05 | E82: 955.62 | F82: 946.53 | G82: 940.02 | H82: 930.93 | I82: 962.13 | J82: 971.22 | K82: 977.73 | L82: 964.7 | M82: 949.1 | N82: 44642400 | O82: 0.11%
A83: 73 | B83: Oil_Gas | C83: IOC | D83: 87.55 | E83: 87.88 | F83: 87.07 | G83: 86.58 | H83: 85.77 | I83: 88.37 | J83: 89.18 | K83: 89.67 | L83: 88.7 | M83: 87.4 | N83: 47606400 | O83: 2.63%
A84: 74 | B84: FMCG | C84: ITC | D84: 204.05 | E84: 204.63 | F84: 200.52 | G84: 196.98 | H84: 192.87 | I84: 208.17 | J84: 212.28 | K84: 215.82 | L84: 208.75 | M84: 201.1 | N84: 88681600 | O84: 4.36%
A85: 75 | B85: Metals | C85: JINDALSTEL | D85: 212.10 | E85: 210.60 | F85: 203.75 | G85: 195.40 | H85: 188.55 | I85: 218.95 | J85: 225.80 | K85: 234.15 | L85: 217.45 | M85: 202.25 | N85: 20420000 | O85: 10.83%
A86: 76 | B86: Metals | C86: JSWSTEEL | D86: 254.45 | E86: 252.53 | F86: 248.97 | G86: 243.48 | H86: 239.92 | I86: 258.02 | J86: 261.58 | K86: 267.07 | L86: 256.1 | M86: 247.05 | N86: 44892900 | O86: 1.68%
A87: 77 | B87: Others | C87: JUBLFOOD | D87: 1873.70 | E87: 1873.18 | F87: 1854.57 | G87: 1835.43 | H87: 1816.82 | I87: 1892.32 | J87: 1910.93 | K87: 1930.07 | L87: 1891.8 | M87: 1854.05 | N87: 2523000 | O87: 1.51%
A88: 78 | B88: Banking | C88: KOTAKBANK | D88: 1367.65 | E88: 1370.05 | F88: 1355.15 | G88: 1342.65 | H88: 1327.75 | I88: 1382.55 | J88: 1397.45 | K88: 1409.95 | L88: 1384.95 | M88: 1357.55 | N88: 8414800 | O88: -0.52%
A89: 79 | B89: Finance | C89: L&TFH | D89: 64.25 | E89: 64.30 | F89: 63.55 | G89: 62.85 | H89: 62.10 | I89: 65.00 | J89: 65.75 | K89: 66.45 | L89: 65.05 | M89: 63.6 | N89: 28532800 | O89: -0.38%
A90: 80 | B90: Finance | C90: LICHSGFIN | D90: 267.25 | E90: 268.50 | F90: 263.00 | G90: 258.75 | H90: 253.25 | I90: 272.75 | J90: 278.25 | K90: 282.50 | L90: 274 | M90: 264.25 | N90: 12018000 | O90: 8.54%
A91: 81 | B91: Capital_Goods | C91: LT | D91: 966.35 | E91: 969.98 | F91: 956.97 | G91: 947.58 | H91: 934.57 | I91: 979.37 | J91: 992.38 | K91: 1001.77 | L91: 983 | M91: 960.6 | N91: 10574850 | O91: 0.32%
A92: 82 | B92: Pharma | C92: LUPIN | D92: 959.45 | E92: 959.97 | F92: 946.98 | G92: 934.52 | H92: 921.53 | I92: 972.43 | J92: 985.42 | K92: 997.88 | L92: 972.95 | M92: 947.5 | N92: 8232250 | O92: -3.62%
A93: 83 | B93: Automobile | C93: M&M | D93: 632.45 | E93: 633.48 | F93: 624.07 | G93: 615.68 | H93: 606.27 | I93: 641.87 | J93: 651.28 | K93: 659.67 | L93: 642.9 | M93: 625.1 | N93: 15937600 | O93: -2.92%
A94: 84 | B94: Finance | C94: M&MFIN | D94: 129.00 | E94: 129.17 | F94: 126.78 | G94: 124.57 | H94: 122.18 | I94: 131.38 | J94: 133.77 | K94: 135.98 | L94: 131.55 | M94: 126.95 | N94: 21783300 | O94: 3.79%
A95: 85 | B95: Finance | C95: MANAPPURAM | D95: 158.25 | E95: 158.40 | F95: 156.40 | G95: 154.55 | H95: 152.55 | I95: 160.25 | J95: 162.25 | K95: 164.10 | L95: 160.4 | M95: 156.55 | N95: 22152000 | O95: 5.01%
A96: 86 | B96: FMCG | C96: MARICO | D96: 372.15 | E96: 374.03 | F96: 369.12 | G96: 366.08 | H96: 361.17 | I96: 377.07 | J96: 381.98 | K96: 385.02 | L96: 378.95 | M96: 371 | N96: 10194000 | O96: -3.12%
A97: 87 | B97: Automobile | C97: MARUTI | D97: 6605.30 | E97: 6608.77 | F97: 6552.53 | G97: 6499.77 | H97: 6443.53 | I97: 6661.53 | J97: 6717.77 | K97: 6770.53 | L97: 6665 | M97: 6556 | N97: 2443100 | O97: -0.36%
A98: 88 | B98: FMCG | C98: MCDOWELL-N | D98: 586.10 | E98: 590.63 | F98: 580.07 | G98: 574.03 | H98: 563.47 | I98: 596.67 | J98: 607.23 | K98: 613.27 | L98: 601.2 | M98: 584.6 | N98: 16750000 | O98: -1.23%
A99: 89 | B99: Finance | C99: MFSL | D99: 532.40 | E99: 534.77 | F99: 529.13 | G99: 525.87 | H99: 520.23 | I99: 538.03 | J99: 543.67 | K99: 546.93 | L99: 540.4 | M99: 531.5 | N99: 2497300 | O99: -1.54%
A100: 90 | B100: Oil_Gas | C100: MGL | D100: 976.30 | E100: 980.82 | F100: 966.73 | G100: 957.17 | H100: 943.08 | I100: 990.38 | J100: 1004.47 | K100: 1014.03 | L100: 994.9 | M100: 971.25 | N100: 1207200 | O100: -2.19%
A101: 91 | B101: Technology | C101: MINDTREE | D101: 1117.80 | E101: 1125.20 | F101: 1101.40 | G101: 1085.00 | H101: 1061.20 | I101: 1141.60 | J101: 1165.40 | K101: 1181.80 | L101: 1149 | M101: 1108.8 | N101: 1172800 | O101: -1.61%
A102: 92 | B102: Automobile | C102: MOTHERSUMI | D102: 108.30 | E102: 106.50 | F102: 103.25 | G102: 98.20 | H102: 94.95 | I102: 111.55 | J102: 114.80 | K102: 119.85 | L102: 109.75 | M102: 101.45 | N102: 28532000 | O102: 5.90%
A103: 93 | B103: Automobile | C103: MRF | D103: 61696.50 | E103: 61922.60 | F103: 61295.85 | G103: 60895.20 | H103: 60268.45 | I103: 62323.25 | J103: 62950.00 | K103: 63350.65 | L103: 62549.35 | M103: 61521.95 | N103: 28330 | O103: -1.12%
A104: 94 | B104: Finance | C104: MUTHOOTFIN | D104: 1177.35 | E104: 1175.92 | F104: 1158.43 | G104: 1139.52 | H104: 1122.03 | I104: 1194.83 | J104: 1212.32 | K104: 1231.23 | L104: 1193.4 | M104: 1157 | N104: 5497500 | O104: -4.02%
A105: 95 | B105: Metals | C105: NATIONALUM | D105: 35.65 | E105: 35.82 | F105: 35.13 | G105: 34.62 | H105: 33.93 | I105: 36.33 | J105: 37.02 | K105: 37.53 | L105: 36.5 | M105: 35.3 | N105: 42330000 | O105: 3.45%
A106: 96 | B106: Others | C106: NAUKRI | D106: 3408.75 | E106: 3445.68 | F106: 3359.42 | G106: 3310.08 | H106: 3223.82 | I106: 3495.02 | J106: 3581.28 | K106: 3630.62 | L106: 3531.95 | M106: 3396.35 | N106: 791500 | O106: -4.55%
A107: 97 | B107: FMCG | C107: NESTLEIND | D107: 16700.25 | E107: 16740.87 | F107: 16619.38 | G107: 16538.52 | H107: 16417.03 | I107: 16821.73 | J107: 16943.22 | K107: 17024.08 | L107: 16862.35 | M107: 16660 | N107: 402150 | O107: 0.32%
A108: 98 | B108: Technology | C108: NIITTECH | D108: 1975.50 | E108: 2007.67 | F108: 1932.88 | G108: 1890.27 | H108: 1815.48 | I108: 2050.28 | J108: 2125.07 | K108: 2167.68 | L108: 2082.45 | M108: 1965.05 | N108: 468750 | O108: 8.98%
A109: 99 | B109: Metals | C109: NMDC | D109: 93.50 | E109: 93.28 | F109: 92.27 | G109: 91.03 | H109: 90.02 | I109: 94.52 | J109: 95.53 | K109: 96.77 | L109: 94.3 | M109: 92.05 | N109: 31905400 | O109: -4.87%
A110: 100 | B110: Power | C110: NTPC | D110: 85.90 | E110: 86.28 | F110: 85.22 | G110: 84.53 | H110: 83.47 | I110: 86.97 | J110: 88.03 | K110: 88.72 | L110: 87.35 | M110: 85.6 | N110: 63070500 | O110: -1.40%
A111: 101 | B111: Oil_Gas | C111: ONGC | D111: 78.85 | E111: 79.32 | F111: 78.23 | G111: 77.62 | H111: 76.53 | I111: 79.93 | J111: 81.02 | K111: 81.63 | L111: 80.4 | M111: 78.7 | N111: 44875600 | O111: 2.14%
A112: 102 | B112: Textile | C112: PAGEIND | D112: 18944.40 | E112: 18892.77 | F112: 18706.68 | G112: 18468.97 | H112: 18282.88 | I112: 19130.48 | J112: 19316.57 | K112: 19554.28 | L112: 19078.85 | M112: 18655.05 | N112: 98610 | O112: -3.89%
A113: 103 | B113: Pharma | C113: PEL | D113: 1478.80 | E113: 1485.30 | F113: 1458.55 | G113: 1438.30 | H113: 1411.55 | I113: 1505.55 | J113: 1532.30 | K113: 1552.55 | L113: 1512.05 | M113: 1465.05 | N113: 3016200 | O113: -0.09%
A114: 104 | B114: Oil_Gas | C114: PETRONET | D114: 247.85 | E114: 251.03 | F114: 243.97 | G114: 240.08 | H114: 233.02 | I114: 254.92 | J114: 261.98 | K114: 265.87 | L114: 258.1 | M114: 247.15 | N114: 12534000 | O114: -0.76%
A115: 105 | B115: Finance | C115: PFC | D115: 90.20 | E115: 90.30 | F115: 89.00 | G115: 87.80 | H115: 86.50 | I115: 91.50 | J115: 92.80 | K115: 94.00 | L115: 91.6 | M115: 89.1 | N115: 48682400 | O115: -7.95%
A116: 106 | B116: FMCG | C116: PIDILITIND | D116: 1386.65 | E116: 1394.47 | F116: 1375.48 | G116: 1364.32 | H116: 1345.33 | I116: 1405.63 | J116: 1424.62 | K116: 1435.78 | L116: 1413.45 | M116: 1383.3 | N116: 3695500 | O116: 0.87%
A117: 107 | B117: Banking | C117: PNB | D117: 33.00 | E117: 32.97 | F117: 32.58 | G117: 32.17 | H117: 31.78 | I117: 33.38 | J117: 33.77 | K117: 34.18 | L117: 33.35 | M117: 32.55 | N117: 62412000 | O117: 1.46%
A118: 108 | B118: Power | C118: POWERGRID | D118: 176.95 | E118: 177.98 | F118: 174.62 | G118: 172.28 | H118: 168.92 | I118: 180.32 | J118: 183.68 | K118: 186.02 | L118: 181.35 | M118: 175.65 | N118: 13124000 | O118: -4.34%
A119: 109 | B119: Media | C119: PVR | D119: 1118.05 | E119: 1122.40 | F119: 1110.80 | G119: 1103.55 | H119: 1091.95 | I119: 1129.65 | J119: 1141.25 | K119: 1148.50 | L119: 1134 | M119: 1115.15 | N119: 1671956 | O119: 0.76%
A120: 110 | B120: Cement | C120: RAMCOCEM | D120: 702.80 | E120: 698.33 | F120: 686.47 | G120: 670.13 | H120: 658.27 | I120: 714.67 | J120: 726.53 | K120: 742.87 | L120: 710.2 | M120: 682 | N120: 2121600 | O120: 13.76%
A121: 111 | B121: Banking | C121: RBLBANK | D121: 185.95 | E121: 185.00 | F121: 182.70 | G121: 179.45 | H121: 177.15 | I121: 188.25 | J121: 190.55 | K121: 193.80 | L121: 187.3 | M121: 181.75 | N121: 24128000 | O121: -1.52%
A122: 112 | B122: Power | C122: RECLTD | D122: 106.35 | E122: 107.17 | F122: 105.33 | G122: 104.32 | H122: 102.48 | I122: 108.18 | J122: 110.02 | K122: 111.03 | L122: 109 | M122: 106.15 | N122: 21810000 | O122: 1.85%
A123: 113 | B123: Oil_Gas | C123: RELIANCE | D123: 2143.65 | E123: 2141.15 | F123: 2111.30 | G123: 2078.95 | H123: 2049.10 | I123: 2173.50 | J123: 2203.35 | K123: 2235.70 | L123: 2171 | M123: 2108.8 | N123: 38560285 | O123: -1.86%
A124: 114 | B124: Metals | C124: SAIL | D124: 39.00 | E124: 39.50 | F124: 37.95 | G124: 36.90 | H124: 35.35 | I124: 40.55 | J124: 42.10 | K124: 43.15 | L124: 41.05 | M124: 38.45 | N124: 65246000 | O124: 5.11%
A125: 115 | B125: Finance | C125: SBILIFE | D125: 864.75 | E125: 869.53 | F125: 856.97 | G125: 849.18 | H125: 836.62 | I125: 877.32 | J125: 889.88 | K125: 897.67 | L125: 882.1 | M125: 861.75 | N125: 6627000 | O125: 2.08%
A126: 116 | B126: Banking | C126: SBIN | D126: 196.20 | E126: 196.22 | F126: 194.58 | G126: 192.97 | H126: 191.33 | I126: 197.83 | J126: 199.47 | K126: 201.08 | L126: 197.85 | M126: 194.6 | N126: 121068000 | O126: 2.76%
A127: 117 | B127: Cement | C127: SHREECEM | D127: 21577.60 | E127: 21667.30 | F127: 21252.80 | G127: 20928.00 | H127: 20513.50 | I127: 21992.10 | J127: 22406.60 | K127: 22731.40 | L127: 22081.8 | M127: 21342.5 | N127: 150550 | O127: -9.66%
A128: 118 | B128: Capital_Goods | C128: SIEMENS | D128: 1163.95 | E128: 1157.98 | F128: 1137.97 | G128: 1111.98 | H128: 1091.97 | I128: 1183.97 | J128: 1203.98 | K128: 1229.97 | L128: 1178 | M128: 1132 | N128: 2028950 | O128: -5.46%
A129: 119 | B129: Textile | C129: SRF | D129: 4177.50 | E129: 4219.23 | F129: 4119.47 | G129: 4061.43 | H129: 3961.67 | I129: 4277.27 | J129: 4377.03 | K129: 4435.07 | L129: 4319 | M129: 4161.2 | N129: 725500 | O129: -1.19%
A130: 120 | B130: Finance | C130: SRTRANSFIN | D130: 676.75 | E130: 676.28 | F130: 667.97 | G130: 659.18 | H130: 650.87 | I130: 685.07 | J130: 693.38 | K130: 702.17 | L130: 684.6 | M130: 667.5 | N130: 2854760 | O130: 0.12%
A131: 121 | B131: Pharma | C131: SUNPHARMA | D131: 541.50 | E131: 542.92 | F131: 535.28 | G131: 529.07 | H131: 521.43 | I131: 549.13 | J131: 556.77 | K131: 562.98 | L131: 550.55 | M131: 536.7 | N131: 32121600 | O131: -1.15%
A132: 122 | B132: Media | C132: SUNTV | D132: 399.10 | E132: 402.00 | F132: 394.50 | G132: 389.90 | H132: 382.40 | I132: 406.60 | J132: 414.10 | K132: 418.70 | L132: 409.5 | M132: 397.4 | N132: 5830500 | O132: 10.90%
A133: 123 | B133: Fertilisers | C133: TATACHEM | D133: 298.60 | E133: 299.78 | F133: 295.92 | G133: 293.23 | H133: 289.37 | I133: 302.47 | J133: 306.33 | K133: 309.02 | L133: 303.65 | M133: 297.1 | N133: 3898000 | O133: 8.88%
A134: 124 | B134: Others | C134: TATACONSUM | D134: 518.55 | E134: 521.17 | F134: 513.73 | G134: 508.92 | H134: 501.48 | I134: 525.98 | J134: 533.42 | K134: 538.23 | L134: 528.6 | M134: 516.35 | N134: 13284000 | O134: -5.26%
A135: 125 | B135: Automobile | C135: TATAMOTORS | D135: 122.95 | E135: 123.52 | F135: 121.03 | G135: 119.12 | H135: 116.63 | I135: 125.43 | J135: 127.92 | K135: 129.83 | L135: 126 | M135: 121.6 | N135: 94825200 | O135: -1.41%
A136: 126 | B136: Power | C136: TATAPOWER | D136: 52.10 | E136: 52.05 | F136: 51.25 | G136: 50.40 | H136: 49.60 | I136: 52.90 | J136: 53.70 | K136: 54.55 | L136: 52.85 | M136: 51.2 | N136: 61236000 | O136: -2.09%
A137: 127 | B137: Metals | C137: TATASTEEL | D137: 417.80 | E137: 419.17 | F137: 410.83 | G137: 403.87 | H137: 395.53 | I137: 426.13 | J137: 434.47 | K137: 441.43 | L137: 427.5 | M137: 412.2 | N137: 16717800 | O137: -0.11%
A138: 128 | B138: Technology | C138: TCS | D138: 2291.20 | E138: 2299.55 | F138: 2277.35 | G138: 2263.50 | H138: 2241.30 | I138: 2313.40 | J138: 2335.60 | K138: 2349.45 | L138: 2321.75 | M138: 2285.7 | N138: 10206300 | O138: 0.39%
A139: 129 | B139: Technology | C139: TECHM | D139: 676.90 | E139: 681.77 | F139: 668.58 | G139: 660.27 | H139: 647.08 | I139: 690.08 | J139: 703.27 | K139: 711.58 | L139: 694.95 | M139: 673.45 | N139: 12703200 | O139: -2.24%
A140: 130 | B140: FMCG | C140: TITAN | D140: 1067.30 | E140: 1069.35 | F140: 1049.70 | G140: 1032.10 | H140: 1012.45 | I140: 1086.95 | J140: 1106.60 | K140: 1124.20 | L140: 1089 | M140: 1051.75 | N140: 8630250 | O140: -1.93%
A141: 131 | B141: Pharma | C141: TORNTPHARM | D141: 2885.60 | E141: 2933.23 | F141: 2828.52 | G141: 2771.43 | H141: 2666.72 | I141: 2990.32 | J141: 3095.03 | K141: 3152.12 | L141: 3037.95 | M141: 2876.15 | N141: 1555000 | O141: -8.02%
A142: 132 | B142: Power | C142: TORNTPOWER | D142: 340.10 | E142: 341.17 | F142: 337.58 | G142: 335.07 | H142: 331.48 | I142: 343.68 | J142: 347.27 | K142: 349.78 | L142: 344.75 | M142: 338.65 | N142: 2571000 | O142: -4.57%
A143: 133 | B143: Automobile | C143: TVSMOTOR | D143: 415.95 | E143: 416.30 | F143: 412.05 | G143: 408.15 | H143: 403.90 | I143: 420.20 | J143: 424.45 | K143: 428.35 | L143: 420.55 | M143: 412.4 | N143: 5923400 | O143: -4.45%
A144: 134 | B144: FMCG | C144: UBL | D144: 969.90 | E144: 973.95 | F144: 964.00 | G144: 958.10 | H144: 948.15 | I144: 979.85 | J144: 989.80 | K144: 995.70 | L144: 983.9 | M144: 968.05 | N144: 1556100 | O144: -0.63%
A145: 135 | B145: Finance | C145: UJJIVAN | D145: 234.05 | E145: 235.22 | F145: 227.98 | G145: 221.92 | H145: 214.68 | I145: 241.28 | J145: 248.52 | K145: 254.58 | L145: 242.45 | M145: 229.15 | N145: 2842400 | O145: -0.77%
A146: 136 | B146: Cement | C146: ULTRACEMCO | D146: 3988.75 | E146: 4017.58 | F146: 3951.17 | G146: 3913.58 | H146: 3847.17 | I146: 4055.17 | J146: 4121.58 | K146: 4159.17 | L146: 4084 | M146: 3980 | N146: 2566200 | O146: 1.25%
A147: 137 | B147: Fertilisers | C147: UPL | D147: 478.55 | E147: 482.25 | F147: 472.95 | G147: 467.35 | H147: 458.05 | I147: 487.85 | J147: 497.15 | K147: 502.75 | L147: 491.55 | M147: 476.65 | N147: 13822900 | O147: 5.52%
A148: 138 | B148: Metals | C148: VEDL | D148: 125.90 | E148: 126.40 | F148: 124.90 | G148: 123.90 | H148: 122.40 | I148: 127.40 | J148: 128.90 | K148: 129.90 | L148: 127.9 | M148: 125.4 | N148: 122183400 | O148: -1.85%
A149: 139 | B149: Capital_Goods | C149: VOLTAS | D149: 611.30 | E149: 607.07 | F149: 593.63 | G149: 575.97 | H149: 562.53 | I149: 624.73 | J149: 638.17 | K149: 655.83 | L149: 620.5 | M149: 589.4 | N149: 2937000 | O149: -6.35%
A150: 140 | B150: Technology | C150: WIPRO | D150: 280.55 | E150: 281.90 | F150: 278.25 | G150: 275.95 | H150: 272.30 | I150: 284.20 | J150: 287.85 | K150: 290.15 | L150: 285.55 | M150: 279.6 | N150: 23638400 | O150: 0.90%
A151: 141 | B151: Media | C151: ZEEL | D151: 160.60 | E151: 158.42 | F151: 154.93 | G151: 149.27 | H151: 145.78 | I151: 164.08 | J151: 167.57 | K151: 173.23 | L151: 161.9 | M151: 152.75 | N151: 37875000 | O151: 15.86%
A152: 142
A153: 143
A154: 144
A155: 145
A156: 146
A157: 147
A175: Pivot Point: This is trigger point for intra day buy/sell based on the price range of the previous day
A176: As per the tool,the trader should take BUY position just above Pivot and keep the stop loss of pivot point and the first target would be Resistance 1(R1)
A177: If R1 is crossed then R2 becomes the next target with stop loss of at R1
A178: Similarly if price goes below pivot point then the trader should sell and keep a stop loss of pivot point and the first target would be S1
A179: If S1 is crossed then S2 becomes the next target with stop loss of at S1
A181: Disclaimer:
A182: This document has been prepared by the Retail Research Desk of Asit C Mehta
A183: Investment Intermediates Ltd. and is meant for use of the recipient only
A184: and is not for circulation. This document is not to be reported or
A185: copied or made available to others. It should not be considered to be
A186: taken as an offer to sell or a solicitation to buy any security. The
A187: information contained herein is from sources believed reliable. We do
A188: not represent that it is accurate or complete and it should not be
A189: relied upon as such. We may from time to time have positions in and buy
A190: and sell securities referred to herein

Sheet Cash Intra
M5: Back to Main Page
A6: FOR INTRA DAY TRADING | K6: =Main!B10 -> 2020-08-12
A8: Sr.no | B8: Scrip | C8: CLOSE RATE | D8: Pivot Point | E8: Supports | H8: Resistances
C9: Point | E9: S1 | F9: S2 | G9: S3 | H9: R1 | I9: R2 | J9: R3 | K9: HIGH | L9: LOW | M9: Total Trade Quanity in Lakhs
A10: 1 | B10: Nifty 50 | C10: 11322.5 | D10: 11331.75 | E10: 11289.90 | F10: 11257.30 | G10: 11215.45 | H10: 11364.35 | I10: 11406.20 | J10: 11438.80 | K10: 11373.6 | L10: 11299.15
A11: 2 | B11: Nifty Bank | C11: 22227.2 | D11: 22181.55 | E11: 22085.50 | F11: 21943.80 | G11: 21847.75 | H11: 22323.25 | I11: 22419.30 | J11: 22561.00 | K11: 22277.6 | L11: 22039.85
A12: 3 | B12: Nifty CPSE | C12: 1440 | D12: 1446.77 | E12: 1431.13 | F12: 1422.27 | G12: 1406.63 | H12: 1455.63 | I12: 1471.27 | J12: 1480.13 | K12: 1462.4 | L12: 1437.9
A13: 4 | B13: Nifty Infra | C13: 3196.8 | D13: 3201.92 | E13: 3182.33 | F13: 3167.87 | G13: 3148.28 | H13: 3216.38 | I13: 3235.97 | J13: 3250.43 | K13: 3221.5 | L13: 3187.45
A14: 5 | B14: Nifty IT | C14: 18057.1 | D14: 18141.75 | E14: 17951.85 | F14: 17846.60 | G14: 17656.70 | H14: 18247.00 | I14: 18436.90 | J14: 18542.15 | K14: 18331.65 | L14: 18036.5
A15: 6 | B15: Nifty PSE | C15: 2517.4 | D15: 2527.42 | E15: 2503.53 | F15: 2489.67 | G15: 2465.78 | H15: 2541.28 | I15: 2565.17 | J15: 2579.03 | K15: 2551.3 | L15: 2513.55
A16: 7 | B16: Nifty Midcap 50 | C16: 4480.15 | D16: 4488.07 | E16: 4465.88 | F16: 4451.62 | G16: 4429.43 | H16: 4502.33 | I16: 4524.52 | J16: 4538.78 | K16: 4510.25 | L16: 4473.8
A17: 8 | B17: ACC | C17: 1412.55 | D17: 1415.87 | E17: 1396.78 | F17: 1381.02 | G17: 1361.93 | H17: 1431.63 | I17: 1450.72 | J17: 1466.48 | K17: 1434.95 | L17: 1400.1 | M17: 10.72947
A18: 9 | B18: AUBANK | C18: 696.95 | D18: 701.47 | E18: 688.83 | F18: 680.72 | G18: 668.08 | H18: 709.58 | I18: 722.22 | J18: 730.33 | K18: 714.1 | L18: 693.35 | M18: 2.13309
A19: 10 | B19: AARTIIND | C19: 1026.65 | D19: 1040.28 | E19: 1006.57 | F19: 986.48 | G19: 952.77 | H19: 1060.37 | I19: 1094.08 | J19: 1114.17 | K19: 1074 | L19: 1020.2 | M19: 3.02912
A20: 11 | B20: ABBOTINDIA | C20: 16618.65 | D20: 16772.88 | E20: 16345.77 | F20: 16072.88 | G20: 15645.77 | H20: 17045.77 | I20: 17472.88 | J20: 17745.77 | K20: 17200 | L20: 16500 | M20: 0.19111
A21: 12 | B21: ADANIGAS | C21: 158.85 | D21: 160.85 | E21: 156.20 | F21: 153.55 | G21: 148.90 | H21: 163.50 | I21: 168.15 | J21: 170.80 | K21: 165.5 | L21: 158.2 | M21: 9.98797
A22: 13 | B22: ADANIPORTS | C22: 335 | D22: 334.15 | E22: 331.55 | F22: 328.10 | G22: 325.50 | H22: 337.60 | I22: 340.20 | J22: 343.65 | K22: 336.75 | L22: 330.7 | M22: 35.04783
A23: 14 | B23: ADANIPOWER | C23: 37.65 | D23: 37.97 | E23: 37.23 | F23: 36.82 | G23: 36.08 | H23: 38.38 | I23: 39.12 | J23: 39.53 | K23: 38.7 | L23: 37.55 | M23: 49.17397
A24: 15 | B24: ADANITRANS | C24: 249.4 | D24: 251.48 | E24: 245.32 | F24: 241.23 | G24: 235.07 | H24: 255.57 | I24: 261.73 | J24: 265.82 | K24: 257.65 | L24: 247.4 | M24: 2.23585
A25: 16 | B25: ABCAPITAL | C25: 59.05 | D25: 59.42 | E25: 58.13 | F25: 57.22 | G25: 55.93 | H25: 60.33 | I25: 61.62 | J25: 62.53 | K25: 60.7 | L25: 58.5 | M25: 19.94917
A26: 17 | B26: ABFRL | C26: 118 | D26: 118.58 | E26: 117.12 | F26: 116.23 | G26: 114.77 | H26: 119.47 | I26: 120.93 | J26: 121.82 | K26: 120.05 | L26: 117.7 | M26: 11.18533
A27: 18 | B27: AJANTPHARM | C27: 1676.7 | D27: 1687.02 | E27: 1640.03 | F27: 1603.37 | G27: 1556.38 | H27: 1723.68 | I27: 1770.67 | J27: 1807.33 | K27: 1734 | L27: 1650.35 | M27: 1.48933
A28: 19 | B28: ALKEM | C28: 2783.15 | D28: 2856.13 | E28: 2692.02 | F28: 2600.88 | G28: 2436.77 | H28: 2947.27 | I28: 3111.38 | J28: 3202.52 | K28: 3020.25 | L28: 2765 | M28: 4.9373
A29: 20 | B29: AMARAJABAT | C29: 742.7 | D29: 745.05 | E29: 734.90 | F29: 727.10 | G29: 716.95 | H29: 752.85 | I29: 763.00 | J29: 770.80 | K29: 755.2 | L29: 737.25 | M29: 7.7199
A30: 21 | B30: AMBUJACEM | C30: 222.75 | D30: 224.45 | E30: 219.65 | F30: 216.55 | G30: 211.75 | H30: 227.55 | I30: 232.35 | J30: 235.45 | K30: 229.25 | L30: 221.35 | M30: 69.16437
A31: 22 | B31: APOLLOHOSP | C31: 1750.75 | D31: 1762.40 | E31: 1726.85 | F31: 1702.95 | G31: 1667.40 | H31: 1786.30 | I31: 1821.85 | J31: 1845.75 | K31: 1797.95 | L31: 1738.5 | M31: 6.9784
A32: 23 | B32: APOLLOTYRE | C32: 126.05 | D32: 126.60 | E32: 123.75 | F32: 121.45 | G32: 118.60 | H32: 128.90 | I32: 131.75 | J32: 134.05 | K32: 129.45 | L32: 124.3 | M32: 87.128
A33: 24 | B33: ASHOKLEY | C33: 52.2 | D33: 51.73 | E33: 51.07 | F33: 49.93 | G33: 49.27 | H33: 52.87 | I33: 53.53 | J33: 54.67 | K33: 52.4 | L33: 50.6 | M33: 334.77393
A34: 25 | B34: ASIANPAINT | C34: 1789.55 | D34: 1802.45 | E34: 1767.10 | F34: 1744.65 | G34: 1709.30 | H34: 1824.90 | I34: 1860.25 | J34: 1882.70 | K34: 1837.8 | L34: 1780 | M34: 30.39964
A35: 26 | B35: AUROPHARMA | C35: 944.8 | D35: 947.18 | E35: 929.72 | F35: 914.63 | G35: 897.17 | H35: 962.27 | I35: 979.73 | J35: 994.82 | K35: 964.65 | L35: 932.1 | M35: 51.78964
A36: 27 | B36: DMART | C36: 2131.95 | D36: 2128.48 | E36: 2113.82 | F36: 2095.68 | G36: 2081.02 | H36: 2146.62 | I36: 2161.28 | J36: 2179.42 | K36: 2143.15 | L36: 2110.35 | M36: 4.61469
A37: 28 | B37: AXISBANK | C37: 448 | D37: 444.40 | E37: 438.90 | F37: 429.80 | G37: 424.30 | H37: 453.50 | I37: 459.00 | J37: 468.10 | K37: 449.9 | L37: 435.3 | M37: 304.6968
A38: 29 | B38: BAJAJ-AUTO | C38: 3007.45 | D38: 3021.07 | E38: 2982.13 | F38: 2956.82 | G38: 2917.88 | H38: 3046.38 | I38: 3085.32 | J38: 3110.63 | K38: 3060 | L38: 2995.75 | M38: 6.96792
A39: 30 | B39: BAJFINANCE | C39: 3457.4 | D39: 3452.22 | E39: 3409.88 | F39: 3362.37 | G39: 3320.03 | H39: 3499.73 | I39: 3542.07 | J39: 3589.58 | K39: 3494.55 | L39: 3404.7 | M39: 55.71895
A40: 31 | B40: BAJAJFINSV | C40: 6440.35 | D40: 6442.45 | E40: 6388.90 | F40: 6337.45 | G40: 6283.90 | H40: 6493.90 | I40: 6547.45 | J40: 6598.90 | K40: 6496 | L40: 6391 | M40: 4.30944
A41: 32 | B41: BAJAJHLDNG | C41: 2725.65 | D41: 2730.83 | E41: 2709.67 | F41: 2693.68 | G41: 2672.52 | H41: 2746.82 | I41: 2767.98 | J41: 2783.97 | K41: 2752 | L41: 2714.85 | M41: 0.17603
A42: 33 | B42: BALKRISIND | C42: 1352.9 | D42: 1357.90 | E42: 1342.45 | F42: 1332.00 | G42: 1316.55 | H42: 1368.35 | I42: 1383.80 | J42: 1394.25 | K42: 1373.35 | L42: 1347.45 | M42: 4.48789
A43: 34 | B43: BANDHANBNK | C43: 300.6 | D43: 299.65 | E43: 294.95 | F43: 289.30 | G43: 284.60 | H43: 305.30 | I43: 310.00 | J43: 315.65 | K43: 304.35 | L43: 294 | M43: 399.08487
A44: 35 | B44: BANKBARODA | C44: 47.1 | D44: 47.40 | E44: 46.40 | F44: 45.70 | G44: 44.70 | H44: 48.10 | I44: 49.10 | J44: 49.80 | K44: 48.4 | L44: 46.7 | M44: 364.66171
A45: 36 | B45: BANKINDIA | C45: 48.15 | D45: 48.45 | E45: 47.60 | F45: 47.05 | G45: 46.20 | H45: 49.00 | I45: 49.85 | J45: 50.40 | K45: 49.3 | L45: 47.9 | M45: 20.31765
A46: 37 | B46: BATAINDIA | C46: 1229.75 | D46: 1235.02 | E46: 1220.03 | F46: 1210.32 | G46: 1195.33 | H46: 1244.73 | I46: 1259.72 | J46: 1269.43 | K46: 1250 | L46: 1225.3 | M46: 11.69503
A47: 38 | B47: BERGEPAINT | C47: 547.35 | D47: 551.08 | E47: 541.67 | F47: 535.98 | G47: 526.57 | H47: 556.77 | I47: 566.18 | J47: 571.87 | K47: 560.5 | L47: 545.4 | M47: 20.63046
A48: 39 | B48: BEL | C48: 105.85 | D48: 107.15 | E48: 103.95 | F48: 102.05 | G48: 98.85 | H48: 109.05 | I48: 112.25 | J48: 114.15 | K48: 110.35 | L48: 105.25 | M48: 214.37613
A49: 40 | B49: BHARATFORG | C49: 413.55 | D49: 416.42 | E49: 408.13 | F49: 402.72 | G49: 394.43 | H49: 421.83 | I49: 430.12 | J49: 435.53 | K49: 424.7 | L49: 411 | M49: 29.28453
A50: 41 | B50: BHEL | C50: 35.75 | D50: 36.03 | E50: 35.32 | F50: 34.88 | G50: 34.17 | H50: 36.47 | I50: 37.18 | J50: 37.62 | K50: 36.75 | L50: 35.6 | M50: 382.75871
A51: 42 | B51: BPCL | C51: 429.25 | D51: 425.95 | E51: 418.90 | F51: 408.55 | G51: 401.50 | H51: 436.30 | I51: 443.35 | J51: 453.70 | K51: 433 | L51: 415.6 | M51: 127.67297
A52: 43 | B52: BHARTIARTL | C52: 551.1 | D52: 553.93 | E52: 547.37 | F52: 543.63 | G52: 537.07 | H52: 557.67 | I52: 564.23 | J52: 567.97 | K52: 560.5 | L52: 550.2 | M52: 81.37948
A53: 44 | B53: INFRATEL | C53: 194.3 | D53: 195.18 | E53: 191.37 | F53: 188.43 | G53: 184.62 | H53: 198.12 | I53: 201.93 | J53: 204.87 | K53: 199 | L53: 192.25 | M53: 47.07552
A54: 45 | B54: BIOCON | C54: 407.55 | D54: 410.28 | E54: 403.57 | F54: 399.58 | G54: 392.87 | H54: 414.27 | I54: 420.98 | J54: 424.97 | K54: 417 | L54: 406.3 | M54: 53.84759
A55: 46 | B55: BBTC | C55: 1474.4 | D55: 1499.18 | E55: 1437.22 | F55: 1400.03 | G55: 1338.07 | H55: 1536.37 | I55: 1598.33 | J55: 1635.52 | K55: 1561.15 | L55: 1462 | M55: 3.24715
A56: 47 | B56: BOSCHLTD | C56: 13262.55 | D56: 13396.45 | E56: 12978.10 | F56: 12693.65 | G56: 12275.30 | H56: 13680.90 | I56: 14099.25 | J56: 14383.70 | K56: 13814.8 | L56: 13112 | M56: 0.88883
A57: 48 | B57: BRITANNIA | C57: 3879.55 | D57: 3904.85 | E57: 3839.70 | F57: 3799.85 | G57: 3734.70 | H57: 3944.70 | I57: 4009.85 | J57: 4049.70 | K57: 3970 | L57: 3865 | M57: 4.22055
A58: 49 | B58: CESC | C58: 576.65 | D58: 573.38 | E58: 563.77 | F58: 550.88 | G58: 541.27 | H58: 586.27 | I58: 595.88 | J58: 608.77 | K58: 583 | L58: 560.5 | M58: 3.78914
A59: 50 | B59: CADILAHC | C59: 394.75 | D59: 398.78 | E59: 388.97 | F59: 383.18 | G59: 373.37 | H59: 404.57 | I59: 414.38 | J59: 420.17 | K59: 408.6 | L59: 393 | M59: 33.49443
A60: 51 | B60: CANBK | C60: 101.35 | D60: 101.50 | E60: 100.40 | F60: 99.45 | G60: 98.35 | H60: 102.45 | I60: 103.55 | J60: 104.50 | K60: 102.6 | L60: 100.55 | M60: 42.17704
A61: 52 | B61: CASTROLIND | C61: 121.1 | D61: 121.55 | E61: 120.10 | F61: 119.10 | G61: 117.65 | H61: 122.55 | I61: 124.00 | J61: 125.00 | K61: 123 | L61: 120.55 | M61: 7.63716
A62: 53 | B62: CHOLAFIN | C62: 207.15 | D62: 208.53 | E62: 205.02 | F62: 202.88 | G62: 199.37 | H62: 210.67 | I62: 214.18 | J62: 216.32 | K62: 212.05 | L62: 206.4 | M62: 42.60187
A63: 54 | B63: CIPLA | C63: 778 | D63: 782.87 | E63: 763.88 | F63: 749.77 | G63: 730.78 | H63: 796.98 | I63: 815.97 | J63: 830.08 | K63: 801.85 | L63: 768.75 | M63: 148.61526
A64: 55 | B64: CUB | C64: 119.25 | D64: 119.88 | E64: 117.87 | F64: 116.48 | G64: 114.47 | H64: 121.27 | I64: 123.28 | J64: 124.67 | K64: 121.9 | L64: 118.5 | M64: 13.3807
A65: 56 | B65: COALINDIA | C65: 130.1 | D65: 130.27 | E65: 129.53 | F65: 128.97 | G65: 128.23 | H65: 130.83 | I65: 131.57 | J65: 132.13 | K65: 131 | L65: 129.7 | M65: 56.68353
A66: 57 | B66: COLPAL | C66: 1449.25 | D66: 1458.82 | E66: 1431.18 | F66: 1413.12 | G66: 1385.48 | H66: 1476.88 | I66: 1504.52 | J66: 1522.58 | K66: 1486.45 | L66: 1440.75 | M66: 9.99732
A67: 58 | B67: CONCOR | C67: 377.3 | D67: 381.77 | E67: 371.53 | F67: 365.77 | G67: 355.53 | H67: 387.53 | I67: 397.77 | J67: 403.53 | K67: 392 | L67: 376 | M67: 67.22941
A68: 59 | B68: COROMANDEL | C68: 778.9 | D68: 784.87 | E68: 771.03 | F68: 763.17 | G68: 749.33 | H68: 792.73 | I68: 806.57 | J68: 814.43 | K68: 798.7 | L68: 777 | M68: 3.54188
A69: 60 | B69: CROMPTON | C69: 261.6 | D69: 263.55 | E69: 258.10 | F69: 254.60 | G69: 249.15 | H69: 267.05 | I69: 272.50 | J69: 276.00 | K69: 269 | L69: 260.05 | M69: 6.21579
A70: 61 | B70: CUMMINSIND | C70: 422.15 | D70: 423.75 | E70: 419.40 | F70: 416.65 | G70: 412.30 | H70: 426.50 | I70: 430.85 | J70: 433.60 | K70: 428.1 | L70: 421 | M70: 3.72685
A71: 62 | B71: DLF | C71: 146.55 | D71: 147.58 | E71: 144.77 | F71: 142.98 | G71: 140.17 | H71: 149.37 | I71: 152.18 | J71: 153.97 | K71: 150.4 | L71: 145.8 | M71: 62.55637
A72: 63 | B72: DABUR | C72: 513.15 | D72: 515.92 | E72: 507.23 | F72: 501.32 | G72: 492.63 | H72: 521.83 | I72: 530.52 | J72: 536.43 | K72: 524.6 | L72: 510 | M72: 52.06548
A73: 64 | B73: DALBHARAT | C73: 773.5 | D73: 779.68 | E73: 765.17 | F73: 756.83 | G73: 742.32 | H73: 788.02 | I73: 802.53 | J73: 810.87 | K73: 794.2 | L73: 771.35 | M73: 0.60225
A74: 65 | B74: DIVISLAB | C74: 3131.45 | D74: 3129.07 | E74: 3089.38 | F74: 3047.32 | G74: 3007.63 | H74: 3171.13 | I74: 3210.82 | J74: 3252.88 | K74: 3168.75 | L74: 3087 | M74: 27.31084
A75: 66 | B75: LALPATHLAB | C75: 1862.7 | D75: 1871.23 | E75: 1842.47 | F75: 1822.23 | G75: 1793.47 | H75: 1891.47 | I75: 1920.23 | J75: 1940.47 | K75: 1900 | L75: 1851 | M75: 0.37537
A76: 67 | B76: DRREDDY | C76: 4595.9 | D76: 4633.15 | E76: 4527.75 | F76: 4459.60 | G76: 4354.20 | H76: 4701.30 | I76: 4806.70 | J76: 4874.85 | K76: 4738.55 | L76: 4565 | M76: 12.91535
A77: 68 | B77: EDELWEISS | C77: 78.5 | D77: 79.17 | E77: 77.53 | F77: 76.57 | G77: 74.93 | H77: 80.13 | I77: 81.77 | J77: 82.73 | K77: 80.8 | L77: 78.2 | M77: 14.62672
A78: 69 | B78: EICHERMOT | C78: 21442.65 | D78: 21454.22 | E78: 21238.43 | F78: 21034.22 | G78: 20818.43 | H78: 21658.43 | I78: 21874.22 | J78: 22078.43 | K78: 21670 | L78: 21250 | M78: 1.6191
A79: 70 | B79: EMAMILTD | C79: 333.5 | D79: 327.40 | E79: 317.10 | F79: 300.70 | G79: 290.40 | H79: 343.80 | I79: 354.10 | J79: 370.50 | K79: 337.7 | L79: 311 | M79: 60.66485
A80: 71 | B80: ENDURANCE | C80: 983 | D80: 981.80 | E80: 969.20 | F80: 955.40 | G80: 942.80 | H80: 995.60 | I80: 1008.20 | J80: 1022.00 | K80: 994.4 | L80: 968 | M80: 0.50273
A81: 72 | B81: ESCORTS | C81: 1118.8 | D81: 1124.57 | E81: 1106.48 | F81: 1094.17 | G81: 1076.08 | H81: 1136.88 | I81: 1154.97 | J81: 1167.28 | K81: 1142.65 | L81: 1112.25 | M81: 10.6818
A82: 73 | B82: EXIDEIND | C82: 162.9 | D82: 163.28 | E82: 161.12 | F82: 159.33 | G82: 157.17 | H82: 165.07 | I82: 167.23 | J82: 169.02 | K82: 165.45 | L82: 161.5 | M82: 20.34824
A83: 74 | B83: FEDERALBNK | C83: 54.3 | D83: 54.13 | E83: 53.77 | F83: 53.23 | G83: 52.87 | H83: 54.67 | I83: 55.03 | J83: 55.57 | K83: 54.5 | L83: 53.6 | M83: 254.79162
A84: 75 | B84: FORTIS | C84: 136.5 | D84: 137.42 | E84: 135.13 | F84: 133.77 | G84: 131.48 | H84: 138.78 | I84: 141.07 | J84: 142.43 | K84: 139.7 | L84: 136.05 | M84: 5.68173
A85: 76 | B85: FRETAIL | C85: 104.85 | D85: 106.05 | E85: 103.30 | F85: 101.75 | G85: 99.00 | H85: 107.60 | I85: 110.35 | J85: 111.90 | K85: 108.8 | L85: 104.5 | M85: 27.32495
A86: 77 | B86: GAIL | C86: 97.3 | D86: 97.70 | E86: 96.60 | F86: 95.90 | G86: 94.80 | H86: 98.40 | I86: 99.50 | J86: 100.20 | K86: 98.8 | L86: 97 | M86: 91.40943
A87: 78 | B87: GMRINFRA | C87: 21.15 | D87: 21.42 | E87: 20.83 | F87: 20.52 | G87: 19.93 | H87: 21.73 | I87: 22.32 | J87: 22.63 | K87: 22 | L87: 21.1 | M87: 71.88295
A88: 79 | B88: GICRE | C88: 146.9 | D88: 147.78 | E88: 143.97 | F88: 141.03 | G88: 137.22 | H88: 150.72 | I88: 154.53 | J88: 157.47 | K88: 151.6 | L88: 144.85 | M88: 3.58376
A89: 80 | B89: GLENMARK | C89: 477.05 | D89: 475.62 | E89: 471.68 | F89: 466.32 | G89: 462.38 | H89: 480.98 | I89: 484.92 | J89: 490.28 | K89: 479.55 | L89: 470.25 | M89: 52.63264
A90: 81 | B90: GODREJAGRO | C90: 468.6 | D90: 467.88 | E90: 461.77 | F90: 454.93 | G90: 448.82 | H90: 474.72 | I90: 480.83 | J90: 487.67 | K90: 474 | L90: 461.05 | M90: 2.56334
A91: 82 | B91: GODREJCP | C91: 687.8 | D91: 688.20 | E91: 680.45 | F91: 673.10 | G91: 665.35 | H91: 695.55 | I91: 703.30 | J91: 710.65 | K91: 695.95 | L91: 680.85 | M91: 6.72208
A92: 83 | B92: GODREJIND | C92: 382.7 | D92: 385.50 | E92: 377.20 | F92: 371.70 | G92: 363.40 | H92: 391.00 | I92: 399.30 | J92: 404.80 | K92: 393.8 | L92: 380 | M92: 1.50189
A93: 84 | B93: GODREJPROP | C93: 893.15 | D93: 895.18 | E93: 886.82 | F93: 880.48 | G93: 872.12 | H93: 901.52 | I93: 909.88 | J93: 916.22 | K93: 903.55 | L93: 888.85 | M93: 1.22617
A94: 85 | B94: GRASIM | C94: 624.25 | D94: 628.08 | E94: 615.22 | F94: 606.18 | G94: 593.32 | H94: 637.12 | I94: 649.98 | J94: 659.02 | K94: 640.95 | L94: 619.05 | M94: 20.6153
A95: 86 | B95: GUJGASLTD | C95: 311.85 | D95: 313.95 | E95: 307.40 | F95: 302.95 | G95: 296.40 | H95: 318.40 | I95: 324.95 | J95: 329.40 | K95: 320.5 | L95: 309.5 | M95: 12.4588
A96: 87 | B96: GSPL | C96: 216.65 | D96: 216.13 | E96: 212.77 | F96: 208.88 | G96: 205.52 | H96: 220.02 | I96: 223.38 | J96: 227.27 | K96: 219.5 | L96: 212.25 | M96: 33.72372
A97: 88 | B97: HCLTECH | C97: 683.8 | D97: 688.75 | E97: 676.55 | F97: 669.30 | G97: 657.10 | H97: 696.00 | I97: 708.20 | J97: 715.45 | K97: 700.95 | L97: 681.5 | M97: 39.56472
A98: 89 | B98: HDFCAMC | C98: 2342.2 | D98: 2352.40 | E98: 2326.80 | F98: 2311.40 | G98: 2285.80 | H98: 2367.80 | I98: 2393.40 | J98: 2408.80 | K98: 2378 | L98: 2337 | M98: 4.23447
A99: 90 | B99: HDFCBANK | C99: 1066.65 | D99: 1062.05 | E99: 1053.10 | F99: 1039.55 | G99: 1030.60 | H99: 1075.60 | I99: 1084.55 | J99: 1098.10 | K99: 1071 | L99: 1048.5 | M99: 100.6815
A100: 91 | B100: HDFCLIFE | C100: 608.75 | D100: 609.58 | E100: 605.27 | F100: 601.78 | G100: 597.47 | H100: 613.07 | I100: 617.38 | J100: 620.87 | K100: 613.9 | L100: 606.1 | M100: 15.39726
A101: 92 | B101: HAVELLS | C101: 605.9 | D101: 610.28 | E101: 599.67 | F101: 593.43 | G101: 582.82 | H101: 616.52 | I101: 627.13 | J101: 633.37 | K101: 620.9 | L101: 604.05 | M101: 23.7019
A102: 93 | B102: HEROMOTOCO | C102: 2712.85 | D102: 2730.62 | E102: 2686.23 | F102: 2659.62 | G102: 2615.23 | H102: 2757.23 | I102: 2801.62 | J102: 2828.23 | K102: 2775 | L102: 2704 | M102: 16.17217
A103: 94 | B103: HEXAWARE | C103: 404.7 | D103: 407.10 | E103: 396.70 | F103: 388.70 | G103: 378.30 | H103: 415.10 | I103: 425.50 | J103: 433.50 | K103: 417.5 | L103: 399.1 | M103: 16.43827
A104: 95 | B104: HINDALCO | C104: 178.95 | D104: 181.18 | E104: 175.77 | F104: 172.58 | G104: 167.17 | H104: 184.37 | I104: 189.78 | J104: 192.97 | K104: 186.6 | L104: 178 | M104: 304.0557
A105: 96 | B105: HINDPETRO | C105: 215.25 | D105: 216.02 | E105: 212.73 | F105: 210.22 | G105: 206.93 | H105: 218.53 | I105: 221.82 | J105: 224.33 | K105: 219.3 | L105: 213.5 | M105: 84.98111
A106: 97 | B106: HINDUNILVR | C106: 2210.65 | D106: 2216.55 | E106: 2200.10 | F106: 2189.55 | G106: 2173.10 | H106: 2227.10 | I106: 2243.55 | J106: 2254.10 | K106: 2233 | L106: 2206 | M106: 16.65204
A107: 98 | B107: HINDZINC | C107: 246.8 | D107: 249.68 | E107: 240.42 | F107: 234.03 | G107: 224.77 | H107: 256.07 | I107: 265.33 | J107: 271.72 | K107: 258.95 | L107: 243.3 | M107: 49.32756
A108: 99 | B108: HUDCO | C108: 35.7 | D108: 35.80 | E108: 35.25 | F108: 34.80 | G108: 34.25 | H108: 36.25 | I108: 36.80 | J108: 37.25 | K108: 36.35 | L108: 35.35 | M108: 16.81281
A109: 100 | B109: HDFC | C109: 1826.75 | D109: 1828.00 | E109: 1809.25 | F109: 1791.75 | G109: 1773.00 | H109: 1845.50 | I109: 1864.25 | J109: 1881.75 | K109: 1846.75 | L109: 1810.5 | M109: 49.44312
A110: 101 | B110: ICICIBANK | C110: 367.35 | D110: 368.57 | E110: 362.83 | F110: 358.32 | G110: 352.58 | H110: 373.08 | I110: 378.82 | J110: 383.33 | K110: 374.3 | L110: 364.05 | M110: 454.46756
A111: 102 | B111: ICICIGI | C111: 1348.9 | D111: 1363.42 | E111: 1320.48 | F111: 1292.07 | G111: 1249.13 | H111: 1391.83 | I111: 1434.77 | J111: 1463.18 | K111: 1406.35 | L111: 1335 | M111: 3.70518
A112: 103 | B112: ICICIPRULI | C112: 477.2 | D112: 479.75 | E112: 472.50 | F112: 467.80 | G112: 460.55 | H112: 484.45 | I112: 491.70 | J112: 496.40 | K112: 487 | L112: 475.05 | M112: 14.98774
A113: 104 | B113: IDBI | C113: 39.8 | D113: 40.03 | E113: 39.32 | F113: 38.83 | G113: 38.12 | H113: 40.52 | I113: 41.23 | J113: 41.72 | K113: 40.75 | L113: 39.55 | M113: 33.78612
A114: 105 | B114: IDFCFIRSTB | C114: 30.3 | D114: 29.72 | E114: 28.88 | F114: 27.47 | G114: 26.63 | H114: 31.13 | I114: 31.97 | J114: 33.38 | K114: 30.55 | L114: 28.3 | M114: 943.28391
A115: 106 | B115: ITC | C115: 203.05 | D115: 203.58 | E115: 199.47 | F115: 195.88 | G115: 191.77 | H115: 207.17 | I115: 211.28 | J115: 214.87 | K115: 207.7 | L115: 200 | M115: 551.43098
A116: 107 | B116: IBULHSGFIN | C116: 214.7 | D116: 213.80 | E116: 207.15 | F116: 199.60 | G116: 192.95 | H116: 221.35 | I116: 228.00 | J116: 235.55 | K116: 220.45 | L116: 206.25 | M116: 373.60417
A117: 108 | B117: IBVENTURES | C117: 155.55 | D117: 154.68 | E117: 146.87 | F117: 138.18 | G117: 130.37 | H117: 163.37 | I117: 171.18 | J117: 179.87 | K117: 162.5 | L117: 146 | M117: 35.64097
A118: 109 | B118: INDHOTEL | C118: 83.55 | D118: 82.95 | E118: 81.10 | F118: 78.65 | G118: 76.80 | H118: 85.40 | I118: 87.25 | J118: 89.70 | K118: 84.8 | L118: 80.5 | M118: 179.37792
A119: 110 | B119: IOC | C119: 87.05 | D119: 87.38 | E119: 86.57 | F119: 86.08 | G119: 85.27 | H119: 87.87 | I119: 88.68 | J119: 89.17 | K119: 88.2 | L119: 86.9 | M119: 167.1703
A120: 111 | B120: IRCTC | C120: 1372.05 | D120: 1357.13 | E120: 1329.97 | F120: 1287.88 | G120: 1260.72 | H120: 1399.22 | I120: 1426.38 | J120: 1468.47 | K120: 1384.3 | L120: 1315.05 | M120: 11.09433
A121: 112 | B121: IGL | C121: 389.3 | D121: 390.37 | E121: 386.23 | F121: 383.17 | G121: 379.03 | H121: 393.43 | I121: 397.57 | J121: 400.63 | K121: 394.5 | L121: 387.3 | M121: 23.41903
A122: 113 | B122: INDUSINDBK | C122: 522 | D122: 518.75 | E122: 512.60 | F122: 503.20 | G122: 497.05 | H122: 528.15 | I122: 534.30 | J122: 543.70 | K122: 524.9 | L122: 509.35 | M122: 117.02721
A123: 114 | B123: NAUKRI | C123: 3390.95 | D123: 3435.40 | E123: 3335.55 | F123: 3280.15 | G123: 3180.30 | H123: 3490.80 | I123: 3590.65 | J123: 3646.05 | K123: 3535.25 | L123: 3380 | M123: 4.47906
A124: 115 | B124: INFY | C124: 948.45 | D124: 952.18 | E124: 942.37 | F124: 936.28 | G124: 926.47 | H124: 958.27 | I124: 968.08 | J124: 974.17 | K124: 962 | L124: 946.1 | M124: 68.02508
A125: 116 | B125: INDIGO | C125: 939.65 | D125: 947.17 | E125: 929.08 | F125: 918.52 | G125: 900.43 | H125: 957.73 | I125: 975.82 | J125: 986.38 | K125: 965.25 | L125: 936.6 | M125: 12.11111
A126: 117 | B126: IPCALAB | C126: 2005.95 | D126: 2049.30 | E126: 1941.65 | F126: 1877.35 | G126: 1769.70 | H126: 2113.60 | I126: 2221.25 | J126: 2285.55 | K126: 2156.95 | L126: 1985 | M126: 13.53673
A127: 118 | B127: JSWENERGY | C127: 50.45 | D127: 50.88 | E127: 49.77 | F127: 49.08 | G127: 47.97 | H127: 51.57 | I127: 52.68 | J127: 53.37 | K127: 52 | L127: 50.2 | M127: 19.11235
A128: 119 | B128: JSWSTEEL | C128: 253.75 | D128: 251.85 | E128: 248.20 | F128: 242.65 | G128: 239.00 | H128: 257.40 | I128: 261.05 | J128: 266.60 | K128: 255.5 | L128: 246.3 | M128: 151.24909
A129: 120 | B129: JINDALSTEL | C129: 211.05 | D129: 209.93 | E129: 203.12 | F129: 195.18 | G129: 188.37 | H129: 217.87 | I129: 224.68 | J129: 232.62 | K129: 216.75 | L129: 202 | M129: 265.91658
A130: 121 | B130: JUBLFOOD | C130: 1883.4 | D130: 1883.80 | E130: 1865.60 | F130: 1847.80 | G130: 1829.60 | H130: 1901.60 | I130: 1919.80 | J130: 1937.60 | K130: 1902 | L130: 1866 | M130: 5.15405
A131: 122 | B131: JUBILANT | C131: 839.25 | D131: 852.15 | E131: 821.10 | F131: 802.95 | G131: 771.90 | H131: 870.30 | I131: 901.35 | J131: 919.50 | K131: 883.2 | L131: 834 | M131: 5.29785
A132: 123 | B132: KOTAKBANK | C132: 1364.6 | D132: 1368.92 | E132: 1352.83 | F132: 1341.07 | G132: 1324.98 | H132: 1380.68 | I132: 1396.77 | J132: 1408.53 | K132: 1385 | L132: 1357.15 | M132: 25.02993
A133: 124 | B133: L&TFH | C133: 64 | D133: 64.08 | E133: 63.42 | F133: 62.83 | G133: 62.17 | H133: 64.67 | I133: 65.33 | J133: 65.92 | K133: 64.75 | L133: 63.5 | M133: 81.96902
A134: 125 | B134: LTTS | C134: 1589.75 | D134: 1608.13 | E134: 1563.27 | F134: 1536.78 | G134: 1491.92 | H134: 1634.62 | I134: 1679.48 | J134: 1705.97 | K134: 1653 | L134: 1581.65 | M134: 1.76501
A135: 126 | B135: LICHSGFIN | C135: 267.15 | D135: 268.03 | E135: 263.17 | F135: 259.18 | G135: 254.32 | H135: 272.02 | I135: 276.88 | J135: 280.87 | K135: 272.9 | L135: 264.05 | M135: 66.04731
A136: 127 | B136: LTI | C136: 2516.45 | D136: 2503.27 | E136: 2476.53 | F136: 2436.62 | G136: 2409.88 | H136: 2543.18 | I136: 2569.92 | J136: 2609.83 | K136: 2530 | L136: 2463.35 | M136: 2.80185
A137: 128 | B137: LT | C137: 961.9 | D137: 966.23 | E137: 952.77 | F137: 943.63 | G137: 930.17 | H137: 975.37 | I137: 988.83 | J137: 997.97 | K137: 979.7 | L137: 957.1 | M137: 54.27537
A138: 129 | B138: LUPIN | C138: 957.5 | D138: 957.35 | E138: 945.15 | F138: 932.80 | G138: 920.60 | H138: 969.70 | I138: 981.90 | J138: 994.25 | K138: 969.55 | L138: 945 | M138: 60.23045
A139: 130 | B139: MRF | C139: 61460.45 | D139: 61780.15 | E139: 61070.30 | F139: 60680.15 | G139: 59970.30 | H139: 62170.30 | I139: 62880.15 | J139: 63270.30 | K139: 62490 | L139: 61390 | M139: 0.09749
A140: 131 | B140: MGL | C140: 971.25 | D140: 976.97 | E140: 961.83 | F140: 952.42 | G140: 937.28 | H140: 986.38 | I140: 1001.52 | J140: 1010.93 | K140: 992.1 | L140: 967.55 | M140: 10.79422
A141: 132 | B141: M&MFIN | C141: 132.15 | D141: 133.13 | E141: 130.87 | F141: 129.58 | G141: 127.32 | H141: 134.42 | I141: 136.68 | J141: 137.97 | K141: 135.4 | L141: 131.85 | M141: 51.78824
A142: 133 | B142: M&M | C142: 629.55 | D142: 630.85 | E142: 621.10 | F142: 612.65 | G142: 602.90 | H142: 639.30 | I142: 649.05 | J142: 657.50 | K142: 640.6 | L142: 622.4 | M142: 51.28839
A143: 134 | B143: MANAPPURAM | C143: 157.5 | D143: 157.95 | E143: 155.85 | F143: 154.20 | G143: 152.10 | H143: 159.60 | I143: 161.70 | J143: 163.35 | K143: 160.05 | L143: 156.3 | M143: 61.82878
A144: 135 | B144: MRPL | C144: 33.9 | D144: 34.17 | E144: 33.43 | F144: 32.97 | G144: 32.23 | H144: 34.63 | I144: 35.37 | J144: 35.83 | K144: 34.9 | L144: 33.7 | M144: 19.24141
A145: 136 | B145: MARICO | C145: 370.6 | D145: 372.70 | E145: 367.00 | F145: 363.40 | G145: 357.70 | H145: 376.30 | I145: 382.00 | J145: 385.60 | K145: 378.4 | L145: 369.1 | M145: 36.76049
A146: 137 | B146: MARUTI | C146: 6649.2 | D146: 6657.90 | E146: 6602.30 | F146: 6555.40 | G146: 6499.80 | H146: 6704.80 | I146: 6760.40 | J146: 6807.30 | K146: 6713.5 | L146: 6611 | M146: 8.80811
A147: 138 | B147: MFSL | C147: 530.2 | D147: 532.40 | E147: 526.90 | F147: 523.60 | G147: 518.10 | H147: 535.70 | I147: 541.20 | J147: 544.50 | K147: 537.9 | L147: 529.1 | M147: 5.64583
A148: 139 | B148: MINDTREE | C148: 1116.75 | D148: 1128.25 | E148: 1100.35 | F148: 1083.95 | G148: 1056.05 | H148: 1144.65 | I148: 1172.55 | J148: 1188.95 | K148: 1156.15 | L148: 1111.85 | M148: 4.09791
A149: 140 | B149: MOTHERSUMI | C149: 107.65 | D149: 106.07 | E149: 102.83 | F149: 98.02 | G149: 94.78 | H149: 110.88 | I149: 114.12 | J149: 118.93 | K149: 109.3 | L149: 101.25 | M149: 535.54161
A150: 141 | B150: MPHASIS | C150: 1208.6 | D150: 1206.92 | E150: 1183.83 | F150: 1159.07 | G150: 1135.98 | H150: 1231.68 | I150: 1254.77 | J150: 1279.53 | K150: 1230 | L150: 1182.15 | M150: 4.30857
A151: 142 | B151: MUTHOOTFIN | C151: 1174.2 | D151: 1175.43 | E151: 1160.97 | F151: 1147.73 | G151: 1133.27 | H151: 1188.67 | I151: 1203.13 | J151: 1216.37 | K151: 1189.9 | L151: 1162.2 | M151: 17.09219
A152: 143 | B152: NATCOPHARM | C152: 865.45 | D152: 865.85 | E152: 836.70 | F152: 807.95 | G152: 778.80 | H152: 894.60 | I152: 923.75 | J152: 952.50 | K152: 895 | L152: 837.1 | M152: 15.6576
A153: 144 | B153: NHPC | C153: 20.3 | D153: 20.37 | E153: 20.18 | F153: 20.07 | G153: 19.88 | H153: 20.48 | I153: 20.67 | J153: 20.78 | K153: 20.55 | L153: 20.25 | M153: 17.9378
A154: 145 | B154: NIITTECH | C154: 1977.8 | D154: 2006.95 | E154: 1934.90 | F154: 1892.00 | G154: 1819.95 | H154: 2049.85 | I154: 2121.90 | J154: 2164.80 | K154: 2079 | L154: 1964.05 | M154: 12.78515
A155: 146 | B155: NMDC | C155: 93.25 | D155: 93.13 | E155: 92.02 | F155: 90.78 | G155: 89.67 | H155: 94.37 | I155: 95.48 | J155: 96.72 | K155: 94.25 | L155: 91.9 | M155: 117.64142
A156: 147 | B156: NTPC | C156: 88.25 | D156: 88.55 | E156: 87.50 | F156: 86.75 | G156: 85.70 | H156: 89.30 | I156: 90.35 | J156: 91.10 | K156: 89.6 | L156: 87.8 | M156: 111.80571
A157: 148 | B157: NATIONALUM | C157: 35.5 | D157: 35.62 | E157: 34.88 | F157: 34.27 | G157: 33.53 | H157: 36.23 | I157: 36.97 | J157: 37.58 | K157: 36.35 | L157: 35 | M157: 185.75322
A158: 149 | B158: NESTLEIND | C158: 16622.8 | D158: 16663.15 | E158: 16540.65 | F158: 16458.50 | G158: 16336.00 | H158: 16745.30 | I158: 16867.80 | J158: 16949.95 | K158: 16785.65 | L158: 16581 | M158: 0.37873
A159: 150 | B159: NAM-INDIA | C159: 270.65 | D159: 273.63 | E159: 267.07 | F159: 263.48 | G159: 256.92 | H159: 277.22 | I159: 283.78 | J159: 287.37 | K159: 280.2 | L159: 270.05 | M159: 6.74052
A160: 151 | B160: OBEROIRLTY | C160: 362.25 | D160: 367.43 | E160: 355.82 | F160: 349.38 | G160: 337.77 | H160: 373.87 | I160: 385.48 | J160: 391.92 | K160: 379.05 | L160: 361 | M160: 1.49169
A161: 152 | B161: ONGC | C161: 78.45 | D161: 78.88 | E161: 77.77 | F161: 77.08 | G161: 75.97 | H161: 79.57 | I161: 80.68 | J161: 81.37 | K161: 80 | L161: 78.2 | M161: 108.3577
A162: 153 | B162: OIL | C162: 95.5 | D162: 95.68 | E162: 95.02 | F162: 94.53 | G162: 93.87 | H162: 96.17 | I162: 96.83 | J162: 97.32 | K162: 96.35 | L162: 95.2 | M162: 4.36476
A163: 154 | B163: OFSS | C163: 2959.95 | D163: 2958.35 | E163: 2923.60 | F163: 2887.25 | G163: 2852.50 | H163: 2994.70 | I163: 3029.45 | J163: 3065.80 | K163: 2993.1 | L163: 2922 | M163: 0.50896
A164: 155 | B164: PIIND | C164: 1904.55 | D164: 1917.50 | E164: 1882.05 | F164: 1859.55 | G164: 1824.10 | H164: 1940.00 | I164: 1975.45 | J164: 1997.95 | K164: 1952.95 | L164: 1895 | M164: 2.67733
A165: 156 | B165: PNBHOUSING | C165: 239.55 | D165: 242.93 | E165: 234.87 | F165: 230.18 | G165: 222.12 | H165: 247.62 | I165: 255.68 | J165: 260.37 | K165: 251 | L165: 238.25 | M165: 14.10087
A166: 157 | B166: PAGEIND | C166: 18901.9 | D166: 18853.75 | E166: 18690.55 | F166: 18479.20 | G166: 18316.00 | H166: 19065.10 | I166: 19228.30 | J166: 19439.65 | K166: 19016.95 | L166: 18642.4 | M166: 0.20884
A167: 158 | B167: PETRONET | C167: 246.8 | D167: 250.13 | E167: 242.37 | F167: 237.93 | G167: 230.17 | H167: 254.57 | I167: 262.33 | J167: 266.77 | K167: 257.9 | L167: 245.7 | M167: 34.41281
A168: 159 | B168: PFIZER | C168: 4609.4 | D168: 4627.12 | E168: 4562.28 | F168: 4515.17 | G168: 4450.33 | H168: 4674.23 | I168: 4739.07 | J168: 4786.18 | K168: 4691.95 | L168: 4580 | M168: 0.72542
A169: 160 | B169: PIDILITIND | C169: 1380 | D169: 1389.10 | E169: 1368.20 | F169: 1356.40 | G169: 1335.50 | H169: 1400.90 | I169: 1421.80 | J169: 1433.60 | K169: 1410 | L169: 1377.3 | M169: 7.46479
A170: 161 | B170: PEL | C170: 1473.75 | D170: 1479.72 | E170: 1454.43 | F170: 1435.12 | G170: 1409.83 | H170: 1499.03 | I170: 1524.32 | J170: 1543.63 | K170: 1505 | L170: 1460.4 | M170: 10.96522
A171: 162 | B171: POLYCAB | C171: 846.5 | D171: 852.80 | E171: 836.70 | F171: 826.90 | G171: 810.80 | H171: 862.60 | I171: 878.70 | J171: 888.50 | K171: 868.9 | L171: 843 | M171: 1.53459
A172: 163 | B172: PFC | C172: 90.05 | D172: 90.12 | E172: 88.88 | F172: 87.72 | G172: 86.48 | H172: 91.28 | I172: 92.52 | J172: 93.68 | K172: 91.35 | L172: 88.95 | M172: 139.9603
A173: 164 | B173: POWERGRID | C173: 176.85 | D173: 178.25 | E173: 174.15 | F173: 171.45 | G173: 167.35 | H173: 180.95 | I173: 185.05 | J173: 187.75 | K173: 182.35 | L173: 175.55 | M173: 122.81375
A174: 165 | B174: PRESTIGE | C174: 238.55 | D174: 238.83 | E174: 233.77 | F174: 228.98 | G174: 223.92 | H174: 243.62 | I174: 248.68 | J174: 253.47 | K174: 243.9 | L174: 234.05 | M174: 12.24243
A175: 166 | B175: PGHH | C175: 10198.25 | D175: 10241.62 | E175: 10141.63 | F175: 10085.02 | G175: 9985.03 | H175: 10298.23 | I175: 10398.22 | J175: 10454.83 | K175: 10341.6 | L175: 10185 | M175: 0.13363
A176: 167 | B176: PNB | C176: 32.85 | D176: 32.82 | E176: 32.53 | F176: 32.22 | G176: 31.93 | H176: 33.13 | I176: 33.42 | J176: 33.73 | K176: 33.1 | L176: 32.5 | M176: 160.7625
A177: 168 | B177: QUESS | C177: 369.2 | D177: 369.82 | E177: 364.63 | F177: 360.07 | G177: 354.88 | H177: 374.38 | I177: 379.57 | J177: 384.13 | K177: 375 | L177: 365.25 | M177: 1.22933
A178: 169 | B178: RBLBANK | C178: 185.2 | D178: 184.60 | E178: 182.70 | F178: 180.20 | G178: 178.30 | H178: 187.10 | I178: 189.00 | J178: 191.50 | K178: 186.5 | L178: 182.1 | M178: 215.7215
A179: 170 | B179: RECLTD | C179: 105.75 | D179: 106.75 | E179: 104.50 | F179: 103.25 | G179: 101.00 | H179: 108.00 | I179: 110.25 | J179: 111.50 | K179: 109 | L179: 105.5 | M179: 74.28387
A180: 171 | B180: RAJESHEXPO | C180: 462.3 | D180: 463.75 | E180: 459.55 | F180: 456.80 | G180: 452.60 | H180: 466.50 | I180: 470.70 | J180: 473.45 | K180: 467.95 | L180: 461 | M180: 0.56888
A181: 172 | B181: RELIANCE | C181: 2133.8 | D181: 2131.38 | E181: 2102.77 | F181: 2071.73 | G181: 2043.12 | H181: 2162.42 | I181: 2191.03 | J181: 2222.07 | K181: 2160 | L181: 2100.35 | M181: 216.11359
A182: 173 | B182: SBICARD | C182: 780.35 | D182: 777.42 | E182: 763.93 | F182: 747.52 | G182: 734.03 | H182: 793.83 | I182: 807.32 | J182: 823.73 | K182: 790.9 | L182: 761 | M182: 39.56863
A183: 174 | B183: SBILIFE | C183: 860.6 | D183: 865.37 | E183: 852.73 | F183: 844.87 | G183: 832.23 | H183: 873.23 | I183: 885.87 | J183: 893.73 | K183: 878 | L183: 857.5 | M183: 9.71872
A184: 175 | B184: SRF | C184: 4159.4 | D184: 4205.78 | E184: 4103.62 | F184: 4047.83 | G184: 3945.67 | H184: 4261.57 | I184: 4363.73 | J184: 4419.52 | K184: 4307.95 | L184: 4150 | M184: 5.46339
A185: 176 | B185: SHREECEM | C185: 21551.6 | D185: 21621.18 | E185: 21252.42 | F185: 20953.23 | G185: 20584.47 | H185: 21920.37 | I185: 22289.13 | J185: 22588.32 | K185: 21989.95 | L185: 21322 | M185: 1.88583
A186: 177 | B186: SRTRANSFIN | C186: 675.35 | D186: 674.28 | E186: 666.57 | F186: 657.78 | G186: 650.07 | H186: 683.07 | I186: 690.78 | J186: 699.57 | K186: 682 | L186: 665.5 | M186: 20.81802
A187: 178 | B187: SIEMENS | C187: 1158.3 | D187: 1152.78 | E187: 1132.57 | F187: 1106.83 | G187: 1086.62 | H187: 1178.52 | I187: 1198.73 | J187: 1224.47 | K187: 1173 | L187: 1127.05 | M187: 10.30239
A188: 179 | B188: SBIN | C188: 195.05 | D188: 195.20 | E188: 193.60 | F188: 192.15 | G188: 190.55 | H188: 196.65 | I188: 198.25 | J188: 199.70 | K188: 196.8 | L188: 193.75 | M188: 438.92064
A189: 180 | B189: SAIL | C189: 38.9 | D189: 39.32 | E189: 37.83 | F189: 36.77 | G189: 35.28 | H189: 40.38 | I189: 41.87 | J189: 42.93 | K189: 40.8 | L189: 38.25 | M189: 750.6649
A190: 181 | B190: SUNPHARMA | C190: 541.05 | D190: 541.92 | E190: 534.23 | F190: 527.42 | G190: 519.73 | H190: 548.73 | I190: 556.42 | J190: 563.23 | K190: 549.6 | L190: 535.1 | M190: 77.7409
A191: 182 | B191: SUNTV | C191: 397 | D191: 399.92 | E191: 392.33 | F191: 387.67 | G191: 380.08 | H191: 404.58 | I191: 412.17 | J191: 416.83 | K191: 407.5 | L191: 395.25 | M191: 32.09863
A192: 183 | B192: SYNGENE | C192: 492.15 | D192: 491.13 | E192: 482.27 | F192: 472.38 | G192: 463.52 | H192: 501.02 | I192: 509.88 | J192: 519.77 | K192: 500 | L192: 481.25 | M192: 10.05991
A193: 184 | B193: TVSMOTOR | C193: 416.9 | D193: 418.02 | E193: 412.03 | F193: 407.17 | G193: 401.18 | H193: 422.88 | I193: 428.87 | J193: 433.73 | K193: 424 | L193: 413.15 | M193: 22.06472
A194: 185 | B194: TCS | C194: 2279.9 | D194: 2289.17 | E194: 2266.33 | F194: 2252.77 | G194: 2229.93 | H194: 2302.73 | I194: 2325.57 | J194: 2339.13 | K194: 2312 | L194: 2275.6 | M194: 27.74509
A195: 186 | B195: TATACONSUM | C195: 515.9 | D195: 519.37 | E195: 510.83 | F195: 505.77 | G195: 497.23 | H195: 524.43 | I195: 532.97 | J195: 538.03 | K195: 527.9 | L195: 514.3 | M195: 46.90415
A196: 187 | B196: TATAMOTORS | C196: 122.3 | D196: 123.17 | E196: 120.53 | F196: 118.77 | G196: 116.13 | H196: 124.93 | I196: 127.57 | J196: 129.33 | K196: 125.8 | L196: 121.4 | M196: 502.2518
A197: 188 | B197: TATAPOWER | C197: 51.9 | D197: 51.87 | E197: 51.13 | F197: 50.37 | G197: 49.63 | H197: 52.63 | I197: 53.37 | J197: 54.13 | K197: 52.6 | L197: 51.1 | M197: 202.81306
A198: 189 | B198: TATASTEEL | C198: 416.45 | D198: 418.85 | E198: 410.10 | F198: 403.75 | G198: 395.00 | H198: 425.20 | I198: 433.95 | J198: 440.30 | K198: 427.6 | L198: 412.5 | M198: 258.85192
A199: 190 | B199: TECHM | C199: 674.8 | D199: 680.28 | E199: 666.62 | F199: 658.43 | G199: 644.77 | H199: 688.47 | I199: 702.13 | J199: 710.32 | K199: 693.95 | L199: 672.1 | M199: 43.31864
A200: 191 | B200: RAMCOCEM | C200: 698.95 | D200: 694.73 | E200: 683.47 | F200: 667.98 | G200: 656.72 | H200: 710.22 | I200: 721.48 | J200: 736.97 | K200: 706 | L200: 679.25 | M200: 16.5909
A201: 192 | B201: TITAN | C201: 1066.25 | D201: 1067.52 | E201: 1047.33 | F201: 1028.42 | G201: 1008.23 | H201: 1086.43 | I201: 1106.62 | J201: 1125.53 | K201: 1087.7 | L201: 1048.6 | M201: 111.89335
A202: 193 | B202: TORNTPHARM | C202: 2870.4 | D202: 2920.58 | E202: 2809.97 | F202: 2749.53 | G202: 2638.92 | H202: 2981.02 | I202: 3091.63 | J202: 3152.07 | K202: 3031.2 | L202: 2860.15 | M202: 12.18143
A203: 194 | B203: TORNTPOWER | C203: 338.95 | D203: 340.48 | E203: 336.52 | F203: 334.08 | G203: 330.12 | H203: 342.92 | I203: 346.88 | J203: 349.32 | K203: 344.45 | L203: 338.05 | M203: 13.29916
A204: 195 | B204: TRENT | C204: 555.55 | D204: 564.25 | E204: 545.30 | F204: 535.05 | G204: 516.10 | H204: 574.50 | I204: 593.45 | J204: 603.70 | K204: 583.2 | L204: 554 | M204: 4.15248
A205: 196 | B205: UPL | C205: 481.9 | D205: 486.18 | E205: 475.72 | F205: 469.53 | G205: 459.07 | H205: 492.37 | I205: 502.83 | J205: 509.02 | K205: 496.65 | L205: 480 | M205: 43.60609
... 29 more rows

Sheet MidCap Intra
L5: Back To Main Page
A6: FOR INTRA DAY TRADING | K6: =Main!B10 -> 2020-08-12
A9: Sr.no | B9: Scrip | C9: CLOSE RATE | D9: Pivot Point | E9: Supports | H9: Resistances
C10: Point | E10: S1 | F10: S2 | G10: S3 | H10: R1 | I10: R2 | J10: R3 | K10: HIGH | L10: LOW | M10: Total Trade Quanity in Lakhs
A11: 1 | B11: 3MINDIA | C11: 21752.15 | D11: 21950.40 | E11: 21500.80 | F11: 21249.45 | G11: 20799.85 | H11: 22201.75 | I11: 22651.35 | J11: 22902.70 | K11: 22400 | L11: 21699.05 | M11: 0.02791
A12: 2 | B12: AARTIIND | C12: 1026.65 | D12: 1040.28 | E12: 1006.57 | F12: 986.48 | G12: 952.77 | H12: 1060.37 | I12: 1094.08 | J12: 1114.17 | K12: 1074 | L12: 1020.2 | M12: 3.02912
A13: 3 | B13: AAVAS | C13: 1395.8 | D13: 1403.65 | E13: 1322.50 | F13: 1249.20 | G13: 1168.05 | H13: 1476.95 | I13: 1558.10 | J13: 1631.40 | K13: 1484.8 | L13: 1330.35 | M13: 0.39264
A14: 4 | B14: ABB | C14: 903.4 | D14: 904.33 | E14: 891.07 | F14: 878.73 | G14: 865.47 | H14: 916.67 | I14: 929.93 | J14: 942.27 | K14: 917.6 | L14: 892 | M14: 1.65785
A15: 5 | B15: ABBOTINDIA | C15: 16618.65 | D15: 16772.88 | E15: 16345.77 | F15: 16072.88 | G15: 15645.77 | H15: 17045.77 | I15: 17472.88 | J15: 17745.77 | K15: 17200 | L15: 16500 | M15: 0.19111
A16: 6 | B16: ABCAPITAL | C16: 59.05 | D16: 59.42 | E16: 58.13 | F16: 57.22 | G16: 55.93 | H16: 60.33 | I16: 61.62 | J16: 62.53 | K16: 60.7 | L16: 58.5 | M16: 19.94917
A17: 7 | B17: ABFRL | C17: 118 | D17: 118.58 | E17: 117.12 | F17: 116.23 | G17: 114.77 | H17: 119.47 | I17: 120.93 | J17: 121.82 | K17: 120.05 | L17: 117.7 | M17: 11.18533
A18: 8 | B18: ACC | C18: 1412.55 | D18: 1415.87 | E18: 1396.78 | F18: 1381.02 | G18: 1361.93 | H18: 1431.63 | I18: 1450.72 | J18: 1466.48 | K18: 1434.95 | L18: 1400.1 | M18: 10.72947
A19: 9 | B19: ADANIGAS | C19: 158.85 | D19: 160.85 | E19: 156.20 | F19: 153.55 | G19: 148.90 | H19: 163.50 | I19: 168.15 | J19: 170.80 | K19: 165.5 | L19: 158.2 | M19: 9.98797
A20: 10 | B20: ADANIGREEN | C20: 360.65 | D20: 365.75 | E20: 354.90 | F20: 349.15 | G20: 338.30 | H20: 371.50 | I20: 382.35 | J20: 388.10 | K20: 376.6 | L20: 360 | M20: 5.86768
A21: 11 | B21: ADANIPORTS | C21: 335 | D21: 334.15 | E21: 331.55 | F21: 328.10 | G21: 325.50 | H21: 337.60 | I21: 340.20 | J21: 343.65 | K21: 336.75 | L21: 330.7 | M21: 35.04783
A22: 12 | B22: ADANIPOWER | C22: 37.65 | D22: 37.97 | E22: 37.23 | F22: 36.82 | G22: 36.08 | H22: 38.38 | I22: 39.12 | J22: 39.53 | K22: 38.7 | L22: 37.55 | M22: 49.17397
A23: 13 | B23: ADANITRANS | C23: 249.4 | D23: 251.48 | E23: 245.32 | F23: 241.23 | G23: 235.07 | H23: 255.57 | I23: 261.73 | J23: 265.82 | K23: 257.65 | L23: 247.4 | M23: 2.23585
A24: 14 | B24: ADVENZYMES | C24: 209.75 | D24: 212.40 | E24: 205.80 | F24: 201.85 | G24: 195.25 | H24: 216.35 | I24: 222.95 | J24: 226.90 | K24: 219 | L24: 208.45 | M24: 4.62711
A25: 15 | B25: AEGISCHEM | C25: 203.35 | D25: 205.05 | E25: 200.30 | F25: 197.25 | G25: 192.50 | H25: 208.10 | I25: 212.85 | J25: 215.90 | K25: 209.8 | L25: 202 | M25: 1.25076
A26: 16 | B26: AFFLE | C26: 2174.55 | D26: 2176.18 | E26: 2123.37 | F26: 2072.18 | G26: 2019.37 | H26: 2227.37 | I26: 2280.18 | J26: 2331.37 | K26: 2229 | L26: 2125 | M26: 3.50949
A27: 17 | B27: AIAENG | C27: 1603.25 | D27: 1629.40 | E27: 1557.85 | F27: 1512.45 | G27: 1440.90 | H27: 1674.80 | I27: 1746.35 | J27: 1791.75 | K27: 1700.95 | L27: 1584 | M27: 1.22078
A28: 18 | B28: AJANTPHARM | C28: 1676.7 | D28: 1687.02 | E28: 1640.03 | F28: 1603.37 | G28: 1556.38 | H28: 1723.68 | I28: 1770.67 | J28: 1807.33 | K28: 1734 | L28: 1650.35 | M28: 1.48933
A29: 19 | B29: AKZOINDIA | C29: 1993.7 | D29: 1956.90 | E29: 1902.90 | F29: 1812.10 | G29: 1758.10 | H29: 2047.70 | I29: 2101.70 | J29: 2192.50 | K29: 2010.9 | L29: 1866.1 | M29: 0.75232
A30: 20 | B30: ALKEM | C30: 2783.15 | D30: 2856.13 | E30: 2692.02 | F30: 2600.88 | G30: 2436.77 | H30: 2947.27 | I30: 3111.38 | J30: 3202.52 | K30: 3020.25 | L30: 2765 | M30: 4.9373
A31: 21 | B31: ALKYLAMINE | C31: 2691.9 | D31: 2657.00 | E31: 2595.00 | F31: 2498.10 | G31: 2436.10 | H31: 2753.90 | I31: 2815.90 | J31: 2912.80 | K31: 2719 | L31: 2560.1 | M31: 0.76102
A32: 22 | B32: ALLCARGO | C32: 104 | D32: 104.20 | E32: 101.75 | F32: 99.50 | G32: 97.05 | H32: 106.45 | I32: 108.90 | J32: 111.15 | K32: 106.65 | L32: 101.95 | M32: 2.24825
A33: 23 | B33: AMARAJABAT | C33: 742.7 | D33: 745.05 | E33: 734.90 | F33: 727.10 | G33: 716.95 | H33: 752.85 | I33: 763.00 | J33: 770.80 | K33: 755.2 | L33: 737.25 | M33: 7.7199
A34: 24 | B34: AMBER | C34: 1707.45 | D34: 1720.68 | E34: 1687.77 | F34: 1668.08 | G34: 1635.17 | H34: 1740.37 | I34: 1773.28 | J34: 1792.97 | K34: 1753.6 | L34: 1701 | M34: 0.7296
A35: 25 | B35: AMBUJACEM | C35: 222.75 | D35: 224.45 | E35: 219.65 | F35: 216.55 | G35: 211.75 | H35: 227.55 | I35: 232.35 | J35: 235.45 | K35: 229.25 | L35: 221.35 | M35: 69.16437
A36: 26 | B36: APLAPOLLO | C36: 2103.35 | D36: 2118.05 | E36: 2066.10 | F36: 2028.85 | G36: 1976.90 | H36: 2155.30 | I36: 2207.25 | J36: 2244.50 | K36: 2170 | L36: 2080.8 | M36: 0.1863
A37: 27 | B37: APLLTD | C37: 1081.1 | D37: 1089.55 | E37: 1061.80 | F37: 1042.50 | G37: 1014.75 | H37: 1108.85 | I37: 1136.60 | J37: 1155.90 | K37: 1117.3 | L37: 1070.25 | M37: 4.32401
A38: 28 | B38: APOLLOHOSP | C38: 1750.75 | D38: 1762.40 | E38: 1726.85 | F38: 1702.95 | G38: 1667.40 | H38: 1786.30 | I38: 1821.85 | J38: 1845.75 | K38: 1797.95 | L38: 1738.5 | M38: 6.9784
A39: 29 | B39: APOLLOTYRE | C39: 126.05 | D39: 126.60 | E39: 123.75 | F39: 121.45 | G39: 118.60 | H39: 128.90 | I39: 131.75 | J39: 134.05 | K39: 129.45 | L39: 124.3 | M39: 87.128
A40: 30 | B40: ARVINDFASN | C40: 126.25 | D40: 126.17 | E40: 124.13 | F40: 122.02 | G40: 119.98 | H40: 128.28 | I40: 130.32 | J40: 132.43 | K40: 128.2 | L40: 124.05 | M40: 3.46915
A41: 31 | B41: ASAHIINDIA | C41: 197.45 | D41: 199.70 | E41: 193.95 | F41: 190.45 | G41: 184.70 | H41: 203.20 | I41: 208.95 | J41: 212.45 | K41: 205.45 | L41: 196.2 | M41: 0.34647
A42: 32 | B42: ASHOKA | C42: 63.5 | D42: 62.85 | E42: 60.70 | F42: 57.90 | G42: 55.75 | H42: 65.65 | I42: 67.80 | J42: 70.60 | K42: 65 | L42: 60.05 | M42: 50.88971
A43: 33 | B43: ASHOKLEY | C43: 52.2 | D43: 51.73 | E43: 51.07 | F43: 49.93 | G43: 49.27 | H43: 52.87 | I43: 53.53 | J43: 54.67 | K43: 52.4 | L43: 50.6 | M43: 334.77393
A44: 34 | B44: ASIANPAINT | C44: 1789.55 | D44: 1802.45 | E44: 1767.10 | F44: 1744.65 | G44: 1709.30 | H44: 1824.90 | I44: 1860.25 | J44: 1882.70 | K44: 1837.8 | L44: 1780 | M44: 30.39964
A45: 35 | B45: ASTERDM | C45: 135.85 | D45: 137.42 | E45: 132.83 | F45: 129.82 | G45: 125.23 | H45: 140.43 | I45: 145.02 | J45: 148.03 | K45: 142 | L45: 134.4 | M45: 5.96724
A46: 36 | B46: ASTRAL | C46: 1089.9 | D46: 1081.93 | E46: 1054.97 | F46: 1020.03 | G46: 993.07 | H46: 1116.87 | I46: 1143.83 | J46: 1178.77 | K46: 1108.9 | L46: 1047 | M46: 6.42478
A47: 37 | B47: ASTRAZEN | C47: 3332.85 | D47: 3318.95 | E47: 3263.90 | F47: 3194.95 | G47: 3139.90 | H47: 3387.90 | I47: 3442.95 | J47: 3511.90 | K47: 3374 | L47: 3250 | M47: 0.45702
A48: 38 | B48: ATUL | C48: 5265.05 | D48: 5311.63 | E48: 5178.42 | F48: 5091.78 | G48: 4958.57 | H48: 5398.27 | I48: 5531.48 | J48: 5618.12 | K48: 5444.85 | L48: 5225 | M48: 0.28658
A49: 39 | B49: AUBANK | C49: 696.95 | D49: 701.47 | E49: 688.83 | F49: 680.72 | G49: 668.08 | H49: 709.58 | I49: 722.22 | J49: 730.33 | K49: 714.1 | L49: 693.35 | M49: 2.13309
A50: 40 | B50: AUROPHARMA | C50: 944.8 | D50: 947.18 | E50: 929.72 | F50: 914.63 | G50: 897.17 | H50: 962.27 | I50: 979.73 | J50: 994.82 | K50: 964.65 | L50: 932.1 | M50: 51.78964
A51: 41 | B51: AVANTIFEED | C51: 472.3 | D51: 476.85 | E51: 467.25 | F51: 462.20 | G51: 452.60 | H51: 481.90 | I51: 491.50 | J51: 496.55 | K51: 486.45 | L51: 471.8 | M51: 4.13054
A52: 42 | B52: AXISBANK | C52: 448 | D52: 444.40 | E52: 438.90 | F52: 429.80 | G52: 424.30 | H52: 453.50 | I52: 459.00 | J52: 468.10 | K52: 449.9 | L52: 435.3 | M52: 304.6968
A53: 43 | B53: BAJAJ-AUTO | C53: 3007.45 | D53: 3021.07 | E53: 2982.13 | F53: 2956.82 | G53: 2917.88 | H53: 3046.38 | I53: 3085.32 | J53: 3110.63 | K53: 3060 | L53: 2995.75 | M53: 6.96792
A54: 44 | B54: BAJAJCON | C54: 186.8 | D54: 188.35 | E54: 181.35 | F54: 175.90 | G54: 168.90 | H54: 193.80 | I54: 200.80 | J54: 206.25 | K54: 195.35 | L54: 182.9 | M54: 32.96681
A55: 45 | B55: BAJAJELEC | C55: 437.4 | D55: 432.90 | E55: 422.80 | F55: 408.20 | G55: 398.10 | H55: 447.50 | I55: 457.60 | J55: 472.20 | K55: 443 | L55: 418.3 | M55: 8.66074
A56: 46 | B56: BAJAJFINSV | C56: 6440.35 | D56: 6442.45 | E56: 6388.90 | F56: 6337.45 | G56: 6283.90 | H56: 6493.90 | I56: 6547.45 | J56: 6598.90 | K56: 6496 | L56: 6391 | M56: 4.30944
A57: 47 | B57: BAJAJHLDNG | C57: 2725.65 | D57: 2730.83 | E57: 2709.67 | F57: 2693.68 | G57: 2672.52 | H57: 2746.82 | I57: 2767.98 | J57: 2783.97 | K57: 2752 | L57: 2714.85 | M57: 0.17603
A58: 48 | B58: BAJFINANCE | C58: 3457.4 | D58: 3452.22 | E58: 3409.88 | F58: 3362.37 | G58: 3320.03 | H58: 3499.73 | I58: 3542.07 | J58: 3589.58 | K58: 3494.55 | L58: 3404.7 | M58: 55.71895
A59: 49 | B59: BALKRISIND | C59: 1352.9 | D59: 1357.90 | E59: 1342.45 | F59: 1332.00 | G59: 1316.55 | H59: 1368.35 | I59: 1383.80 | J59: 1394.25 | K59: 1373.35 | L59: 1347.45 | M59: 4.48789
A60: 50 | B60: BALMLAWRIE | C60: 115.35 | D60: 115.78 | E60: 114.57 | F60: 113.78 | G60: 112.57 | H60: 116.57 | I60: 117.78 | J60: 118.57 | K60: 117 | L60: 115 | M60: 1.9027
A61: 51 | B61: BALRAMCHIN | C61: 142 | D61: 143.65 | E61: 138.50 | F61: 135.00 | G61: 129.85 | H61: 147.15 | I61: 152.30 | J61: 155.80 | K61: 148.8 | L61: 140.15 | M61: 68.14433
A62: 52 | B62: BANDHANBNK | C62: 300.6 | D62: 299.65 | E62: 294.95 | F62: 289.30 | G62: 284.60 | H62: 305.30 | I62: 310.00 | J62: 315.65 | K62: 304.35 | L62: 294 | M62: 399.08487
A63: 53 | B63: BANKBARODA | C63: 47.1 | D63: 47.40 | E63: 46.40 | F63: 45.70 | G63: 44.70 | H63: 48.10 | I63: 49.10 | J63: 49.80 | K63: 48.4 | L63: 46.7 | M63: 364.66171
A64: 54 | B64: BANKINDIA | C64: 48.15 | D64: 48.45 | E64: 47.60 | F64: 47.05 | G64: 46.20 | H64: 49.00 | I64: 49.85 | J64: 50.40 | K64: 49.3 | L64: 47.9 | M64: 20.31765
A65: 55 | B65: BASF | C65: 1279.8 | D65: 1290.37 | E65: 1264.53 | F65: 1249.27 | G65: 1223.43 | H65: 1305.63 | I65: 1331.47 | J65: 1346.73 | K65: 1316.2 | L65: 1275.1 | M65: 0.66821
A66: 56 | B66: BATAINDIA | C66: 1229.75 | D66: 1235.02 | E66: 1220.03 | F66: 1210.32 | G66: 1195.33 | H66: 1244.73 | I66: 1259.72 | J66: 1269.43 | K66: 1250 | L66: 1225.3 | M66: 11.69503
A67: 57 | B67: BAYERCROP | C67: 5945.95 | D67: 5992.32 | E67: 5884.63 | F67: 5823.32 | G67: 5715.63 | H67: 6053.63 | I67: 6161.32 | J67: 6222.63 | K67: 6100 | L67: 5931 | M67: 0.19616
A68: 58 | B68: BBTC | C68: 1474.4 | D68: 1499.18 | E68: 1437.22 | F68: 1400.03 | G68: 1338.07 | H68: 1536.37 | I68: 1598.33 | J68: 1635.52 | K68: 1561.15 | L68: 1462 | M68: 3.24715
A69: 59 | B69: BDL | C69: 425.15 | D69: 430.82 | E69: 417.83 | F69: 410.52 | G69: 397.53 | H69: 438.13 | I69: 451.12 | J69: 458.43 | K69: 443.8 | L69: 423.5 | M69: 7.72756
A70: 60 | B70: BEL | C70: 105.85 | D70: 107.15 | E70: 103.95 | F70: 102.05 | G70: 98.85 | H70: 109.05 | I70: 112.25 | J70: 114.15 | K70: 110.35 | L70: 105.25 | M70: 214.37613
A71: 61 | B71: BEML | C71: 673.9 | D71: 676.30 | E71: 668.60 | F71: 663.30 | G71: 655.60 | H71: 681.60 | I71: 689.30 | J71: 694.60 | K71: 684 | L71: 671 | M71: 2.55664
A72: 62 | B72: BERGEPAINT | C72: 547.35 | D72: 551.08 | E72: 541.67 | F72: 535.98 | G72: 526.57 | H72: 556.77 | I72: 566.18 | J72: 571.87 | K72: 560.5 | L72: 545.4 | M72: 20.63046
A73: 63 | B73: BHARATFORG | C73: 413.55 | D73: 416.42 | E73: 408.13 | F73: 402.72 | G73: 394.43 | H73: 421.83 | I73: 430.12 | J73: 435.53 | K73: 424.7 | L73: 411 | M73: 29.28453
A74: 64 | B74: BHARATRAS | C74: 10902.3 | D74: 11117.43 | E74: 10534.87 | F74: 10167.43 | G74: 9584.87 | H74: 11484.87 | I74: 12067.43 | J74: 12434.87 | K74: 11700 | L74: 10750 | M74: 0.30298
A75: 65 | B75: BHARTIARTL | C75: 551.1 | D75: 553.93 | E75: 547.37 | F75: 543.63 | G75: 537.07 | H75: 557.67 | I75: 564.23 | J75: 567.97 | K75: 560.5 | L75: 550.2 | M75: 81.37948
A76: 66 | B76: BHEL | C76: 35.75 | D76: 36.03 | E76: 35.32 | F76: 34.88 | G76: 34.17 | H76: 36.47 | I76: 37.18 | J76: 37.62 | K76: 36.75 | L76: 35.6 | M76: 382.75871
A77: 67 | B77: BIOCON | C77: 407.55 | D77: 410.28 | E77: 403.57 | F77: 399.58 | G77: 392.87 | H77: 414.27 | I77: 420.98 | J77: 424.97 | K77: 417 | L77: 406.3 | M77: 53.84759
A78: 68 | B78: BIRLACORPN | C78: 592.4 | D78: 600.10 | E78: 582.40 | F78: 572.40 | G78: 554.70 | H78: 610.10 | I78: 627.80 | J78: 637.80 | K78: 617.8 | L78: 590.1 | M78: 2.59915
A79: 69 | B79: BLISSGVS | C79: 130.45 | D79: 130.92 | E79: 128.33 | F79: 126.22 | G79: 123.63 | H79: 133.03 | I79: 135.62 | J79: 137.73 | K79: 133.5 | L79: 128.8 | M79: 7.31734
A80: 70 | B80: BLUEDART | C80: 1989 | D80: 1999.73 | E80: 1969.47 | F80: 1949.93 | G80: 1919.67 | H80: 2019.27 | I80: 2049.53 | J80: 2069.07 | K80: 2030 | L80: 1980.2 | M80: 0.13857
A81: 71 | B81: BLUESTARCO | C81: 514.95 | D81: 516.53 | E81: 509.67 | F81: 504.38 | G81: 497.52 | H81: 521.82 | I81: 528.68 | J81: 533.97 | K81: 523.4 | L81: 511.25 | M81: 0.83382
A82: 72 | B82: BOMDYEING | C82: 67.75 | D82: 68.33 | E82: 66.47 | F82: 65.18 | G82: 63.32 | H82: 69.62 | I82: 71.48 | J82: 72.77 | K82: 70.2 | L82: 67.05 | M82: 24.86242
A83: 73 | B83: BOSCHLTD | C83: 13262.55 | D83: 13396.45 | E83: 12978.10 | F83: 12693.65 | G83: 12275.30 | H83: 13680.90 | I83: 14099.25 | J83: 14383.70 | K83: 13814.8 | L83: 13112 | M83: 0.88883
A84: 74 | B84: BPCL | C84: 429.25 | D84: 425.95 | E84: 418.90 | F84: 408.55 | G84: 401.50 | H84: 436.30 | I84: 443.35 | J84: 453.70 | K84: 433 | L84: 415.6 | M84: 127.67297
A85: 75 | B85: BRIGADE | C85: 145.95 | D85: 147.65 | E85: 143.30 | F85: 140.65 | G85: 136.30 | H85: 150.30 | I85: 154.65 | J85: 157.30 | K85: 152 | L85: 145 | M85: 3.17948
A86: 76 | B86: BRITANNIA | C86: 3879.55 | D86: 3904.85 | E86: 3839.70 | F86: 3799.85 | G86: 3734.70 | H86: 3944.70 | I86: 4009.85 | J86: 4049.70 | K86: 3970 | L86: 3865 | M86: 4.22055
A87: 77 | B87: BSE | C87: 504 | D87: 503.93 | E87: 497.07 | F87: 490.13 | G87: 483.27 | H87: 510.87 | I87: 517.73 | J87: 524.67 | K87: 510.8 | L87: 497 | M87: 3.07396
A88: 78 | B88: BSOFT | C88: 146.55 | D88: 147.20 | E88: 144.55 | F88: 142.55 | G88: 139.90 | H88: 149.20 | I88: 151.85 | J88: 153.85 | K88: 149.85 | L88: 145.2 | M88: 19.57546
A89: 79 | B89: CADILAHC | C89: 394.75 | D89: 398.78 | E89: 388.97 | F89: 383.18 | G89: 373.37 | H89: 404.57 | I89: 414.38 | J89: 420.17 | K89: 408.6 | L89: 393 | M89: 33.49443
A90: 80 | B90: CANBK | C90: 101.35 | D90: 101.50 | E90: 100.40 | F90: 99.45 | G90: 98.35 | H90: 102.45 | I90: 103.55 | J90: 104.50 | K90: 102.6 | L90: 100.55 | M90: 42.17704
A91: 81 | B91: CANFINHOME | C91: 373.55 | D91: 377.42 | E91: 367.83 | F91: 362.12 | G91: 352.53 | H91: 383.13 | I91: 392.72 | J91: 398.43 | K91: 387 | L91: 371.7 | M91: 5.94642
A92: 82 | B92: CAPLIPOINT | C92: 535.1 | D92: 547.12 | E92: 518.08 | F92: 501.07 | G92: 472.03 | H92: 564.13 | I92: 593.17 | J92: 610.18 | K92: 576.15 | L92: 530.1 | M92: 11.75437
A93: 83 | B93: CARBORUNIV | C93: 251.95 | D93: 251.52 | E93: 247.63 | F93: 243.32 | G93: 239.43 | H93: 255.83 | I93: 259.72 | J93: 264.03 | K93: 255.4 | L93: 247.2 | M93: 4.68079
A94: 84 | B94: CARERATING | C94: 411.2 | D94: 420.13 | E94: 396.47 | F94: 381.73 | G94: 358.07 | H94: 434.87 | I94: 458.53 | J94: 473.27 | K94: 443.8 | L94: 405.4 | M94: 2.56555
A95: 85 | B95: CASTROLIND | C95: 121.1 | D95: 121.55 | E95: 120.10 | F95: 119.10 | G95: 117.65 | H95: 122.55 | I95: 124.00 | J95: 125.00 | K95: 123 | L95: 120.55 | M95: 7.63716
A96: 86 | B96: CCL | C96: 260.9 | D96: 263.70 | E96: 250.20 | F96: 239.50 | G96: 226.00 | H96: 274.40 | I96: 287.90 | J96: 298.60 | K96: 277.2 | L96: 253 | M96: 10.27923
A97: 87 | B97: CDSL | C97: 356 | D97: 360.60 | E97: 348.70 | F97: 341.40 | G97: 329.50 | H97: 367.90 | I97: 379.80 | J97: 387.10 | K97: 372.5 | L97: 353.3 | M97: 17.91825
A98: 88 | B98: CEATLTD | C98: 892.45 | D98: 900.73 | E98: 881.77 | F98: 871.08 | G98: 852.12 | H98: 911.42 | I98: 930.38 | J98: 941.07 | K98: 919.7 | L98: 890.05 | M98: 1.87469
A99: 89 | B99: CENTRALBK | C99: 18.15 | D99: 18.33 | E99: 17.67 | F99: 17.18 | G99: 16.52 | H99: 18.82 | I99: 19.48 | J99: 19.97 | K99: 19 | L99: 17.85 | M99: 64.31144
A100: 90 | B100: CENTURYPLY | C100: 134.05 | D100: 134.07 | E100: 132.13 | F100: 130.22 | G100: 128.28 | H100: 135.98 | I100: 137.92 | J100: 139.83 | K100: 136 | L100: 132.15 | M100: 2.21941
A101: 91 | B101: CENTURYTEX | C101: 315.8 | D101: 319.75 | E101: 311.30 | F101: 306.80 | G101: 298.35 | H101: 324.25 | I101: 332.70 | J101: 337.20 | K101: 328.2 | L101: 315.25 | M101: 12.97585
A102: 92 | B102: CERA | C102: 2361.7 | D102: 2348.45 | E102: 2318.90 | F102: 2276.10 | G102: 2246.55 | H102: 2391.25 | I102: 2420.80 | J102: 2463.60 | K102: 2378 | L102: 2305.65 | M102: 0.07723
A103: 93 | B103: CESC | C103: 576.65 | D103: 573.38 | E103: 563.77 | F103: 550.88 | G103: 541.27 | H103: 586.27 | I103: 595.88 | J103: 608.77 | K103: 583 | L103: 560.5 | M103: 3.78914
A104: 94 | B104: CGCL | C104: 204.2 | D104: 205.45 | E104: 201.95 | F104: 199.70 | G104: 196.20 | H104: 207.70 | I104: 211.20 | J104: 213.45 | K104: 208.95 | L104: 203.2 | M104: 0.89944
A105: 95 | B105: CHAMBLFERT | C105: 152.7 | D105: 155.55 | E105: 149.10 | F105: 145.50 | G105: 139.05 | H105: 159.15 | I105: 165.60 | J105: 169.20 | K105: 162 | L105: 151.95 | M105: 48.75172
A106: 96 | B106: CHENNPETRO | C106: 82.7 | D106: 83.05 | E106: 82.15 | F106: 81.60 | G106: 80.70 | H106: 83.60 | I106: 84.50 | J106: 85.05 | K106: 83.95 | L106: 82.5 | M106: 3.95707
A107: 97 | B107: CHOLAFIN | C107: 207.15 | D107: 208.53 | E107: 205.02 | F107: 202.88 | G107: 199.37 | H107: 210.67 | I107: 214.18 | J107: 216.32 | K107: 212.05 | L107: 206.4 | M107: 42.60187
A108: 98 | B108: CHOLAHLDNG | C108: 337.55 | D108: 343.52 | E108: 330.23 | F108: 322.92 | G108: 309.63 | H108: 350.83 | I108: 364.12 | J108: 371.43 | K108: 356.8 | L108: 336.2 | M108: 0.24881
A109: 99 | B109: CIPLA | C109: 778 | D109: 782.87 | E109: 763.88 | F109: 749.77 | G109: 730.78 | H109: 796.98 | I109: 815.97 | J109: 830.08 | K109: 801.85 | L109: 768.75 | M109: 148.61526
A110: 100 | B110: COALINDIA | C110: 130.1 | D110: 130.27 | E110: 129.53 | F110: 128.97 | G110: 128.23 | H110: 130.83 | I110: 131.57 | J110: 132.13 | K110: 131 | L110: 129.7 | M110: 56.68353
A111: 101 | B111: COCHINSHIP | C111: 352.25 | D111: 348.88 | E111: 339.52 | F111: 326.78 | G111: 317.42 | H111: 361.62 | I111: 370.98 | J111: 383.72 | K111: 358.25 | L111: 336.15 | M111: 11.59638
A112: 102 | B112: COLPAL | C112: 1449.25 | D112: 1458.82 | E112: 1431.18 | F112: 1413.12 | G112: 1385.48 | H112: 1476.88 | I112: 1504.52 | J112: 1522.58 | K112: 1486.45 | L112: 1440.75 | M112: 9.99732
A113: 103 | B113: CONCOR | C113: 377.3 | D113: 381.77 | E113: 371.53 | F113: 365.77 | G113: 355.53 | H113: 387.53 | I113: 397.77 | J113: 403.53 | K113: 392 | L113: 376 | M113: 67.22941
A114: 104 | B114: COROMANDEL | C114: 778.9 | D114: 784.87 | E114: 771.03 | F114: 763.17 | G114: 749.33 | H114: 792.73 | I114: 806.57 | J114: 814.43 | K114: 798.7 | L114: 777 | M114: 3.54188
A115: 105 | B115: CREDITACC | C115: 580.8 | D115: 586.00 | E115: 570.80 | F115: 560.80 | G115: 545.60 | H115: 596.00 | I115: 611.20 | J115: 621.20 | K115: 601.2 | L115: 576 | M115: 0.64567
A116: 106 | B116: CRISIL | C116: 1733.25 | D116: 1737.08 | E116: 1706.17 | F116: 1679.08 | G116: 1648.17 | H116: 1764.17 | I116: 1795.08 | J116: 1822.17 | K116: 1768 | L116: 1710 | M116: 0.16841
A117: 107 | B117: CROMPTON | C117: 261.6 | D117: 263.55 | E117: 258.10 | F117: 254.60 | G117: 249.15 | H117: 267.05 | I117: 272.50 | J117: 276.00 | K117: 269 | L117: 260.05 | M117: 6.21579
A118: 108 | B118: CSBBANK | C118: 192.8 | D118: 194.78 | E118: 189.67 | F118: 186.53 | G118: 181.42 | H118: 197.92 | I118: 203.03 | J118: 206.17 | K118: 199.9 | L118: 191.65 | M118: 0.67688
A119: 109 | B119: CUB | C119: 119.25 | D119: 119.88 | E119: 117.87 | F119: 116.48 | G119: 114.47 | H119: 121.27 | I119: 123.28 | J119: 124.67 | K119: 121.9 | L119: 118.5 | M119: 13.3807
A120: 110 | B120: CUMMINSIND | C120: 422.15 | D120: 423.75 | E120: 419.40 | F120: 416.65 | G120: 412.30 | H120: 426.50 | I120: 430.85 | J120: 433.60 | K120: 428.1 | L120: 421 | M120: 3.72685
A121: 111 | B121: CYIENT | C121: 369 | D121: 369.32 | E121: 361.73 | F121: 354.47 | G121: 346.88 | H121: 376.58 | I121: 384.17 | J121: 391.43 | K121: 376.9 | L121: 362.05 | M121: 7.78626
A122: 112 | B122: DABUR | C122: 513.15 | D122: 515.92 | E122: 507.23 | F122: 501.32 | G122: 492.63 | H122: 521.83 | I122: 530.52 | J122: 536.43 | K122: 524.6 | L122: 510 | M122: 52.06548
A123: 113 | B123: DALBHARAT | C123: 773.5 | D123: 779.68 | E123: 765.17 | F123: 756.83 | G123: 742.32 | H123: 788.02 | I123: 802.53 | J123: 810.87 | K123: 794.2 | L123: 771.35 | M123: 0.60225
A124: 114 | B124: DBCORP | C124: 75.45 | D124: 75.93 | E124: 74.52 | F124: 73.58 | G124: 72.17 | H124: 76.87 | I124: 78.28 | J124: 79.22 | K124: 77.35 | L124: 75 | M124: 1.81
A125: 115 | B125: DBL | C125: 342.75 | D125: 345.82 | E125: 336.93 | F125: 331.12 | G125: 322.23 | H125: 351.63 | I125: 360.52 | J125: 366.33 | K125: 354.7 | L125: 340 | M125: 5.40129
A126: 116 | B126: DCAL | C126: 191.65 | D126: 195.20 | E126: 187.60 | F126: 183.55 | G126: 175.95 | H126: 199.25 | I126: 206.85 | J126: 210.90 | K126: 202.8 | L126: 191.15 | M126: 7.32283
A127: 117 | B127: DCBBANK | C127: 82.95 | D127: 83.00 | E127: 82.45 | F127: 81.95 | G127: 81.40 | H127: 83.50 | I127: 84.05 | J127: 84.55 | K127: 83.55 | L127: 82.5 | M127: 17.44795
A128: 118 | B128: DCMSHRIRAM | C128: 354.35 | D128: 353.95 | E128: 345.60 | F128: 336.85 | G128: 328.50 | H128: 362.70 | I128: 371.05 | J128: 379.80 | K128: 362.3 | L128: 345.2 | M128: 0.89141
A129: 119 | B129: DEEPAKNTR | C129: 577.15 | D129: 581.82 | E129: 568.33 | F129: 559.52 | G129: 546.03 | H129: 590.63 | I129: 604.12 | J129: 612.93 | K129: 595.3 | L129: 573 | M129: 10.58288
A130: 120 | B130: DELTACORP | C130: 107.65 | D130: 108.72 | E130: 104.93 | F130: 102.22 | G130: 98.43 | H130: 111.43 | I130: 115.22 | J130: 117.93 | K130: 112.5 | L130: 106 | M130: 19.29527
A131: 121 | B131: DHANUKA | C131: 814.75 | D131: 802.75 | E131: 765.50 | F131: 716.25 | G131: 679.00 | H131: 852.00 | I131: 889.25 | J131: 938.50 | K131: 840 | L131: 753.5 | M131: 4.03744
A132: 122 | B132: DISHTV | C132: 7.85 | D132: 7.97 | E132: 7.68 | F132: 7.52 | G132: 7.23 | H132: 8.13 | I132: 8.42 | J132: 8.58 | K132: 8.25 | L132: 7.8 | M132: 59.01592
A133: 123 | B133: DIVISLAB | C133: 3131.45 | D133: 3129.07 | E133: 3089.38 | F133: 3047.32 | G133: 3007.63 | H133: 3171.13 | I133: 3210.82 | J133: 3252.88 | K133: 3168.75 | L133: 3087 | M133: 27.31084
A134: 124 | B134: DIXON | C134: 8017.8 | D134: 8166.60 | E134: 7853.20 | F134: 7688.60 | G134: 7375.20 | H134: 8331.20 | I134: 8644.60 | J134: 8809.20 | K134: 8480 | L134: 8002 | M134: 1.63369
A135: 125 | B135: DLF | C135: 146.55 | D135: 147.58 | E135: 144.77 | F135: 142.98 | G135: 140.17 | H135: 149.37 | I135: 152.18 | J135: 153.97 | K135: 150.4 | L135: 145.8 | M135: 62.55637
A136: 126 | B136: DMART | C136: 2131.95 | D136: 2128.48 | E136: 2113.82 | F136: 2095.68 | G136: 2081.02 | H136: 2146.62 | I136: 2161.28 | J136: 2179.42 | K136: 2143.15 | L136: 2110.35 | M136: 4.61469
A137: 127 | B137: DRREDDY | C137: 4595.9 | D137: 4633.15 | E137: 4527.75 | F137: 4459.60 | G137: 4354.20 | H137: 4701.30 | I137: 4806.70 | J137: 4874.85 | K137: 4738.55 | L137: 4565 | M137: 12.91535
A138: 128 | B138: ECLERX | C138: 512 | D138: 509.22 | E138: 497.48 | F138: 482.97 | G138: 471.23 | H138: 523.73 | I138: 535.47 | J138: 549.98 | K138: 520.95 | L138: 494.7 | M138: 2.15825
A139: 129 | B139: EDELWEISS | C139: 78.5 | D139: 79.17 | E139: 77.53 | F139: 76.57 | G139: 74.93 | H139: 80.13 | I139: 81.77 | J139: 82.73 | K139: 80.8 | L139: 78.2 | M139: 14.62672
A140: 130 | B140: EICHERMOT | C140: 21442.65 | D140: 21454.22 | E140: 21238.43 | F140: 21034.22 | G140: 20818.43 | H140: 21658.43 | I140: 21874.22 | J140: 22078.43 | K140: 21670 | L140: 21250 | M140: 1.6191
A141: 131 | B141: EIDPARRY | C141: 291.05 | D141: 294.98 | E141: 285.07 | F141: 279.08 | G141: 269.17 | H141: 300.97 | I141: 310.88 | J141: 316.87 | K141: 304.9 | L141: 289 | M141: 4.36764
A142: 132 | B142: EIHOTEL | C142: 67 | D142: 67.82 | E142: 65.88 | F142: 64.77 | G142: 62.83 | H142: 68.93 | I142: 70.87 | J142: 71.98 | K142: 69.75 | L142: 66.7 | M142: 11.85967
A143: 133 | B143: ELGIEQUIP | C143: 177.85 | D143: 176.48 | E143: 172.97 | F143: 168.08 | G143: 164.57 | H143: 181.37 | I143: 184.88 | J143: 189.77 | K143: 180 | L143: 171.6 | M143: 1.46632
A144: 134 | B144: EMAMILTD | C144: 333.5 | D144: 327.40 | E144: 317.10 | F144: 300.70 | G144: 290.40 | H144: 343.80 | I144: 354.10 | J144: 370.50 | K144: 337.7 | L144: 311 | M144: 60.66485
A145: 135 | B145: ENDURANCE | C145: 983 | D145: 981.80 | E145: 969.20 | F145: 955.40 | G145: 942.80 | H145: 995.60 | I145: 1008.20 | J145: 1022.00 | K145: 994.4 | L145: 968 | M145: 0.50273
A146: 136 | B146: ENGINERSIN | C146: 66.55 | D146: 67.08 | E146: 65.87 | F146: 65.18 | G146: 63.97 | H146: 67.77 | I146: 68.98 | J146: 69.67 | K146: 68.3 | L146: 66.4 | M146: 15.92588
A147: 137 | B147: EQUITAS | C147: 50.65 | D147: 51.25 | E147: 49.40 | F147: 48.15 | G147: 46.30 | H147: 52.50 | I147: 54.35 | J147: 55.60 | K147: 53.1 | L147: 50 | M147: 125.45782
A148: 138 | B148: ERIS | C148: 543.35 | D148: 545.78 | E148: 536.57 | F148: 529.78 | G148: 520.57 | H148: 552.57 | I148: 561.78 | J148: 568.57 | K148: 555 | L148: 539 | M148: 1.39097
A149: 139 | B149: ESABINDIA | C149: 1357.05 | D149: 1365.80 | E149: 1341.55 | F149: 1326.05 | G149: 1301.80 | H149: 1381.30 | I149: 1405.55 | J149: 1421.05 | K149: 1390.05 | L149: 1350.3 | M149: 0.05945
A150: 140 | B150: ESCORTS | C150: 1118.8 | D150: 1124.57 | E150: 1106.48 | F150: 1094.17 | G150: 1076.08 | H150: 1136.88 | I150: 1154.97 | J150: 1167.28 | K150: 1142.65 | L150: 1112.25 | M150: 10.6818
A151: 141 | B151: ESSELPACK | C151: 274.9 | D151: 272.68 | E151: 267.37 | F151: 259.83 | G151: 254.52 | H151: 280.22 | I151: 285.53 | J151: 293.07 | K151: 278 | L151: 265.15 | M151: 3.56447
A152: 142 | B152: EXIDEIND | C152: 162.9 | D152: 163.28 | E152: 161.12 | F152: 159.33 | G152: 157.17 | H152: 165.07 | I152: 167.23 | J152: 169.02 | K152: 165.45 | L152: 161.5 | M152: 20.34824
A153: 143 | B153: FCONSUMER | C153: 11 | D153: 11.18 | E153: 10.82 | F153: 10.63 | G153: 10.27 | H153: 11.37 | I153: 11.73 | J153: 11.92 | K153: 11.55 | L153: 11 | M153: 90.15065
A154: 144 | B154: FDC | C154: 332.3 | D154: 336.80 | E154: 325.65 | F154: 319.00 | G154: 307.85 | H154: 343.45 | I154: 354.60 | J154: 361.25 | K154: 347.95 | L154: 330.15 | M154: 5.78823
A155: 145 | B155: FEDERALBNK | C155: 54.3 | D155: 54.13 | E155: 53.77 | F155: 53.23 | G155: 52.87 | H155: 54.67 | I155: 55.03 | J155: 55.57 | K155: 54.5 | L155: 53.6 | M155: 254.79162
A156: 146 | B156: FINCABLES | C156: 269.05 | D156: 270.68 | E156: 266.37 | F156: 263.68 | G156: 259.37 | H156: 273.37 | I156: 277.68 | J156: 280.37 | K156: 275 | L156: 268 | M156: 2.22323
A157: 147 | B157: FINEORG | C157: 2308.65 | D157: 2321.20 | E157: 2277.40 | F157: 2246.15 | G157: 2202.35 | H157: 2352.45 | I157: 2396.25 | J157: 2427.50 | K157: 2365 | L157: 2289.95 | M157: 0.22698
A158: 148 | B158: FINPIPE | C158: 452.65 | D158: 453.85 | E158: 449.35 | F158: 446.05 | G158: 441.55 | H158: 457.15 | I158: 461.65 | J158: 464.95 | K158: 458.35 | L158: 450.55 | M158: 0.56398
A159: 149 | B159: FLUOROCHEM | C159: 464.5 | D159: 478.50 | E159: 447.10 | F159: 429.70 | G159: 398.30 | H159: 495.90 | I159: 527.30 | J159: 544.70 | K159: 509.9 | L159: 461.1 | M159: 3.13168
A160: 150 | B160: FORTIS | C160: 136.5 | D160: 137.42 | E160: 135.13 | F160: 133.77 | G160: 131.48 | H160: 138.78 | I160: 141.07 | J160: 142.43 | K160: 139.7 | L160: 136.05 | M160: 5.68173
A161: 151 | B161: FRETAIL | C161: 104.85 | D161: 106.05 | E161: 103.30 | F161: 101.75 | G161: 99.00 | H161: 107.60 | I161: 110.35 | J161: 111.90 | K161: 108.8 | L161: 104.5 | M161: 27.32495
A162: 152 | B162: FSL | C162: 56.15 | D162: 55.78 | E162: 53.67 | F162: 51.18 | G162: 49.07 | H162: 58.27 | I162: 60.38 | J162: 62.87 | K162: 57.9 | L162: 53.3 | M162: 62.24002
A163: 153 | B163: GAIL | C163: 97.3 | D163: 97.70 | E163: 96.60 | F163: 95.90 | G163: 94.80 | H163: 98.40 | I163: 99.50 | J163: 100.20 | K163: 98.8 | L163: 97 | M163: 91.40943
A164: 154 | B164: GALAXYSURF | C164: 1766.4 | D164: 1759.80 | E164: 1729.60 | F164: 1692.80 | G164: 1662.60 | H164: 1796.60 | I164: 1826.80 | J164: 1863.60 | K164: 1790 | L164: 1723 | M164: 0.85546
A165: 155 | B165: GARFIBRES | C165: 1907.4 | D165: 1899.08 | E165: 1758.17 | F165: 1608.93 | G165: 1468.02 | H165: 2048.32 | I165: 2189.23 | J165: 2338.47 | K165: 2040 | L165: 1749.85 | M165: 1.47096
A166: 156 | B166: GEPIL | C166: 497.3 | D166: 494.10 | E166: 478.20 | F166: 459.10 | G166: 443.20 | H166: 513.20 | I166: 529.10 | J166: 548.20 | K166: 510 | L166: 475 | M166: 0.80316
A167: 157 | B167: GESHIP | C167: 263.05 | D167: 264.75 | E167: 259.55 | F167: 256.05 | G167: 250.85 | H167: 268.25 | I167: 273.45 | J167: 276.95 | K167: 269.95 | L167: 261.25 | M167: 2.27205
A168: 158 | B168: GET&D | C168: 98.25 | D168: 95.90 | E168: 93.55 | F168: 88.85 | G168: 86.50 | H168: 100.60 | I168: 102.95 | J168: 107.65 | K168: 98.25 | L168: 91.2 | M168: 2.17857
A169: 159 | B169: GHCL | C169: 149 | D169: 147.92 | E169: 145.43 | F169: 141.87 | G169: 139.38 | H169: 151.48 | I169: 153.97 | J169: 157.53 | K169: 150.4 | L169: 144.35 | M169: 3.08715
A170: 160 | B170: GICRE | C170: 146.9 | D170: 147.78 | E170: 143.97 | F170: 141.03 | G170: 137.22 | H170: 150.72 | I170: 154.53 | J170: 157.47 | K170: 151.6 | L170: 144.85 | M170: 3.58376
A171: 161 | B171: GILLETTE | C171: 4983.3 | D171: 4984.42 | E171: 4968.93 | F171: 4954.57 | G171: 4939.08 | H171: 4998.78 | I171: 5014.27 | J171: 5028.63 | K171: 4999.9 | L171: 4970.05 | M171: 0.02609
A172: 162 | B172: GLAXO | C172: 1473.2 | D172: 1480.72 | E172: 1462.43 | F172: 1451.67 | G172: 1433.38 | H172: 1491.48 | I172: 1509.77 | J172: 1520.53 | K172: 1499 | L172: 1469.95 | M172: 0.42982
A173: 163 | B173: GLENMARK | C173: 477.05 | D173: 475.62 | E173: 471.68 | F173: 466.32 | G173: 462.38 | H173: 480.98 | I173: 484.92 | J173: 490.28 | K173: 479.55 | L173: 470.25 | M173: 52.63264
A174: 164 | B174: GMDCLTD | C174: 41.9 | D174: 42.17 | E174: 41.38 | F174: 40.87 | G174: 40.08 | H174: 42.68 | I174: 43.47 | J174: 43.98 | K174: 42.95 | L174: 41.65 | M174: 12.40783
A175: 165 | B175: GMMPFAUDLR | C175: 6484.5 | D175: 6283.15 | E175: 5991.30 | F175: 5498.10 | G175: 5206.25 | H175: 6776.35 | I175: 7068.20 | J175: 7561.40 | K175: 6575 | L175: 5789.95 | M175: 2.44358
A176: 166 | B176: GMRINFRA | C176: 21.15 | D176: 21.42 | E176: 20.83 | F176: 20.52 | G176: 19.93 | H176: 21.73 | I176: 22.32 | J176: 22.63 | K176: 22 | L176: 21.1 | M176: 71.88295
A177: 167 | B177: GNFC | C177: 173.35 | D177: 172.58 | E177: 169.77 | F177: 166.18 | G177: 163.37 | H177: 176.17 | I177: 178.98 | J177: 182.57 | K177: 175.4 | L177: 169 | M177: 19.32634
A178: 168 | B178: GODFRYPHLP | C178: 958.5 | D178: 964.48 | E178: 951.02 | F178: 943.53 | G178: 930.07 | H178: 971.97 | I178: 985.43 | J178: 992.92 | K178: 977.95 | L178: 957 | M178: 0.58258
A179: 169 | B179: GODREJAGRO | C179: 468.6 | D179: 467.88 | E179: 461.77 | F179: 454.93 | G179: 448.82 | H179: 474.72 | I179: 480.83 | J179: 487.67 | K179: 474 | L179: 461.05 | M179: 2.56334
A180: 170 | B180: GODREJCP | C180: 687.8 | D180: 688.20 | E180: 680.45 | F180: 673.10 | G180: 665.35 | H180: 695.55 | I180: 703.30 | J180: 710.65 | K180: 695.95 | L180: 680.85 | M180: 6.72208
A181: 171 | B181: GODREJIND | C181: 382.7 | D181: 385.50 | E181: 377.20 | F181: 371.70 | G181: 363.40 | H181: 391.00 | I181: 399.30 | J181: 404.80 | K181: 393.8 | L181: 380 | M181: 1.50189
A182: 172 | B182: GODREJPROP | C182: 893.15 | D182: 895.18 | E182: 886.82 | F182: 880.48 | G182: 872.12 | H182: 901.52 | I182: 909.88 | J182: 916.22 | K182: 903.55 | L182: 888.85 | M182: 1.22617
A183: 173 | B183: GPPL | C183: 79.8 | D183: 79.97 | E183: 78.93 | F183: 78.07 | G183: 77.03 | H183: 80.83 | I183: 81.87 | J183: 82.73 | K183: 81 | L183: 79.1 | M183: 2.56465
A184: 174 | B184: GRANULES | C184: 315.55 | D184: 320.83 | E184: 308.27 | F184: 300.98 | G184: 288.42 | H184: 328.12 | I184: 340.68 | J184: 347.97 | K184: 333.4 | L184: 313.55 | M184: 41.78661
A185: 175 | B185: GRAPHITE | C185: 189 | D185: 190.35 | E185: 185.20 | F185: 181.40 | G185: 176.25 | H185: 194.15 | I185: 199.30 | J185: 203.10 | K185: 195.5 | L185: 186.55 | M185: 13.84254
A186: 176 | B186: GRASIM | C186: 624.25 | D186: 628.08 | E186: 615.22 | F186: 606.18 | G186: 593.32 | H186: 637.12 | I186: 649.98 | J186: 659.02 | K186: 640.95 | L186: 619.05 | M186: 20.6153
A187: 177 | B187: GREAVESCOT | C187: 86.95 | D187: 87.42 | E187: 86.03 | F187: 85.12 | G187: 83.73 | H187: 88.33 | I187: 89.72 | J187: 90.63 | K187: 88.8 | L187: 86.5 | M187: 3.96704
A188: 178 | B188: GRINDWELL | C188: 507.5 | D188: 507.07 | E188: 493.13 | F188: 478.77 | G188: 464.83 | H188: 521.43 | I188: 535.37 | J188: 549.73 | K188: 521 | L188: 492.7 | M188: 1.78253
A189: 179 | B189: GRSE | C189: 232.8 | D189: 229.77 | E189: 220.53 | F189: 208.27 | G189: 199.03 | H189: 242.03 | I189: 251.27 | J189: 263.53 | K189: 239 | L189: 217.5 | M189: 20.23915
A190: 180 | B190: GSFC | C190: 64.95 | D190: 64.42 | E190: 63.28 | F190: 61.62 | G190: 60.48 | H190: 66.08 | I190: 67.22 | J190: 68.88 | K190: 65.55 | L190: 62.75 | M190: 16.02331
A191: 181 | B191: GSPL | C191: 216.65 | D191: 216.13 | E191: 212.77 | F191: 208.88 | G191: 205.52 | H191: 220.02 | I191: 223.38 | J191: 227.27 | K191: 219.5 | L191: 212.25 | M191: 33.72372
A192: 182 | B192: GUJALKALI | C192: 336.25 | D192: 339.98 | E192: 331.27 | F192: 326.28 | G192: 317.57 | H192: 344.97 | I192: 353.68 | J192: 358.67 | K192: 348.7 | L192: 335 | M192: 0.80421
A193: 183 | B193: GUJGASLTD | C193: 311.85 | D193: 313.95 | E193: 307.40 | F193: 302.95 | G193: 296.40 | H193: 318.40 | I193: 324.95 | J193: 329.40 | K193: 320.5 | L193: 309.5 | M193: 12.4588
A194: 184 | B194: GULFOILLUB | C194: 628.65 | D194: 629.75 | E194: 620.95 | F194: 613.25 | G194: 604.45 | H194: 637.45 | I194: 646.25 | J194: 653.95 | K194: 638.55 | L194: 622.05 | M194: 0.12203
A195: 185 | B195: HAL | C195: 1019.15 | D195: 1021.38 | E195: 998.77 | F195: 978.38 | G195: 955.77 | H195: 1041.77 | I195: 1064.38 | J195: 1084.77 | K195: 1044 | L195: 1001 | M195: 2.79768
A196: 186 | B196: HATHWAY | C196: 39.55 | D196: 38.32 | E196: 37.08 | F196: 34.62 | G196: 33.38 | H196: 40.78 | I196: 42.02 | J196: 44.48 | K196: 39.55 | L196: 35.85 | M196: 15.53334
A197: 187 | B197: HATSUN | C197: 726.4 | D197: 732.80 | E197: 718.60 | F197: 710.80 | G197: 696.60 | H197: 740.60 | I197: 754.80 | J197: 762.60 | K197: 747 | L197: 725 | M197: 0.32501
A198: 188 | B198: HAVELLS | C198: 605.9 | D198: 610.28 | E198: 599.67 | F198: 593.43 | G198: 582.82 | H198: 616.52 | I198: 627.13 | J198: 633.37 | K198: 620.9 | L198: 604.05 | M198: 23.7019
A199: 189 | B199: HCLTECH | C199: 683.8 | D199: 688.75 | E199: 676.55 | F199: 669.30 | G199: 657.10 | H199: 696.00 | I199: 708.20 | J199: 715.45 | K199: 700.95 | L199: 681.5 | M199: 39.56472
A200: 190 | B200: HDFC | C200: 1826.75 | D200: 1828.00 | E200: 1809.25 | F200: 1791.75 | G200: 1773.00 | H200: 1845.50 | I200: 1864.25 | J200: 1881.75 | K200: 1846.75 | L200: 1810.5 | M200: 49.44312
A201: 191 | B201: HDFCAMC | C201: 2342.2 | D201: 2352.40 | E201: 2326.80 | F201: 2311.40 | G201: 2285.80 | H201: 2367.80 | I201: 2393.40 | J201: 2408.80 | K201: 2378 | L201: 2337 | M201: 4.23447
A202: 192 | B202: HDFCBANK | C202: 1066.65 | D202: 1062.05 | E202: 1053.10 | F202: 1039.55 | G202: 1030.60 | H202: 1075.60 | I202: 1084.55 | J202: 1098.10 | K202: 1071 | L202: 1048.5 | M202: 100.6815
A203: 193 | B203: HDFCLIFE | C203: 608.75 | D203: 609.58 | E203: 605.27 | F203: 601.78 | G203: 597.47 | H203: 613.07 | I203: 617.38 | J203: 620.87 | K203: 613.9 | L203: 606.1 | M203: 15.39726
A204: 194 | B204: HEG | C204: 797.2 | D204: 798.85 | E204: 778.70 | F204: 760.20 | G204: 740.05 | H204: 817.35 | I204: 837.50 | J204: 856.00 | K204: 819 | L204: 780.35 | M204: 6.04778
A205: 195 | B205: HEIDELBERG | C205: 181.35 | D205: 181.95 | E205: 180.00 | F205: 178.65 | G205: 176.70 | H205: 183.30 | I205: 185.25 | J205: 186.60 | K205: 183.9 | L205: 180.6 | M205: 2.28
A206: 196 | B206: HERITGFOOD | C206: 319.8 | D206: 317.37 | E206: 312.73 | F206: 305.67 | G206: 301.03 | H206: 324.43 | I206: 329.07 | J206: 336.13 | K206: 322 | L206: 310.3 | M206: 0.82309
... 321 more rows

Sheet Bulk Deals
E6: Back To Main Page
A7: Subject : | B7: BULK DEAL | D7: =Main!B10 -> 2020-08-12
A9: Date | B9: Scrip code | C9: Scrip Name | D9: Client Name | E9: Buy / Sell | F9: Quantity Traded | G9: Trade Price / Wt.Avg.trade price | H9: Exchange
A10: 2020-08-11 | B10: 511463 | C10: ALEXANDER | D10: KAHAR NIKLESH KANAIYABHAI | E10: BUY | F10: 6,530 | G10: 13.35 | H10: BSE
A11: 2020-08-11 | B11: 511463 | C11: ALEXANDER | D11: KAHAR NIKLESH KANAIYABHAI | E11: SELL | F11: 54,530 | G11: 13.56 | H11: BSE
A12: 2020-08-11 | B12: 540697 | C12: AMFL | D12: ROSHANI SUDARSHAN PALKAR | E12: BUY | F12: 100,000 | G12: 3.07 | H12: BSE
A13: 2020-08-11 | B13: 540697 | C13: AMFL | D13: BHAVIKA PARITOSH SHAH | E13: SELL | F13: 100,000 | G13: 3.24 | H13: BSE
A14: 2020-08-11 | B14: 540697 | C14: AMFL | D14: PRATIMA HIMANSHUBHAI SHAH | E14: SELL | F14: 150,000 | G14: 3.1 | H14: BSE
A15: 2020-08-11 | B15: 540024 | C15: ASHARI | D15: RAHUL MADHUKAR WARE | E15: SELL | F15: 44,444 | G15: 8.93 | H15: BSE
A16: 2020-08-11 | B16: 540024 | C16: ASHARI | D16: MANOJKUMAR GUNVANTRAI SOMANI | E16: BUY | F16: 45,041 | G16: 8.93 | H16: BSE
A17: 2020-08-11 | B17: 540024 | C17: ASHARI | D17: MANOJKUMAR GUNVANTRAI SOMANI | E17: SELL | F17: 22,360 | G17: 8.97 | H17: BSE
A18: 2020-08-11 | B18: 540936 | C18: GGL | D18: BHARATKUMAR DHIRUBHAI RUPALA | E18: SELL | F18: 30,000 | G18: 55 | H18: BSE
A19: 2020-08-11 | B19: 539097 | C19: HKG | D19: DAYAL TAHILRAM PARWANI | E19: BUY | F19: 18,000 | G19: 93.87 | H19: BSE
A20: 2020-08-11 | B20: 539097 | C20: HKG | D20: NAYAN SHANTILAL DESAI | E20: SELL | F20: 32,000 | G20: 91.69 | H20: BSE
A21: 2020-08-11 | B21: 532706 | C21: INOXLEISUR | D21: HDFC MUTUAL FUND | E21: BUY | F21: 2,981,000 | G21: 233 | H21: BSE
A22: 2020-08-11 | B22: 532706 | C22: INOXLEISUR | D22: HDFC MUTUAL FUND | E22: SELL | F22: 3,037,236 | G22: 233 | H22: BSE
A23: 2020-08-11 | B23: 532706 | C23: INOXLEISUR | D23: SKALE MASTER FUND LTD | E23: BUY | F23: 855,092 | G23: 233 | H23: BSE
A24: 2020-08-11 | B24: 532706 | C24: INOXLEISUR | D24: ABU DHABI INVESTMENT AUTHORITY | E24: BUY | F24: 1,125,000 | G24: 233 | H24: BSE
A25: 2020-08-11 | B25: 532706 | C25: INOXLEISUR | D25: HDFC MUTUAL FUND | E25: BUY | F25: 2,370,000 | G25: 233 | H25: BSE
A26: 2020-08-11 | B26: 532706 | C26: INOXLEISUR | D26: INOX BENEFIT TRUST | E26: SELL | F26: 4,350,092 | G26: 233 | H26: BSE
A27: 2020-08-11 | B27: 506528 | C27: KELENRG | D27: VIJAY ISHVARBHAI CHAUHAN | E27: BUY | F27: 6,060 | G27: 555.32 | H27: BSE
A28: 2020-08-11 | B28: 506528 | C28: KELENRG | D28: VIJAY ISHVARBHAI CHAUHAN | E28: SELL | F28: 6,060 | G28: 555.32 | H28: BSE
A29: 2020-08-11 | B29: 506528 | C29: KELENRG | D29: LINKUP FINANCIAL CONSULTANTS PVT LTD02 | E29: BUY | F29: 7,200 | G29: 521.92 | H29: BSE
A30: 2020-08-11 | B30: 506528 | C30: KELENRG | D30: LINKUP FINANCIAL CONSULTANTS PVT LTD02 | E30: SELL | F30: 7,200 | G30: 580.59 | H30: BSE
A31: 2020-08-11 | B31: 506528 | C31: KELENRG | D31: DHARMIK NITINBHAI CHAUHAN | E31: BUY | F31: 19,800 | G31: 540.27 | H31: BSE
A32: 2020-08-11 | B32: 506528 | C32: KELENRG | D32: DHARMIK NITINBHAI CHAUHAN | E32: SELL | F32: 19,800 | G32: 540.02 | H32: BSE
A33: 2020-08-11 | B33: 506528 | C33: KELENRG | D33: ANURUDHKUMAR BARELAL YADAV | E33: BUY | F33: 6,060 | G33: 555.36 | H33: BSE
A34: 2020-08-11 | B34: 506528 | C34: KELENRG | D34: ANURUDHKUMAR BARELAL YADAV | E34: SELL | F34: 6,060 | G34: 555.36 | H34: BSE
A35: 2020-08-11 | B35: 506528 | C35: KELENRG | D35: KEYUR V PARMAR | E35: BUY | F35: 13,325 | G35: 548.99 | H35: BSE
A36: 2020-08-11 | B36: 506528 | C36: KELENRG | D36: KEYUR V PARMAR | E36: SELL | F36: 13,325 | G36: 548.96 | H36: BSE
A37: 2020-08-11 | B37: 506528 | C37: KELENRG | D37: SUMIT LAHA | E37: BUY | F37: 17,080 | G37: 550.5 | H37: BSE
A38: 2020-08-11 | B38: 506528 | C38: KELENRG | D38: SUPRABHAT LAHA | E38: BUY | F38: 18,800 | G38: 546.8 | H38: BSE
A39: 2020-08-11 | B39: 506528 | C39: KELENRG | D39: SUMIT LAHA | E39: SELL | F39: 17,080 | G39: 550.41 | H39: BSE
A40: 2020-08-11 | B40: 506528 | C40: KELENRG | D40: SUPRABHAT LAHA | E40: SELL | F40: 18,800 | G40: 555.25 | H40: BSE
A41: 2020-08-11 | B41: 506528 | C41: KELENRG | D41: HENRY JOSEPH PAIS | E41: BUY | F41: 27,000 | G41: 598.9 | H41: BSE
A42: 2020-08-11 | B42: 506528 | C42: KELENRG | D42: HENRY JOSEPH PAIS | E42: SELL | F42: 27,000 | G42: 510.32 | H42: BSE
A43: 2020-08-11 | B43: 506528 | C43: KELENRG | D43: SUBRATA LAHA | E43: BUY | F43: 13,989 | G43: 552.65 | H43: BSE
A44: 2020-08-11 | B44: 506528 | C44: KELENRG | D44: SUBRATA LAHA | E44: SELL | F44: 13,989 | G44: 552.62 | H44: BSE
A45: 2020-08-11 | B45: 506528 | C45: KELENRG | D45: DHAVAL VINODBHAI GADANI | E45: BUY | F45: 10,560 | G45: 535.95 | H45: BSE
A46: 2020-08-11 | B46: 506528 | C46: KELENRG | D46: DHAVAL VINODBHAI GADANI | E46: SELL | F46: 10,560 | G46: 535.5 | H46: BSE
A47: 2020-08-11 | B47: 506528 | C47: KELENRG | D47: HARSHADBHAI PANCHAL | E47: BUY | F47: 5,100 | G47: 541.12 | H47: BSE
A48: 2020-08-11 | B48: 506528 | C48: KELENRG | D48: HARSHADBHAI PANCHAL | E48: SELL | F48: 5,100 | G48: 541.16 | H48: BSE
A49: 2020-08-11 | B49: 506528 | C49: KELENRG | D49: DIBAKAR LAHA | E49: BUY | F49: 29,747 | G49: 538.69 | H49: BSE
A50: 2020-08-11 | B50: 506528 | C50: KELENRG | D50: DIBAKAR LAHA | E50: SELL | F50: 29,747 | G50: 563.22 | H50: BSE
A51: 2020-08-11 | B51: 506528 | C51: KELENRG | D51: SOURAV DAS | E51: BUY | F51: 10,430 | G51: 546.05 | H51: BSE
A52: 2020-08-11 | B52: 506528 | C52: KELENRG | D52: SOURAV DAS | E52: SELL | F52: 10,430 | G52: 558.81 | H52: BSE
A53: 2020-08-11 | B53: 506528 | C53: KELENRG | D53: UMA DUTTA | E53: BUY | F53: 15,080 | G53: 551.59 | H53: BSE
A54: 2020-08-11 | B54: 506528 | C54: KELENRG | D54: UMA DUTTA | E54: SELL | F54: 15,080 | G54: 552.02 | H54: BSE
A55: 2020-08-11 | B55: 506528 | C55: KELENRG | D55: JASHVANT SHAKYA | E55: BUY | F55: 10,050 | G55: 556.71 | H55: BSE
A56: 2020-08-11 | B56: 506528 | C56: KELENRG | D56: JASHVANT SHAKYA | E56: SELL | F56: 10,050 | G56: 556.71 | H56: BSE
A57: 2020-08-11 | B57: 506528 | C57: KELENRG | D57: LALARAM JAGANNATH RATHOD | E57: BUY | F57: 16,621 | G57: 543.96 | H57: BSE
A58: 2020-08-11 | B58: 506528 | C58: KELENRG | D58: LALARAM JAGANNATH RATHOD | E58: SELL | F58: 16,621 | G58: 543.75 | H58: BSE
A59: 2020-08-11 | B59: 590082 | C59: LOHIASEC | D59: LIFE LINE MARKETING PVT LTD. | E59: SELL | F59: 29,000 | G59: 33 | H59: BSE
A60: 2020-08-11 | B60: 590082 | C60: LOHIASEC | D60: LOHIA FISCAL MARKET PVT. LTD. | E60: BUY | F60: 29,000 | G60: 33 | H60: BSE
A61: 2020-08-11 | B61: 540259 | C61: SHANGAR | D61: PADMAVATI INVESTMENT | E61: BUY | F61: 27,095 | G61: 76.95 | H61: BSE
A62: 2020-08-11 | B62: 540259 | C62: SHANGAR | D62: PADMAVATI INVESTMENT | E62: SELL | F62: 3,500 | G62: 76.95 | H62: BSE
A63: 2020-08-11 | B63: 540259 | C63: SHANGAR | D63: SAMIRBHAI RASIKLAL SHAH | E63: SELL | F63: 35,000 | G63: 76.95 | H63: BSE
A64: 2020-08-11 | B64: 540259 | C64: SHANGAR | D64: PARAMOUNT TRADING | E64: BUY | F64: 33,438 | G64: 76.95 | H64: BSE
A65: 2020-08-11 | B65: 538607 | C65: TOYAMIND | D65: TALISMAN SECURITIES PRIVATE LIMITED | E65: SELL | F65: 1,100,000 | G65: 3 | H65: BSE
A66: 2020-08-11 | B66: 500422 | C66: TRANSCHEM | D66: SMIT CAPITAL SERVICES PRIVATE LIMITED | E66: BUY | F66: 198,358 | G66: 10.66 | H66: BSE
A67: 2020-08-11 | B67: 500422 | C67: TRANSCHEM | D67: JMS MINING PRIVATE LIMITED | E67: SELL | F67: 201,284 | G67: 10.66 | H67: BSE
A68: 2020-08-11 | B68: 539222 | C68: VMV | D68: RUSHIL SHAILESH PANDYA | E68: BUY | F68: 30,000 | G68: 35.18 | H68: BSE
A69: 2020-08-11 | B69: ATULAUTO | C69: Atul Auto Limited | D69: DHARABEN M GHURIA | E69: BUY | F69: 110,000 | G69: 173.04 | H69: NSE
A70: 2020-08-11 | B70: GSS | C70: GSS Infotech Limited | D70: DANGAR ANILBHAI VEJANADBHAI | E70: BUY | F70: 120,525 | G70: 23.71 | H70: NSE
A71: 2020-08-11 | B71: IBULHSGFIN | C71: Indiabulls Hsg Fin Ltd | D71: TOWER RESEARCH CAPITAL MARKETS INDIA PRIVATE LIMITED | E71: BUY | F71: 2,351,101 | G71: 213.2 | H71: NSE
A72: 2020-08-11 | B72: LAOPALA | C72: La Opala RG Limited | D72: PLUTUS WEALTH MANAGEMENT LLP | E72: BUY | F72: 2,365,156 | G72: 185.98 | H72: NSE
A73: 2020-08-11 | B73: RMDRIP | C73: R M Drip & Sprink Sys Ltd | D73: GAUTAM CHAMPALAL VAISHNAV | E73: BUY | F73: 40,000 | G73: 43.21 | H73: NSE
A74: 2020-08-11 | B74: SANCO | C74: Sanco Industries Ltd. | D74: SACHIN GOVINDLAL MODI | E74: BUY | F74: 77,000 | G74: 11.1 | H74: NSE
A75: 2020-08-11 | B75: ATULAUTO | C75: Atul Auto Limited | D75: DHARABEN M GHURIA | E75: SELL | F75: 110,000 | G75: 182.42 | H75: NSE
A76: 2020-08-11 | B76: CCCL | C76: Consolidated Construction | D76: EASTSPRING INVESTMENTS INDIA INFRASTRUCTURE EQUITY OPEN LIMITED | E76: SELL | F76: 3,187,919 | G76: 0.32 | H76: NSE
A77: 2020-08-11 | B77: GSS | C77: GSS Infotech Limited | D77: DANGAR ANILBHAI VEJANADBHAI | E77: SELL | F77: 120,525 | G77: 24.14 | H77: NSE
A78: 2020-08-11 | B78: GSS | C78: GSS Infotech Limited | D78: ELARA INDIA OPPORTUNITIES FUND LIMITED | E78: SELL | F78: 100,000 | G78: 23.86 | H78: NSE
A79: 2020-08-11 | B79: IBULHSGFIN | C79: Indiabulls Hsg Fin Ltd | D79: TOWER RESEARCH CAPITAL MARKETS INDIA PRIVATE LIMITED | E79: SELL | F79: 2,439,816 | G79: 213.34 | H79: NSE
A80: 2020-08-11 | B80: LAOPALA | C80: La Opala RG Limited | D80: PLUTUS WEALTH MANAGEMENT LLP | E80: SELL | F80: 15,156 | G80: 201.73 | H80: NSE
A81: 2020-08-11 | B81: LAOPALA | C81: La Opala RG Limited | D81: WESTBRIDGE CROSSOVER FUND LLC | E81: SELL | F81: 2,299,696 | G81: 185 | H81: NSE
A82: 2020-08-11 | B82: RMDRIP | C82: R M Drip & Sprink Sys Ltd | D82: MAYANK SINHA | E82: SELL | F82: 38,000 | G82: 40.75 | H82: NSE
A83: 2020-08-11 | B83: SPENCER-RE | C83: Spencer's Retail RE | D83: BNK CAPITAL MARKETS LTD. | E83: SELL | F83: 200,000 | G83: 21.66 | H83: NSE
A84: 2020-08-11 | B84: TEMBO | C84: Tembo Global Ind Ltd | D84: ARYAMAN CAPITAL MARKETS LIMITED | E84: SELL | F84: 26,000 | G84: 168 | H84: NSE

Sheet Call Tracker (Equity & F&O)
M5: Back To Main Page
A6: Retail Research Technical Calls & Fundamental Performance Report for the month of Aug-2020
M7: =Main!B10 -> 2020-08-12
B8: Positional Call
A9: Sr.no | B9: Date | D9: Company | E9: Rec | F9: Rec Price | G9: Stop Loss*** | H9: Call Closed At | I9: Target | J9: Remark | K9: Profit / Loss per Share | L9: All charges | M9: Net Gain / Loss % | N9: Status | O9: Closed Date
A10: 1 | B10: 2020-06-29 | D10: BATAINDIA | E10: Buy<> | F10: 1296 | G10: 1,231.00 | H10: 1,344.00 | I10: 1400-1450 | J10: Part Profit of Rs.48/- | K10: =H10-F10 -> 48 | L10: =(F10*-0.8)/100 -> -10.37 | M10: =(K10+L10)/F10 -> 2.90% | N10: Successful | O10: 2020-07-06 | R10: H
A11: 2 | B11: 2020-07-02 | D11: LT | E11: Buy<> | F11: 932 | G11: 874.00 | H11: 968.50 | I11: 1030-1070 | J11: Part Profit of Rs.36.5/- | K11: 36.5 | L11: -7.46 | M11: =(K11+L11)/F11 -> 3.12% | N11: Successful | O11: 2020-08-10 | R11: H
A12: 3 | B12: 2020-07-06 | D12: VINATIORGA | E12: Buy | F12: 1000 | G12: 935.00 | H12: 1,040.00 | I12: 1080-1120 | J12: Part Profit of Rs.40/- | K12: =H12-F12 -> 40 | L12: -8.00 | M12: =(K12+L12)/F12 -> 3.20% | N12: Successful | O12: 2020-07-08 | R12: N
A13: 4 | B13: 2020-07-10 | D13: CUMMINSIND | E13: Buy | F13: 396 | G13: 370.00 | H13: 420.00 | I13: 440-450 | J13: Profit of Rs.24/- | K13: 24 | L13: -3.17 | M13: 5.26% | N13: Successful | O13: 2020-08-07 | R13: N
A14: 5 | B14: 2020-07-14 | D14: ENGINERSIN | E14: Buy{} | F14: 70.5 | G14: 64.50 | H14: 69.25 | I14: 80-84 | J14: Loss of Rs.1.25/- | K14: =H14-F14 -> -1.25 | L14: =(F14*-0.8)/100 -> -0.56 | M14: =(K14+L14)/F14 -> -2.57% | N14: Unsuccessful | O14: 2020-08-03 | R14: H
A15: 6 | B15: 2020-07-22 | D15: NESTLEIND | E15: Buy | F15: 17000-17060 | G15: 15950 | I15: 18500-19000 | J15: Open | R15: H
A16: 7 | B16: 2020-07-27 | D16: EXIDEIND | E16: Buy | F16: 155 | G16: 145 | H16: 155.00 | I16: 175 | J16: Neutral | K16: =H16-F16 -> 0 | L16: =(F16*-0.8)/100 -> -1.24 | M16: =(K16+L16)/F16 -> -0.80% | N16: Neutral | O16: 2020-08-03 | R16: N
A17: 8 | B17: 2020-07-29 | D17: CROMPTON | E17: Buy | F17: 245 | G17: 230.00 | H17: 262.00 | I17: 275 | J17: Profit of Rs.17/- | K17: 17 | L17: -1.96 | M17: 6.14% | N17: Successful | O17: 2020-08-06 | R17: N
A18: 9 | B18: 2020-08-03 | D18: SUNPHARMA | E18: Buy | F18: 520 | G18: 478.00 | H18: 544.00 | I18: 580-600 | J18: Part Profit of Rs.24/- | K18: 24 | L18: -4.16 | M18: 3.82% | N18: Successful | O18: 2020-08-10 | R18: H
A19: 10 | B19: 2020-08-05 | D19: BHARATFORG | E19: Buy | F19: 398 | G19: 374.00 | H19: 430.00 | I19: 450 | J19: Profit of Rs.32/- | K19: =H19-F19 -> 32 | L19: =(F19*-0.8)/100 -> -3.18 | M19: =(K19+L19)/F19 -> 7.24% | N19: Successful | O19: 2020-08-10 | R19: N
A20: 11 | B20: 2020-08-06 | D20: EXIDEIND | E20: Buy | F20: 153 | G20: 141.00 | H20: 162.50 | I20: 175 | J20: Profit of Rs.9.5/- | K20: =H20-F20 -> 9.5 | L20: =(F20*-0.8)/100 -> -1.22 | M20: =(K20+L20)/F20 -> 5.41% | N20: Successful | O20: 2020-08-07 | R20: N
A21: 12 | B21: 2020-08-10 | D21: ASIANPAINT | E21: Buy | F21: 1780-1800 | G21: 1695 | I21: 1950-2000 | J21: Open | R21: H
A22: 13 | B22: 2020-08-10 | D22: ULTRACEMCO | E22: Buy | F22: 3960-3990 | G22: 3720 | I22: 4400-4500 | J22: Open | R22: H
A23: 14 | B23: 2020-08-10 | D23: MGL | E23: Buy | F23: 952-962 | G23: 895 | I23: 1050-1070 | J23: Open | R23: N
A26: CLBS = Closing Basis ***
A27: Dividend adjusted <> | F27: Reinitiated $
A28: Part book {} | F28: Revised stoploss #
B30: Momentum Call
A31: Sr.no | B31: Date | D31: Company | E31: Rec | F31: Rec Price | G31: Stop Loss | H31: Call Closed At | I31: Target | J31: Remark | K31: Profit / Loss per Share/Lot | L31: All charges | M31: Net Gain / Loss % | N31: Status | O31: Closed Date
A32: 1 | B32: 2020-07-30 | D32: CONCOR | E32: Buy | F32: 446.5 | G32: 431 | H32: 463 | I32: 475 | J32: Profit of Rs.16.5/- | K32: =H32-F32 -> 16.5 | L32: =(F32*-0.8)/100 -> -3.57 | M32: =(K32+L32)/F32 -> 2.90% | N32: Successful | O32: 2020-08-04 | R32: N
A33: 2 | B33: 2020-07-31 | D33: BEML | E33: Buy | F33: 641 | G33: 625 | H33: 657 | I33: 670-675 | J33: Profit of Rs.16/- | K33: 16 | L33: -5.13 | M33: 1.70% | N33: Successful | O33: 2020-08-04 | R33: N
A34: 3 | B34: 2020-07-31 | D34: BIOCON | E34: Buy | F34: 410 | G34: 399 | H34: 399 | I34: 430 | J34: Loss of Rs.11/- | K34: -11 | L34: -3.28 | M34: -3.48% | N34: Unsuccessful | O34: 2020-08-07 | R34: N
A35: 4 | B35: 2020-08-03 | D35: BHARTIARTL | E35: Buy | F35: 551 | G35: 534 | H35: 564 | I35: 575-580 | J35: Profit of Rs.13/- | K35: 13 | L35: -4.41 | M35: 1.56% | N35: Successful | O35: 2020-08-10 | R35: H
A36: 5 | B36: 2020-08-03 | D36: CIPLA | E36: Buy | F36: 705 | G36: 688 | H36: 717 | I36: 730-735 | J36: Profit of Rs.12/- | K36: =H36-F36 -> 12 | L36: =(F36*-0.07)/100 -> -0.49 | M36: =(K36+L36)/F36 -> 1.63% | N36: Successful | O36: 2020-08-03 | R36: H
A37: 6 | B37: 2020-08-03 | D37: TCS | E37: Buy | F37: 2247.5 | G37: 2190 | H37: 2299.5 | I37: 2350 | J37: Profit of Rs.52/- | K37: 52 | L37: =(F37*-0.8)/100 -> -17.98 | M37: 1.51% | N37: Successful | O37: 2020-08-05 | R37: N
A38: 7 | B38: 2020-08-03 | D38: HDFCBANK | E38: Buy | F38: 1001 | G38: 970 | H38: 1034 | I38: 1050-1060 | J38: Profit of Rs.33/- | K38: =H38-F38 -> 33 | L38: =(F38*-0.8)/100 -> -8.01 | M38: =(K38+L38)/F38 -> 2.50% | N38: Successful | O38: 2020-08-04 | R38: H
A39: 8 | B39: 2020-08-04 | D39: PGHL | E39: Buy | F39: 4385 | G39: 4280 | H39: 4490 | I39: 4600-4650 | J39: Profit of Rs.105/- | K39: =H39-F39 -> 105 | L39: =(F39*-0.8)/100 -> -35.08 | M39: =(K39+L39)/F39 -> 1.59% | N39: Successful | O39: 2020-08-07 | R39: H
A40: 9 | B40: 2020-08-05 | D40: HINDUNILVR | E40: Buy | F40: 2197-2203 | G40: 2150 | I40: 2300 | J40: Open | R40: N
A41: 10 | B41: 2020-08-05 | D41: DABUR | E41: Buy | F41: 504 | G41: 489 | H41: 518 | I41: 520-530 | J41: Profit of Rs.14/- | K41: =H41-F41 -> 14 | L41: =(F41*-0.8)/100 -> -4.03 | M41: =(K41+L41)/F41 -> 1.98% | N41: Successful | O41: 2020-08-10 | R41: H
A42: 11 | B42: 2020-08-05 | D42: CENTURYTEX | E42: Buy | F42: 299 | G42: 290 | H42: 304 | I42: 320 | J42: Profit of Rs.5/- | K42: =H42-F42 -> 5 | L42: =(F42*-0.07)/100 -> -0.21 | M42: =(K42+L42)/F42 -> 1.60% | N42: Successful | O42: 2020-08-05 | R42: N
A43: 12 | B43: 2020-08-07 | D43: TATASTEEL | E43: Sell | F43: 403 | G43: 415 | H43: 417 | I43: 385-380 | J43: Loss of Rs.14/- | K43: =F43-H43 -> -14 | L43: =(F43*-0.8)/100 -> -3.22 | M43: -4.27% | N43: Unsuccessful | O43: 2020-08-11 | R43: H
A44: 13 | B44: 2020-08-07 | D44: FINCABLES | E44: Buy | F44: 272.5-273.5 | G44: 264 | I44: 294 | J44: Open | R44: N
A45: 14 | B45: 2020-08-10 | D45: UBL | E45: Buy | F45: 961-965 | G45: 938 | I45: 1000-1010 | J45: Open | R45: H
A46: 15 | B46: 2020-08-10 | D46: GODREJPROP | E46: Buy | F46: 893-897 | G46: 868 | I46: 940 | J46: Open | R46: N
A47: 16 | B47: 2020-08-10 | D47: PGHL | E47: Buy | F47: 4510 | G47: 4350 | H47: 4640 | I47: 4800-4900 | J47: Profit of Rs.130/- | K47: =H47-F47 -> 130 | L47: =(F47*-0.8)/100 -> -36.08 | M47: =(K47+L47)/F47 -> 2.08% | N47: Successful | O47: 2020-08-11 | R47: H
A48: 17 | B48: 2020-08-10 | D48: IGL | E48: Buy | F48: 388-391 | G48: 378 | I48: 410 | J48: Open | R48: H
A53: CLBS = Closing Basis *** | H53: *
A54: Dividend adjusted <> | F54: Reinitiated $
F55: Revised stoploss #
A57: Master Trade High Risk
A58: Sr.no | B58: Date | D58: Company | E58: Rec | F58: Rec Price | G58: Stop Loss | H58: Call Closed At | I58: Target | J58: Remark | K58: Profit / Loss per share | L58: All charges | M58: Gain / Loss per Lot | N58: Lot | O58: Status | P58: Closed Date
A59: 1 | B59: 2020-07-31 | D59: AMBUJACEM AUG FUT | E59: Sell | F59: 220.25 | G59: 225 | H59: 224.5 | I59: 210 | J59: Loss of Rs.4.25/- | K59: -4.25 | L59: =(220.25*3000)*-0.07% -> -462.5 | M59: =+N59*K59+L59 -> -13212.5 | N59: 3000 | O59: Unsuccessful | P59: 2020-08-03 | R59: H
A60: 2 | B60: 2020-08-11 | D60: HEROMOTOCO AUG FUT | E60: Buy | F60: 2733-2736 | G60: 2695 | I60: 2800-2810 | J60: Open | R60: N
A66: Master Trade Medium Risk
A67: Sr.no | B67: Date | D67: Company | E67: Rec | F67: Rec Price | G67: Stop Loss | H67: Call Closed At | I67: Target | J67: Remark | K67: Profit/ Loss per lot | L67: All charges | M67: Gain / Loss per Lot | N67: Lot | O67: Status | P67: Closed Date
A68: 1 | B68: 2020-07-31 | D68: ITC 210 CE AUG | E68: Buy | F68: 2.2 | G68: 0.5 | H68: 2.9 | I68: 5-6.0 | J68: Profit of Rs.0.70/- | K68: =H68-F68 -> 0.7 | L68: 100 | M68: =(K68*N68)-100 -> 2140 | N68: 3200 | O68: Successful | P68: 2020-08-11 | R68: H
A69: 2 | B69: 2020-08-05 | D69: MARUTI 6000 PE AUG | E69: Buy | F69: 68-72 | I69: 150-170 | J69: Open | R69: H
A70: 3 | B70: 2020-08-11 | D70: NIFTY 11300 PE 27 AUG | E70: Buy | F70: 160-165 | R70: H
D71: Nifty 11100 PE 27 AUG | E71: Sell | F71: 93-97
A74: Techno -Funda (positional)
A75: Sr.no | B75: Date | D75: Company | E75: Rec | F75: Rec Price | G75: Stop Loss*** | H75: Call Closed At | I75: Target | J75: Remark | K75: Profit / Loss per Share | L75: Gain / Loss % | M75: Status | N75: Closed Date | O75: NSE Closed Price
A77: CLBS = Closing Basis *** | F77: Reinitiated $
A78: Dividend adjusted <> | F78: Revised stoploss #
B83: Investment Idea
A84: Sr.no | B84: Date | D84: Company | E84: Rec | F84: Rec Price | G84: Point of Review | H84: Close Rate | I84: Target | J84: Remark | K84: Profit / Loss per Share | L84: Gain / Loss % | M84: Status | N84: Closed Date
A85: 1 | B85: 2013-11-01 | D85: L&T Finance Holding | E85: Accu | F85: 82.00 | G85: - | H85: 100 | I85: 100.00 | J85: Target Achieved | K85: =H85-F85 -> 18.00 | L85: =K85/F85 -> 21.95% | M85: Successful | N85: 2016-10-14
A86: 2 | B86: 2014-06-04 | D86: Finolex Inds | E86: Buy | F86: 257.00 | G86: - | H86: 300 | I86: 300.00 | J86: Target Achieved | K86: 43.00 | L86: 16.73% | M86: Successful | N86: 2014-07-02
A87: 3 | B87: 2014-07-08 | D87: JK Cement | E87: Buy | F87: 393.00 | G87: - | H87: 468 | I87: 468.00 | J87: Target Achieved | K87: 75.00 | L87: 19.08% | M87: Successful | N87: 2014-08-12
A88: 4 | B88: 2014-08-06 | D88: Finolex Cables | E88: Buy | F88: 205.00 | G88: - | H88: 275 | I88: 250.00 | J88: Target Achieved | K88: 70.00 | L88: 34.15% | M88: Successful | N88: 2014-11-19
A89: 5 | B89: 2014-09-04 | D89: Exide Inds | E89: Buy | F89: 162.00 | G89: - | H89: 190 | I89: 190.00 | J89: Target Achieved | K89: 28.00 | L89: 17.28% | M89: Successful | N89: 2015-01-02
A90: 6 | B90: 2014-09-04 | D90: Deepak Nitrite | E90: Buy | F90: 75.00 | G90: - | H90: 91.5 | I90: 95-100 | J90: Profit of Rs.16.50/- | K90: 16.50 | L90: 22.00% | M90: Successful | N90: 2014-11-11
A91: 7 | B91: 2014-10-01 | D91: Mercks | E91: Buy | F91: 850.00 | G91: - | H91: 982.5 | I91: 1050.00 | J91: Profit of Rs.132.50/- | K91: 132.50 | L91: 15.59% | M91: Successful | N91: 2015-02-04
A92: 8 | B92: 2014-10-01 | D92: Grindwell Norton | E92: Buy | F92: 475.00 | G92: - | H92: 515 | I92: 600.00 | J92: Profit of Rs.40/- | K92: 40.00 | L92: 8.42% | M92: Successful | N92: 2014-10-27
A93: 9 | B93: 2014-10-01 | D93: Snowman Logistics | E93: Buy | F93: 86.00 | G93: - | H93: 99 | I93: 140.00 | J93: Profit of Rs.13.00/- | K93: 13.00 | L93: 15.12% | M93: Successful | N93: 2014-10-27
A94: 10 | B94: 2014-10-14 | D94: Birla Corp | E94: Buy | F94: 496.60 | G94: - | H94: 621 | I94: 580.00 | J94: Target Achieved | K94: 124.40 | L94: 25.05% | M94: Successful | N94: 2016-08-23
A95: 11 | B95: 2014-10-14 | D95: Ultratech Cem | E95: Buy | F95: 2481.90 | G95: - | H95: 2840 | I95: 2870.00 | J95: Profit of Rs.358.10/- | K95: 358.10 | L95: 14.43% | M95: Successful | N95: 2015-01-13
A96: 12 | B96: 2014-10-16 | D96: Sintex Inds | E96: Buy | F96: 84.50 | G96: - | H96: 93 | I96: 110.00 | J96: Profit of Rs.8.50/- | K96: 8.50 | L96: 10.06% | M96: Successful | N96: 2014-10-27
A97: 13 | B97: 2014-10-16 | D97: HSIL | E97: Buy | F97: 401.00 | G97: - | H97: 428 | I97: 450.00 | J97: Profit of Rs.27.00/- | K97: 27.00 | L97: 6.73% | M97: Successful | N97: 2015-01-16
A98: 14 | B98: 2014-10-16 | D98: Eveready Inds | E98: Buy | F98: 101.00 | G98: - | H98: 112 | I98: 120.00 | J98: Profit of Rs.11.00/- | K98: 11.00 | L98: 10.89% | M98: Successful | N98: 2014-10-27
A99: 15 | B99: 2014-11-11 | D99: Pennar Inds | E99: Buy | F99: 59.00 | G99: - | H99: 76 | I99: 76.00 | J99: Target Achieved | K99: 17.00 | L99: 28.81% | M99: Successful | N99: 2017-10-24
A100: 16 | B100: 2014-11-11 | D100: Snowman Logistics | E100: Buy | F100: 99.00 | G100: - | H100: 120 | I100: 120.00 | J100: Profit of Rs.21/- | K100: 21.00 | L100: 21.21% | M100: Successful | N100: 2014-11-17
A101: 17 | B101: 2014-11-13 | D101: Dharamsi Morarji Chem | E101: Buy | F101: 22.00 | G101: - | H101: 33.55 | I101: 32.00 | J101: Profit of Rs 11.55/- | K101: 11.55 | L101: 52.50% | M101: Successful | N101: 2015-07-03
A102: 18 | B102: 2014-12-03 | D102: Tatachem | E102: Buy | F102: 440.00 | G102: - | H102: 520 | I102: 520.00 | J102: Profit of Rs 80.00/- | K102: 80.00 | L102: 18.18% | M102: Successful | N102: 2015-07-23
A103: 19 | B103: 2014-12-03 | D103: Advanta | E103: Buy | F103: 360.00 | G103: - | H103: 427 | I103: 425.00 | J103: Profit of Rs.67.00/- | K103: 67.00 | L103: 18.61% | M103: Successful | N103: 2015-02-23
A104: 20 | B104: 2015-01-08 | D104: GDL | E104: Buy | F104: 360.00 | G104: - | H104: 455 | I104: 420.00 | J104: Profit of Rs.95.00/- | K104: 95.00 | L104: 26.39% | M104: Successful | N104: 2015-01-20
A105: 21 | B105: 2015-01-08 | D105: NRB Bearing | E105: Buy | F105: 130.00 | H105: 175.5 | I105: 165.00 | J105: Profit of Rs 45.50/- | K105: 45.50 | L105: 35.00% | M105: Successful | N105: 2017-12-19
A106: 22 | B106: 2015-02-05 | D106: GSFC | E106: Accu | F106: 98.00 | H106: 120 | I106: 120.00 | J106: Target Achieved | K106: 22.00 | L106: 22.45% | M106: Successful | N106: 2017-01-18
A107: 23 | B107: 2015-02-05 | D107: Sundrmfast | E107: Accu | F107: 196.00 | H107: 262 | I107: 255.00 | J107: Target Achieved | K107: 66.00 | L107: 33.67% | M107: Successful | N107: 2016-08-17
A108: 24 | B108: 2015-03-04 | D108: GPPL | E108: Accu | F108: 235 | H108: 77.00 | I108: 280-285 | J108: Loss of Rs.158/- | K108: -158.00 | L108: -67.23% | M108: Unsuccessful | N108: 2019-02-26
A109: 25 | B109: 2015-03-04 | D109: ORIENTCEM | E109: Accu | F109: 185.00 | H109: 224 | I109: 220-225 | J109: Target Achieved | K109: 39.00 | L109: 21.08% | M109: Successful | N109: 2016-10-04
A110: 26 | B110: 2015-03-27 | D110: PFS | E110: Accu | F110: 49.5 | H110: 15.85 | I110: 67.00 | J110: Loss of Rs.33.65/- | K110: -33.65 | L110: -68% | M110: Unsuccessful | N110: 2019-06-11
A111: 27 | B111: 2015-03-30 | D111: Walchandnagar Ind Ltd | E111: Accu | F111: 183.50 | H111: 219 | I111: 218.00 | J111: Profit of Rs.35.50/- | K111: 35.50 | L111: 19.35% | M111: Successful | N111: 2015-04-09
A112: 28 | B112: 2015-04-20 | D112: Kalpataru Power Transmission Ltd | E112: Accu | F112: =(227+237)/2 -> 232.00 | H112: 298 | I112: 298.00 | J112: Target Achieved | K112: 66.00 | L112: 28.45% | M112: Successful | N112: 2017-03-29
A113: 29 | B113: 2015-05-04 | D113: Mastek Ltd | E113: Buy | F113: 385.00 | H113: =212.5+331 -> 543.5 | I113: 510.00 | J113: Profit of Rs 158.50/- | K113: 158.50 | L113: 41.17% | M113: Successful | N113: 2015-08-19
A114: 30 | B114: 2015-05-04 | D114: Suprajit Eng | E114: Buy | F114: 115.50 | H114: 146 | I114: 142.00 | J114: Profit of Rs 30.50/- | K114: 30.50 | L114: 26.41% | M114: Successful | N114: 2015-07-17
A115: 31 | B115: 2015-05-27 | D115: TCI | E115: Buy | F115: 237.50 | H115: 279.5 | I115: 278.00 | J115: Target Achieved | K115: 42.00 | L115: 17.68% | M115: Successful | N115: 2015-08-06
A116: 32 | B116: 2015-06-19 | D116: HSIL | E116: Accu | F116: 340.00 | H116: 448 | I116: 448.00 | J116: Target Achieved | K116: 108.00 | L116: 31.76% | M116: Successful | N116: 2017-10-10
A117: 33 | B117: 2015-07-06 | D117: Capital First | E117: Accu | F117: 390.00 | H117: 460 | I117: 460.00 | J117: Target Achieved | K117: =H117-F117 -> 70.00 | L117: =K117/F117 -> 17.95% | M117: Successful | N117: 2016-04-18
A118: 34 | B118: 2015-07-10 | D118: Dolphin OffShore | E118: Accu | F118: 122.5 | H118: 61.00 | I118: 172.00 | J118: Loss of Rs.61.50/- | K118: -61.50 | L118: -50.20% | M118: Unsuccessful | N118: 2018-08-21
A119: 35 | B119: 2015-08-03 | D119: Allcargo logistics | E119: Accu | F119: 297.50 | H119: 350 | I119: 360.00 | J119: Profit of Rs 52.50/- | K119: 52.50 | L119: 17.65% | M119: Successful | N119: 2015-08-16
A120: 36 | B120: 2015-08-03 | D120: Camline Fine | E120: Accu | F120: 115.50 | H120: 149 | I120: 140.00 | J120: Profit of Rs 33.50/- | K120: 33.50 | L120: 29.00% | M120: Successful | N120: 2017-01-05
A121: 37 | B121: 2015-09-04 | D121: TCI | E121: Accu | F121: 226.00 | H121: 292 | I121: 292.00 | J121: Target Achieved | K121: 66.00 | L121: 29.20% | M121: Successful | N121: 2015-10-09
A122: 38 | B122: 2015-09-07 | D122: Kalpataru Power Transmission Ltd | E122: Accu | F122: 232.50 | H122: 312.5 | I122: 310.00 | J122: Target Achieved | K122: 80.00 | L122: 34.41% | M122: Successful | N122: 2017-03-29
A123: 39 | B123: 2015-09-21 | D123: LLOYD ELECTRIC & ENG LTD | E123: Accu | F123: 196.50 | H123: 238 | I123: 238.00 | J123: Target Achieved | K123: 41.50 | L123: 21.12% | M123: Successful | N123: 2015-10-14
A124: 40 | B124: 2015-09-24 | D124: L&T Finance Holding | E124: Accu | F124: 65.00 | H124: 82 | I124: 82.00 | J124: Target Achieved | K124: 17.00 | L124: 26.15% | M124: Successful | N124: 2016-07-27
A125: 41 | B125: 2015-10-14 | D125: KEC International ltd | E125: Accu | F125: 144.00 | H125: 182.5 | I125: 181.00 | J125: Target Achieved | K125: 38.50 | L125: 26.74% | M125: Successful | N125: 2017-03-23
A126: 42 | B126: 2015-10-14 | D126: Gruh Finance | E126: Accu | F126: 264.00 | H126: 311 | I126: 311.00 | J126: Target Achieved | K126: 47.00 | L126: 17.80% | M126: Successful | N126: 2016-08-22
A127: 43 | B127: 2015-11-10 | D127: Pidilitind | E127: Buy | F127: 549.50 | H127: 630 | I127: 630.00 | J127: Target Achieved | K127: 80.50 | L127: 14.65% | M127: Successful | N127: 2016-02-19
A128: 44 | B128: 2015-12-04 | D128: Zensar Technology | E128: Accu | F128: 1027.50 | H128: 1315 | I128: 1250.00 | J128: Target Achieved | K128: 287.50 | L128: 27.98% | M128: Successful | N128: 2018-05-24
A129: 45 | B129: 2015-12-29 | D129: Vinati Organics Ltd | E129: Accu | F129: 465.00 | H129: 540 | I129: 540.00 | J129: Target Achieved | K129: 75.00 | L129: 16.13% | M129: Successful | N129: 2016-06-09
A130: 46 | B130: 2016-01-11 | D130: GSFC | E130: Buy | F130: 81.00 | H130: 110 | I130: 110.00 | J130: Target Achieved | K130: 29.00 | L130: 35.80% | M130: Successful | N130: 2017-01-10
A131: 47 | B131: 2016-01-13 | D131: SSWL | E131: Buy | F131: 417.50 | H131: 547 | I131: 535.00 | J131: Target Achieved | K131: 129.50 | L131: 31.02% | M131: Successful | N131: 2016-07-27
A132: 48 | B132: 2016-02-08 | D132: Persistent System Ltd | E132: Accu | F132: 650.00 | H132: 800 | I132: 800.00 | J132: Target Achieved | K132: 150.00 | L132: 23.08% | M132: Successful | N132: 2018-02-23
A133: 49 | B133: 2016-03-04 | D133: UPL | E133: Accu | F133: 437.50 | H133: 504.5 | I133: 522.00 | J133: Profit of Rs.67/- | K133: 67.00 | L133: 15.31% | M133: Successful | N133: 2016-04-20
A134: 50 | B134: 2016-03-09 | D134: Ashoka Buildcon Ltd | E134: Accu | F134: 189.50 | H134: 218 | I134: 218.00 | J134: Target Achieved | K134: 28.50 | L134: 15.04% | M134: Successful | N134: 2017-10-26
A135: 51 | B135: 2016-04-11 | D135: PTC INDIA FIN SERV LTD | E135: Accu | F135: 36.5 | H135: 15.85 | I135: 60.00 | J135: Loss of Rs.20.65/- | K135: -20.65 | L135: -56.58% | M135: Unsuccessful | N135: 2019-06-11
A136: 52 | B136: 2016-04-12 | D136: CAMLINFINE $ | E136: Accu | F136: 93.00 | H136: 149 | I136: 140.00 | J136: Profit of Rs 56/- | K136: 56.00 | L136: 60.22% | M136: Successful | N136: 2017-01-05
A137: 53 | B137: 2016-04-12 | D137: Greaves Cotton Ltd. | E137: Accu | F137: 130.00 | H137: 150 | I137: 150-155 | J137: Target Achieved | K137: 20.00 | L137: 15.38% | M137: Successful | N137: 2016-07-13
A138: 54 | B138: 2016-04-13 | D138: DHFL | E138: Accu | F138: 196.00 | H138: 299 | I138: 299.00 | J138: Target Achieved | K138: 103.00 | L138: 52.55% | M138: Successful | N138: 2016-09-07
A139: 55 | B139: 2016-04-13 | D139: Magma | E139: Accu | F139: 88.00 | H139: 103 | I139: 103.00 | J139: Target Achieved | K139: 15.00 | L139: 17.05% | M139: Successful | N139: 2016-06-09
A140: 56 | B140: 2016-05-02 | D140: KEC International ltd $ | E140: Accu | F140: 127.50 | H140: 148 | I140: 148-150 | J140: Target Achieved | K140: =H140-F140 -> 20.50 | L140: =K140/F140 -> 16.08% | M140: Successful | N140: 2016-07-13
A141: 57 | B141: 2016-05-03 | D141: Mindtree | E141: Accu | F141: 675.00 | H141: 815 | I141: 790-800 | J141: Target Achieved | K141: =H141-F141 -> 140.00 | L141: =K141/F141 -> 20.74% | M141: Successful | N141: 2018-02-23
A142: 58 | B142: 2016-06-01 | D142: Atulauto | E142: Accu | F142: 500 | H142: 232.50 | I142: 565-570 | J142: Loss of Rs.267.50 /- | K142: =H142-F142 -> -267.50 | L142: =K142/F142 -> -53.50% | M142: Unsuccessful | N142: 2019-09-27
A143: 59 | B143: 2016-06-06 | D143: TRITURBINE | E143: Accu | F143: 110.00 | H143: 126.5 | I143: 125.00 | J143: Profit of Rs.16.50/- | K143: =H143-F143 -> 16.50 | L143: =K143/F143 -> 15.00% | M143: Successful | N143: 2016-07-01
A144: 60 | B144: 2016-06-17 | D144: Pennar Industries Ltd | E144: Accu | F144: 44.00 | H144: 69.5 | I144: 69.50 | J144: Profit of Rs.25.50/- | K144: =H144-F144 -> 25.50 | L144: =K144/F144 -> 57.95% | M144: Successful | N144: 2017-08-30
A145: 61 | B145: 2016-06-28 | D145: EVEREADY | E145: Accu | F145: 262.50 | H145: 340 | I145: 333.00 | J145: Profit of Rs.77.50/- | K145: 77.50 | L145: 29.52% | M145: Successful | N145: 2017-10-09
A146: 62 | B146: 2016-06-28 | D146: FIEMIND | E146: Accu | F146: 840.00 | H146: 1230 | I146: 1230.00 | J146: Target Achieved | K146: 390.00 | L146: 46.43% | M146: Successful | N146: 2016-10-06
A147: 63 | B147: 2016-07-05 | D147: Bajaj Corp Ltd | E147: Accu | F147: 395 | H147: =(468.5+342.5)/2 -> 405.50 | I147: 510.00 | J147: Profit of Rs.10.50/- | K147: =H147-F147 -> 10.50 | L147: =K147/F147 -> 3% | M147: Neutral | N147: 2019-05-21
A148: 64 | B148: 2016-08-02 | D148: GPPL $ | E148: Buy | F148: =169.5-12.8 -> 156.7 | H148: 77.00 | I148: 198-200 | J148: Loss of Rs.79.7/- | K148: -79.70 | L148: -50.86% | M148: Unsuccessful | N148: 2019-02-26
A149: 65 | B149: 2016-08-04 | D149: WONDERLA HOLIDAYS LTD | E149: Accu | F149: 400 | H149: 305.00 | I149: 475.00 | J149: Loss of Rs.95/- | K149: -95.00 | L149: -23.75% | M149: Unsuccessful | N149: 2019-05-21
A150: 66 | B150: 2016-08-11 | D150: CAMLINFINE | E150: Accu | F150: 86.50 | H150: 130 | I150: 130.00 | J150: Profit of Rs.43.50/- | K150: 43.50 | L150: 50.29% | M150: Successful | N150: 2017-12-22
A151: 67 | B151: 2016-08-18 | D151: GRANULES | E151: Accu | F151: 133.5 | H151: 126.50 | I151: 178.00 | J151: Exit | K151: -7.00 | L151: -5.24% | M151: Unsuccessful | N151: 2016-09-02
A152: 68 | B152: 2016-08-31 | D152: VA TECH WABAG | E152: Accu | F152: 560.00 | H152: 725 | I152: 725.00 | J152: Target Achieved | K152: 165.00 | L152: 29.46% | M152: Successful | N152: 2016-03-27
A153: 69 | B153: 2016-09-01 | D153: SKIPPER LIMITED | E153: Accu | F153: 160.50 | H153: 210 | I153: 210.00 | J153: Target Achieved | K153: 49.50 | L153: 30.84% | M153: Successful | N153: 2017-05-16
A154: 70 | B154: 2016-10-03 | D154: IFBIND | E154: Accu | F154: 430.00 | H154: 596 | I154: 575.00 | J154: Profit of Rs.166/- | K154: 166.00 | L154: 38.60% | M154: Successful | N154: 2017-02-03
A155: 71 | B155: 2016-10-14 | D155: ASIANTILES | E155: Accu | F155: 280.00 | H155: 345 | I155: 345.00 | J155: Target Achieved | K155: =H155-F155 -> 65.00 | L155: =K155/F155 -> 23.21% | M155: Successful | N155: 2017-03-20
A156: 72 | B156: 2016-10-14 | D156: DEEPIND | E156: Accu | F156: 245.00 | H156: 325.5 | I156: 330.00 | J156: Profit of Rs.80.5/- | K156: 80.50 | L156: =K156/F156 -> 32.86% | M156: Successful | N156: 2017-02-03
A157: 73 | B157: 2016-10-17 | D157: DCBBANK | E157: Accu | F157: 125.00 | H157: 160 | I157: 160.00 | J157: Target Achieved | K157: 35.00 | L157: 28.00% | M157: Successful | N157: 2017-03-09
A158: 74 | B158: 2016-10-17 | D158: ORIENTREF | E158: Accu | F158: 114.00 | H158: 145 | I158: 145.00 | J158: Target Achieved | K158: 31.00 | L158: =K158/F158 -> 27.19% | M158: Successful | N158: 2017-05-04
A159: 75 | B159: 2016-10-17 | D159: GANECOS | E159: Accu | F159: 212.00 | H159: 280 | I159: 276.00 | J159: Profit of Rs.68/- | K159: 68.00 | L159: =K159/F159 -> 32.08% | M159: Successful | N159: 2017-05-03
A160: 76 | B160: 2016-11-04 | D160: NBCC | E160: Accu | F160: 155.00 | H160: 210 | I160: 210.00 | J160: Profit of Rs.55/- | K160: 55.00 | L160: =K160/F160 -> 35.48% | M160: Successful | N160: 2017-07-28
A161: 77 | B161: 2016-12-06 | D161: PRECAM | E161: Accu | F161: 150.5 | H161: 72.50 | I161: 174.00 | J161: Loss of Rs.78/- | K161: -78.00 | L161: -51.83% | M161: Unsuccessful | N161: 2018-08-21
A162: 78 | B162: 2016-12-08 | D162: INFRATEL | E162: Accu | F162: 380.00 | H162: 478 | I162: 468.00 | J162: Target Achieved | K162: =H162-F162 -> 98.00 | L162: =K162/F162 -> 25.79% | M162: Successful | N162: 2017-10-17
A163: 79 | B163: 2016-12-30 | D163: GODREJPROP | E163: Accu | F163: 305.00 | H163: 375 | I163: 375.00 | J163: Target Achieved | K163: =H163-F163 -> 70.00 | L163: =K163/F163 -> 22.95% | M163: Successful | N163: 2017-02-02
A164: 80 | B164: 2017-01-04 | D164: DEEPAKNTR | E164: Accu | F164: 99.50 | H164: 158 | I164: 158.00 | J164: Target Achieved | K164: =H164-F164 -> 58.50 | L164: =K164/F164 -> 58.79% | M164: Successful | N164: 2017-06-12
A165: 81 | B165: 2017-01-04 | D165: DEEPAKNTR | E165: Accu | F165: 99.50 | H165: 158 | I165: 158.00 | J165: Target Achieved | K165: 58.50 | L165: 58.79% | M165: Successful | N165: 2017-06-12
A166: 82 | B166: 2017-02-20 | D166: RECLTD | E166: Accu | F166: 140.50 | H166: 220 | I166: 220.00 | J166: Target Achieved | K166: =H166-F166 -> 79.50 | L166: =K166/F166 -> 56.58% | M166: Successful | N166: 2017-05-09
A167: 83 | B167: 2017-02-20 | D167: SUBROS | E167: Accu | F167: 202.50 | H167: 234 | I167: 234.00 | J167: Target Achieved | K167: 31.50 | L167: 15.56% | M167: Successful | N167: 2017-04-11
A168: 84 | B168: 2017-03-24 | D168: VRLLOG | E168: Accu | F168: 300.50 | H168: 417.5 | I168: 420.00 | J168: Profit of Rs.117/- | K168: =H168-F168 -> 117.00 | L168: =K168/F168 -> 38.94% | M168: Successful | N168: 2017-12-01
A169: 85 | B169: 2017-03-24 | D169: FIEMIND | E169: Accu | F169: 850.00 | H169: 1042.5 | I169: 1023.00 | J169: Profit of Rs 192.50/- | K169: 192.50 | L169: 22.65% | M169: Successful | N169: 2017-04-05
A170: 86 | B170: 2017-04-05 | D170: RATNAMANI | E170: Accu | F170: 785.00 | H170: 930 | I170: 920.00 | J170: Profit of Rs.145/- | K170: =H170-F170 -> 145.00 | L170: =K170/F170 -> 18.47% | M170: Successful | N170: 2017-08-29
A171: 87 | B171: 2017-04-06 | D171: ZEEMEDIA | E171: Accu | F171: 40 | H171: 13.10 | I171: 60.00 | J171: Loss of Rs.26.9/- | K171: -26.90 | L171: -67.25% | M171: Unsuccessful | N171: 2018-02-07
A172: 88 | B172: 2017-04-12 | D172: DABUR | E172: Accu | F172: 289.50 | H172: 354 | I172: 360.00 | J172: Profit of Rs.64.5/- | K172: =H172-F172 -> 64.50 | L172: =K172/F172 -> 22.28% | M172: Successful | N172: 2017-11-01
A173: 89 | B173: 2017-04-20 | D173: KPRMILL | E173: Accu | F173: 700.00 | H173: 840 | I173: 840.00 | J173: Profit of Rs.140/- | K173: 140.00 | L173: 20.00% | M173: Successful | N173: 2017-06-07
A174: 90 | B174: 2017-06-01 | D174: ESSELPACK | E174: Accu | F174: 130.00 | H174: 144.25 | I174: 170.00 | J174: Profit of Rs.14.25/- | K174: 14.25 | L174: 10.96% | M174: Successful | N174: 2019-07-29
A175: 91 | B175: 2017-06-15 | D175: KEI | E175: Accu | F175: 214.50 | H175: 262 | I175: 262.00 | J175: Profit of Rs.47.5/- | K175: 47.50 | L175: 22.14% | M175: Successful | N175: 2017-08-30
A176: 92 | B176: 2017-07-17 | D176: MAYURUNIQ | E176: Accu | F176: 370.00 | H176: 447.5 | I176: 450.00 | J176: Target Achieved | K176: 77.50 | L176: 20.95% | M176: Successful | N176: 2017-10-27
A177: 93 | B177: 2017-07-27 | D177: RAMCOCEM | E177: Accu | F177: 657.50 | H177: 825 | I177: 820.00 | J177: Target Achieved | K177: 167.50 | L177: 25.48% | M177: Successful | N177: 2017-12-21
A178: 94 | B178: 2017-08-17 | D178: FINPIPE | E178: Accu | F178: 605.00 | H178: 750 | I178: 750.00 | J178: Profit of Rs.145/- | K178: 145.00 | L178: 23.97% | M178: Successful | N178: 2017-10-19
A179: 95 | B179: 2017-09-01 | D179: SHK | E179: Accu | F179: 255 | H179: 217.25 | I179: 320.00 | J179: Loss of Rs.37.75/- | K179: -37.75 | L179: -15% | M179: Unsuccessful | N179: 2019-07-15
A180: 96 | B180: 2017-09-19 | D180: SKIPPER | E180: Accu | F180: 215.00 | H180: 258 | I180: 258.00 | J180: Target Achieved | K180: 43.00 | L180: 20.00% | M180: Successful | N180: 2017-11-01
A181: 97 | B181: 2017-09-19 | D181: SKIPPER | E181: Accu | F181: 215.00 | H181: 258 | I181: 258.00 | J181: Target Achieved | K181: 43.00 | L181: 20.00% | M181: Successful | N181: 2017-11-01
A182: 98 | B182: 2017-09-20 | D182: CAMLINFINE$ | E182: Accu | F182: 75.00 | H182: 90 | I182: 90.00 | J182: Profit of Rs.15.00/- | K182: =H182-F182 -> 15.00 | L182: =K182/F182 -> 20.00% | M182: Successful | N182: 2017-10-11
A183: 99 | B183: 2017-10-03 | D183: GNA | E183: Accu | F183: 315.00 | H183: 392 | I183: 384.00 | J183: Profit of Rs.77/- | K183: 77.00 | L183: 24.44% | M183: Successful | N183: 2017-10-09
A184: 100 | B184: 2017-10-05 | D184: NOCIL | E184: Accu | F184: 145.00 | H184: 179 | I184: 180.00 | J184: Profit of Rs.34/- | K184: 34.00 | L184: 23.45% | M184: Successful | N184: 2017-10-17
A185: 101 | B185: 2017-10-06 | D185: CENTURYPLY | E185: Accu | F185: 256.00 | H185: 323 | I185: 320.00 | J185: Target Achieved | K185: 67.00 | L185: 26.17% | M185: Successful | N185: 2017-11-28
A186: 102 | B186: 2017-10-09 | D186: EIHOTEL | E186: Accu | F186: 137.50 | H186: 184 | I186: 183.00 | J186: Profit of Rs.46.5/- | K186: 46.50 | L186: 33.82% | M186: Successful | N186: 2018-01-08
A187: 103 | B187: 2017-10-10 | D187: NRBBEARING | E187: Accu | F187: 125.50 | H187: 158 | I187: 155.00 | J187: Profit of Rs.32.5/- | K187: 32.50 | L187: 25.90% | M187: Successful | N187: 2017-11-28
A188: 104 | B188: 2017-10-10 | D188: BOROSIL | E188: Accu | F188: 895.00 | H188: 1122.5 | I188: 1078.00 | J188: Profit of Rs.227.5/- | K188: 227.50 | L188: 25.42% | M188: Successful | N188: 2018-01-17
A189: 105 | B189: 2017-10-12 | D189: CYIENT | E189: Accu | F189: 525.00 | H189: 629 | I189: 629.00 | J189: Target Achieved | K189: 104.00 | L189: 19.81% | M189: Successful | N189: 2018-01-19
A190: 106 | B190: 2017-11-07 | D190: HATSUN | E190: Accu | F190: 740.00 | H190: 892.5 | I190: 900.00 | J190: Profit of Rs.152.5/- | K190: =H190-F190 -> 152.50 | L190: =K190/F190 -> 20.61% | M190: Successful | N190: 2017-11-13
A191: 107 | B191: 2017-12-04 | D191: SANGHIIND | E191: Accu | F191: 118.50 | H191: 143.5 | I191: 145.00 | J191: Profit of Rs.25/- | K191: =H191-F191 -> 25.00 | L191: =K191/F191 -> 21.10% | M191: Successful | N191: 2017-12-28
A192: 108 | B192: 2017-12-21 | D192: KAJARIACER | E192: Accu | F192: 715 | H192: 500.00 | I192: 872.00 | J192: Loss of Rs.215/- | K192: =H192-F192 -> -215.00 | L192: =K192/F192 -> -30.07% | M192: Unsuccessful | N192: 2019-07-24
A193: 109 | B193: 2017-12-29 | D193: GNA | E193: Accu | F193: 435.00 | H193: 542.5 | I193: 539.00 | J193: Target Achieved | K193: 107.50 | L193: 24.71% | M193: Successful | N193: 2018-04-16
A194: 110 | B194: 2017-12-29 | D194: ZENSARTECH | E194: Accu | F194: 885.00 | H194: 1090 | I194: 1084.00 | J194: Target Achieved | K194: 205.00 | L194: 23.16% | M194: Successful | N194: 2018-04-23
A195: 111 | B195: 2018-04-02 | D195: EVERESTIND | E195: Accu | F195: 478.50 | H195: 442 | I195: 613.00 | J195: Loss of Rs.36.50 /- | K195: =H195-F195 -> -36.50 | L195: =K195/F195 -> -7.63% | M195: Unsuccessful | N195: 2019-10-24
A196: 112 | B196: 2018-04-04 | D196: GPPL$ | E196: Accu | F196: =141.5-7.3 -> 134.2 | H196: 77.00 | I196: 180.00 | J196: Loss of Rs.57.2/- | K196: =H196-F196 -> -57.20 | L196: =K196/F196 -> -42.62% | M196: Unsuccessful | N196: 2019-02-26
A197: 113 | B197: 2018-04-19 | D197: MANPASAND | E197: Accu | F197: 430 | H197: 220.00 | I197: 537.00 | J197: Loss of Rs.210/- | K197: =H197-F197 -> -210.00 | L197: =K197/F197 -> -48.84% | M197: Unsuccessful | N197: 2018-06-01
A198: 114 | B198: 2018-04-30 | D198: HEIDELBERG | E198: Accu | F198: 153.50 | H198: 196.00 | I198: 196.00 | J198: Profit of Rs.42.50/- | K198: =H198-F198 -> 42.50 | L198: =K198/F198 -> 28% | M198: Successful | N198: 2019-05-20
A199: 115 | B199: 2018-07-25 | D199: ZEEMEDIA | E199: Accu | F199: 27.5 | H199: 13.10 | I199: 60.00 | J199: Loss of Rs.14.40/- | K199: -14.40 | L199: -52.36% | M199: Unsuccessful | N199: 2018-02-07
A200: 116 | B200: 2018-08-06 | D200: GABRIEL | E200: Accu | F200: 148.5 | H200: 102 | I200: 182.00 | J200: Loss of Rs.46.50/- | K200: =H200-F200 -> -46.50 | L200: =K200/F200 -> -31.31% | M200: Unsuccessful | N200: 2019-07-15
A201: 117 | B201: 2018-08-23 | D201: INDIANHUME | E201: Accu | F201: 285 | H201: 355 | I201: 364.00 | J201: Profit of Rs.70/- | K201: 70.00 | L201: 24.56% | M201: Successful | N201: 2018-12-21
A202: 118 | B202: 2018-08-29 | D202: GRINDWELL | E202: Accu | F202: 525 | H202: 585 | I202: 635.00 | J202: Profit of Rs.60- | K202: =H202-F202 -> 60.00 | L202: =K202/F202 -> 11.43% | M202: Successful | N202: 2019-07-16
A203: 119 | B203: 2018-10-22 | D203: FINPIPE | E203: Accu | F203: 475 | H203: 574 | I203: 570.00 | J203: Target Achieved | K203: 99.00 | L203: 20.84% | M203: Successful | N203: 2018-10-30
A204: 120 | B204: 2018-10-24 | D204: GULFOILLUB | E204: Accu | F204: 707.5 | H204: 872 | I204: 872.00 | J204: Target Achieved | K204: 164.50 | L204: 23.25% | M204: Successful | N204: 2019-01-17
A205: 121 | B205: 2018-10-25 | D205: DBCORP | E205: Accu | F205: 162 | H205: 204 | I205: 209.00 | J205: Profit of Rs.42/- | K205: 42.00 | L205: 25.93% | M205: Successful | N205: 2019-03-15
A206: 122 | B206: 2018-10-26 | D206: RITES | E206: Accu | F206: 240 | H206: 297 | I206: 297.00 | J206: Target Achieved | K206: 57.00 | L206: 23.75% | M206: Successful | N206: 2018-11-13
A207: 123 | B207: 2018-12-05 | D207: BRIGADE | E207: Accu | F207: 202.5 | H207: 255 | I207: 252.00 | J207: Target Achieved | K207: 52.50 | L207: 25.93% | M207: Successful | N207: 2019-03-18
A208: 124 | B208: 2018-12-31 | D208: JKCEMENT | E208: Accu | F208: 710 | H208: 866 | I208: 866.00 | J208: Target Achieved | K208: 156.00 | L208: 21.97% | M208: Successful | N208: 2019-03-29
A209: 125 | B209: 2019-02-26 | D209: MARICO | E209: Accu | F209: 337.25 | H209: 398.5 | I209: 411.00 | J209: Profit of Rs.61.25/- | K209: 61.25 | L209: 18.16% | M209: Successful | N209: 2019-10-22
A210: 126 | B210: 2019-04-04 | D210: ITDCEM | E210: Accu | F210: 130 | H210: 65 | I210: 158.00 | J210: Loss of Rs.65 /- | K210: -65.00 | L210: -50.00% | M210: Unsuccessful | N210: 2019-09-18
A211: 127 | B211: 2017-10-09 | D211: RECLTD | E211: Accu | F211: 141.5 | H211: 183.50 | I211: 210.00 | J211: Part Profit of Rs.42/- | K211: 42.00 | L211: 30% | M211: Successful | N211: 2017-11-03 | R211: V
A212: 128 | B212: 2017-12-05 | D212: ALLCARGO | E212: Accu | F212: 172.00 | H212: 155.25 | I212: 230.00 | J212: Loss of Rs.16.75/- | K212: =H212-F212 -> -16.75 | L212: =K212/F212 -> -9.74% | M212: Unsuccessful | N212: 2019-11-18 | R212: V
A213: 129 | B213: 2018-10-25 | D213: GODREJCP | E213: Accu | F213: 698.50 | H213: 850.00 | I213: 890.00 | J213: Part Profit of Rs.151.50/- | K213: 151.50 | L213: 22% | M213: Successful | N213: 2018-12-19 | R213: V
A214: 130 | B214: 2017-05-22 | D214: GREAVESCOT | E214: Accu | F214: 127.6 | H214: 138.00 | I214: 190.00 | J214: Profit of Rs.10.40 | K214: 10.40 | L214: 8% | M214: Successful | N214: 2019-11-05 | R214: K
A215: 131 | B215: 2018-02-27 | D215: MOLDTKPAC | E215: Accu | F215: 317.00 | I215: 398.00 | J215: Open | M215: Open | R215: K
A216: 132 | B216: 2018-03-05 | D216: LICHSGFIN | E216: Accu | F216: =510-14.4 -> 495.60 | H216: 350 | I216: 672.00 | J216: Loss of Rs.145.60/- | K216: =H216-F216 -> -145.60 | L216: =K216/F216 -> -29.38% | M216: Unsuccessful | N216: 2020-02-26 | R216: K
A217: 133 | B217: 2018-05-17 | D217: PHILIPCARB | E217: Accu | F217: 230.30 | H217: 102.5 | I217: 348.00 | J217: Loss of Rs.127.80/- | K217: =H217-F217 -> -127.80 | L217: =K217/F217 -> -55.49% | M217: Unsuccessful | N217: 2020-03-06 | R217: V
A218: 134 | B218: 2018-06-07 | D218: KEC | E218: Accu | F218: =342.5-5.1 -> 337.40 | I218: 439.00 | J218: Open | M218: Open | R218: K
A219: 135 | B219: 2018-07-04 | D219: ASHOKLEY | E219: Accu | F219: =127.5-5.53 -> 121.97 | I219: 170.00 | J219: Open | M219: Open | R219: K
A220: 136 | B220: 2018-07-13 | D220: FCONSUMER | E220: Accu | F220: 46.50 | H220: 17 | I220: 59.00 | J220: Loss of Rs.29.50/- | K220: =H220-F220 -> -29.50 | L220: =K220/F220 -> -63.44% | M220: Unsuccessful | N220: 2020-02-26 | R220: V
A221: 137 | B221: 2018-10-23 | D221: JKPAPER | E221: Accu | F221: 156.50 | I221: 191.00 | J221: Open | M221: Open | R221: V
A222: 138 | B222: 2018-12-05 | D222: CCL | E222: Accu | F222: 259.50 | I222: 321.00 | J222: Open | M222: Open | R222: K
A223: 139 | B223: 2018-12-05 | D223: VARROC | E223: Accu | F223: 715 | H223: 445 | I223: 840.00 | J223: Loss of Rs.270/- | K223: =H223-F223 -> -270.00 | L223: =K223/F223 -> -37.76% | M223: Unsuccessful | N223: 2019-12-01 | R223: V
A224: 140 | B224: 2019-01-04 | D224: MGL | E224: Accu | F224: 875 | H224: 1165 | I224: 1185.00 | J224: Profit of Rs.290/- | K224: 290.00 | L224: 33.14% | M224: Successful | N224: 2020-01-17 | R224: V
... 15 more rows

Sheet Sheet2 (hidden)
A1: SYMBOL | B1: SERIES | C1: OPEN | D1: HIGH | E1: LOW | F1: CLOSE | G1: LAST | H1: PREVCLOSE | I1: TOTTRDQTY | J1: TOTTRDVAL | K1: TIMESTAMP | L1: TOTALTRADES | M1: ISIN | N1: ISIN
A2: 20MICRONS | B2: EQ | C2: 27.9 | D2: 29 | E2: 25.9 | F2: 26.2 | G2: 25.9 | H2: 27.5 | I2: 80527 | J2: 2193820.55 | K2: 2020-04-08 | L2: 1099 | M2: INE144J01027
A3: 21STCENMGM | B3: EQ | C3: 10.15 | D3: 10.5 | E3: 10.1 | F3: 10.4 | G3: 10.5 | H3: 10.3 | I3: 3205 | J3: 32728.25 | K3: 2020-04-08 | L3: 28 | M3: INE253B01015
A4: 3IINFOTECH | B4: EQ | C4: 1.35 | D4: 1.35 | E4: 1.2 | F4: 1.25 | G4: 1.25 | H4: 1.35 | I4: 2793301 | J4: 3578364.95 | K4: 2020-04-08 | L4: 46535 | M4: INE748C01020
A5: 3MINDIA | B5: EQ | C5: 18950 | D5: 19170 | E5: 18155.05 | F5: 18318.2 | G5: 18270 | H5: 18755.7 | I5: 9926 | J5: 183605811.2 | K5: 2020-04-08 | L5: 4453 | M5: INE470A01017
A6: 3PLAND | B6: EQ | C6: 3.7 | D6: 3.85 | E6: 3.7 | F6: 3.85 | G6: 3.85 | H6: 3.7 | I6: 406 | J6: 1557.85 | K6: 2020-04-08 | L6: 9 | M6: INE105C01023
A7: 5PAISA | B7: EQ | C7: 119.95 | D7: 134 | E7: 115 | F7: 123.35 | G7: 120.5 | H7: 116.4 | I7: 6500 | J7: 793277.05 | K7: 2020-04-08 | L7: 265 | M7: INE618L01018
A8: 63MOONS | B8: EQ | C8: 50.7 | D8: 55.45 | E8: 50.7 | F8: 53.7 | G8: 53.55 | H8: 50.7 | I8: 72221 | J8: 3890984.7 | K8: 2020-04-08 | L8: 3078 | M8: INE111B01023
A9: A2ZINFRA | B9: EQ | C9: 3.15 | D9: 3.25 | E9: 3.1 | F9: 3.15 | G9: 3.15 | H9: 3.15 | I9: 116011 | J9: 367778.85 | K9: 2020-04-08 | L9: 227 | M9: INE619I01012
A10: AARTIDRUGS | B10: EQ | C10: 627 | D10: 669.3 | E10: 605 | F10: 631.6 | G10: 625 | H10: 607.85 | I10: 75970 | J10: 48223549.15 | K10: 2020-04-08 | L10: 5720 | M10: INE767A01016
A11: AARTIIND | B11: EQ | C11: 839.95 | D11: 909.8 | E11: 818 | F11: 854.9 | G11: 864 | H11: 830.7 | I11: 477805 | J11: 419092386.9 | K11: 2020-04-08 | L11: 50045 | M11: INE769A01020
A12: AARVEEDEN | B12: EQ | C12: 8.95 | D12: 9.25 | E12: 7.85 | F12: 8.35 | G12: 8.45 | H12: 8.1 | I12: 9251 | J12: 77100.1 | K12: 2020-04-08 | L12: 94 | M12: INE273D01019
A13: AAVAS | B13: EQ | C13: 1101 | D13: 1183 | E13: 1101 | F13: 1135.2 | G13: 1137 | H13: 1142.35 | I13: 24179 | J13: 28073100.85 | K13: 2020-04-08 | L13: 3631 | M13: INE216P01012
A14: ABAN | B14: EQ | C14: 15.7 | D14: 16.2 | E14: 15.7 | F14: 16.2 | G14: 16.2 | H14: 15.45 | I14: 37609 | J14: 608439.6 | K14: 2020-04-08 | L14: 288 | M14: INE421A01028
A15: ABB | B15: EQ | C15: 935 | D15: 965 | E15: 910 | F15: 930.7 | G15: 928 | H15: 931.35 | I15: 87757 | J15: 82358527.9 | K15: 2020-04-08 | L15: 4699 | M15: INE117A01022
A16: ABBOTINDIA | B16: EQ | C16: 16799.45 | D16: 18250 | E16: 16750 | F16: 17481.1 | G16: 17488 | H16: 16699.7 | I16: 57991 | J16: 1023745502 | K16: 2020-04-08 | L16: 21022 | M16: INE358A01014
A17: ABCAPITAL | B17: EQ | C17: 45 | D17: 47.9 | E17: 44.25 | F17: 45.6 | G17: 45.7 | H17: 45.1 | I17: 1253267 | J17: 57952493.6 | K17: 2020-04-08 | L17: 7317 | M17: INE674K01013
A18: ABFRL | B18: EQ | C18: 148 | D18: 152.8 | E18: 146.75 | F18: 149 | G18: 148 | H18: 149.85 | I18: 416099 | J18: 62371769.1 | K18: 2020-04-08 | L18: 10148 | M18: INE647O01011
A19: ABSLNN50ET | B19: EQ | C19: 244 | D19: 248 | E19: 210 | F19: 235 | G19: 235 | H19: 244 | I19: 56 | J19: 12779.4 | K19: 2020-04-08 | L19: 13 | M19: INF209KB1B87
A20: ACC | B20: EQ | C20: 1000 | D20: 1029.9 | E20: 941.25 | F20: 956.05 | G20: 958 | H20: 1009.95 | I20: 2153627 | J20: 2101320389 | K20: 2020-04-08 | L20: 79728 | M20: INE012A01025
A21: ACCELYA | B21: EQ | C21: 874.3 | D21: 886 | E21: 862 | F21: 880.45 | G21: 879.95 | H21: 874.3 | I21: 10865 | J21: 9557704.55 | K21: 2020-04-08 | L21: 923 | M21: INE793A01012
A22: ACE | B22: EQ | C22: 32.75 | D22: 35.2 | E22: 32.55 | F22: 33.25 | G22: 33.35 | H22: 32.95 | I22: 244708 | J22: 8296578.4 | K22: 2020-04-08 | L22: 2925 | M22: INE731H01025
A23: ADANIENT | B23: EQ | C23: 136.85 | D23: 147.15 | E23: 134.9 | F23: 138.1 | G23: 137.5 | H23: 138.15 | I23: 3237290 | J23: 456492273.1 | K23: 2020-04-08 | L23: 23696 | M23: INE423A01024
A24: ADANIGAS | B24: EQ | C24: 93.9 | D24: 96.35 | E24: 90.5 | F24: 90.8 | G24: 90.65 | H24: 94 | I24: 1888606 | J24: 176837924.4 | K24: 2020-04-08 | L24: 14517 | M24: INE399L01023
A25: ADANIGREEN | B25: EQ | C25: 166.85 | D25: 166.85 | E25: 162 | F25: 166.45 | G25: 166.85 | H25: 158.95 | I25: 702014 | J25: 116248737 | K25: 2020-04-08 | L25: 10187 | M25: INE364U01010
A26: ADANIPORTS | B26: EQ | C26: 248 | D26: 255.85 | E26: 242.75 | F26: 250.85 | G26: 249.7 | H26: 248.1 | I26: 6897883 | J26: 1724830525 | K26: 2020-04-08 | L26: 81499 | M26: INE742F01042
A27: ADANIPOWER | B27: EQ | C27: 28.65 | D27: 31.15 | E27: 27.5 | F27: 28.95 | G27: 28.85 | H27: 28.8 | I27: 12308064 | J27: 361987996.9 | K27: 2020-04-08 | L27: 23153 | M27: INE814H01011
A28: ADANITRANS | B28: EQ | C28: 196.65 | D28: 202 | E28: 190 | F28: 193.65 | G28: 193.5 | H28: 198.3 | I28: 306320 | J28: 59783940.3 | K28: 2020-04-08 | L28: 4236 | M28: INE931S01010
A29: ADFFOODS | B29: EQ | C29: 187.85 | D29: 192.25 | E29: 184 | F29: 187.7 | G29: 187.3 | H29: 183.1 | I29: 22107 | J29: 4185556.05 | K29: 2020-04-08 | L29: 773 | M29: INE982B01019
A30: ADHUNIKIND | B30: EQ | C30: 13.3 | D30: 13.3 | E30: 13.3 | F30: 13.3 | G30: 13.3 | H30: 12.7 | I30: 5518 | J30: 73389.4 | K30: 2020-04-08 | L30: 21 | M30: INE452L01012
A31: ADLABS | B31: EQ | C31: 2.75 | D31: 2.85 | E31: 2.75 | F31: 2.85 | G31: 2.85 | H31: 2.75 | I31: 19360 | J31: 54965.35 | K31: 2020-04-08 | L31: 72 | M31: INE172N01012
A32: ADORWELD | B32: EQ | C32: 195.7 | D32: 201.9 | E32: 193.95 | F32: 195.1 | G32: 194.45 | H32: 196.75 | I32: 1438 | J32: 283768.75 | K32: 2020-04-08 | L32: 94 | M32: INE045A01017
A33: ADROITINFO | B33: EQ | C33: 5.5 | D33: 5.7 | E33: 5.45 | F33: 5.7 | G33: 5.7 | H33: 5.7 | I33: 691 | J33: 3857 | K33: 2020-04-08 | L33: 25 | M33: INE737B01033
A34: ADSL | B34: EQ | C34: 13.05 | D34: 13.2 | E34: 12.4 | F34: 12.5 | G34: 12.45 | H34: 12.7 | I34: 16203 | J34: 205559.25 | K34: 2020-04-08 | L34: 143 | M34: INE102I01027
A35: ADVANIHOTR | B35: EQ | C35: 30.1 | D35: 33 | E35: 30.1 | F35: 31.8 | G35: 31.5 | H35: 30.65 | I35: 5340 | J35: 169948.95 | K35: 2020-04-08 | L35: 193 | M35: INE199C01026
A36: ADVENZYMES | B36: EQ | C36: 140.2 | D36: 146.55 | E36: 137.95 | F36: 139.2 | G36: 139.75 | H36: 136.55 | I36: 77441 | J36: 11046136.15 | K36: 2020-04-08 | L36: 1990 | M36: INE837H01020
A37: AEGISCHEM | B37: EQ | C37: 150 | D37: 158.5 | E37: 147.1 | F37: 156.35 | G37: 156.05 | H37: 144.1 | I37: 175470 | J37: 27041093.9 | K37: 2020-04-08 | L37: 4268 | M37: INE208C01025
A38: AFFLE | B38: BE | C38: 1050 | D38: 1053.45 | E38: 1030 | F38: 1053.45 | G38: 1053.45 | H38: 1003.3 | I38: 8191 | J38: 8619737.5 | K38: 2020-04-08 | L38: 470 | M38: INE00WC01019
A39: AGARIND | B39: EQ | C39: 49.8 | D39: 52.85 | E39: 49.05 | F39: 52.25 | G39: 52.5 | H39: 49.95 | I39: 7826 | J39: 404450.25 | K39: 2020-04-08 | L39: 207 | M39: INE204E01012
A40: AGCNET | B40: BE | C40: 224.35 | D40: 235.55 | E40: 213.25 | F40: 234.7 | G40: 235.55 | H40: 224.35 | I40: 2524 | J40: 573063 | K40: 2020-04-08 | L40: 70 | M40: INE676A01019
A41: AGRITECH | B41: EQ | C41: 23.95 | D41: 23.95 | E41: 23.95 | F41: 23.95 | G41: 23.95 | H41: 22.85 | I41: 504 | J41: 12070.8 | K41: 2020-04-08 | L41: 18 | M41: INE449G01018
A42: AGROPHOS | B42: EQ | C42: 5.7 | D42: 5.7 | E42: 5.2 | F42: 5.7 | G42: 5.7 | H42: 5.45 | I42: 40596 | J42: 227201.55 | K42: 2020-04-08 | L42: 340 | M42: INE740V01019
A43: AHLEAST | B43: EQ | C43: 133.15 | D43: 141.85 | E43: 128.15 | F43: 131.55 | G43: 128.35 | H43: 131.5 | I43: 3303 | J43: 439718.1 | K43: 2020-04-08 | L43: 350 | M43: INE926K01017
A44: AHLUCONT | B44: EQ | C44: 145.95 | D44: 148 | E44: 136 | F44: 146.3 | G44: 148 | H44: 144.1 | I44: 153910 | J44: 21077811.2 | K44: 2020-04-08 | L44: 995 | M44: INE758C01029
A45: AHLWEST | B45: EQ | C45: 289.9 | D45: 289.9 | E45: 270.95 | F45: 275 | G45: 275 | H45: 277 | I45: 238 | J45: 67030 | K45: 2020-04-08 | L45: 91 | M45: INE915K01010
A46: AIAENG | B46: EQ | C46: 1259.45 | D46: 1291 | E46: 1229 | F46: 1255.85 | G46: 1268 | H46: 1249.9 | I46: 73842 | J46: 92756824.05 | K46: 2020-04-08 | L46: 10503 | M46: INE212H01026
A47: AIONJSW | B47: EQ | C47: 10.9 | D47: 11.1 | E47: 10.2 | F47: 11.1 | G47: 11.1 | H47: 10.6 | I47: 90347 | J47: 996144.95 | K47: 2020-04-08 | L47: 180 | M47: INE743C01021
A48: AIRAN | B48: EQ | C48: 9.8 | D48: 10.3 | E48: 9.75 | F48: 9.8 | G48: 9.75 | H48: 9.85 | I48: 1826 | J48: 18127.1 | K48: 2020-04-08 | L48: 25 | M48: INE645W01026
A49: AJANTPHARM | B49: EQ | C49: 1325.75 | D49: 1450 | E49: 1325 | F49: 1367.5 | G49: 1363 | H49: 1340.2 | I49: 166582 | J49: 233126032.5 | K49: 2020-04-08 | L49: 8748 | M49: INE031B01049
A50: AJMERA | B50: EQ | C50: 64.95 | D50: 70.5 | E50: 64.6 | F50: 68.4 | G50: 69.9 | H50: 64.65 | I50: 31766 | J50: 2167947.5 | K50: 2020-04-08 | L50: 909 | M50: INE298G01027
A51: AKASH | B51: BE | C51: 90 | D51: 90 | E51: 90 | F51: 90 | G51: 90 | H51: 90.95 | I51: 500 | J51: 45000 | K51: 2020-04-08 | L51: 1 | M51: INE737W01013
A52: AKSHARCHEM | B52: EQ | C52: 174.75 | D52: 177.6 | E52: 165.3 | F52: 169.7 | G52: 167.15 | H52: 165.25 | I52: 3130 | J52: 531878.25 | K52: 2020-04-08 | L52: 293 | M52: INE542B01011
A53: AKSHOPTFBR | B53: EQ | C53: 3.6 | D53: 3.6 | E53: 3.6 | F53: 3.6 | G53: 3.6 | H53: 3.45 | I53: 27750 | J53: 99900 | K53: 2020-04-08 | L53: 45 | M53: INE523B01011
A54: AKZOINDIA | B54: EQ | C54: 2084.95 | D54: 2133 | E54: 2030 | F54: 2047.9 | G54: 2040 | H54: 2086.75 | I54: 12835 | J54: 26789836.95 | K54: 2020-04-08 | L54: 2242 | M54: INE133A01011
A55: ALANKIT | B55: EQ | C55: 12.9 | D55: 12.9 | E55: 12.9 | F55: 12.9 | G55: 12.9 | H55: 12.3 | I55: 14247 | J55: 183786.3 | K55: 2020-04-08 | L55: 75 | M55: INE914E01040
A56: ALBERTDAVD | B56: EQ | C56: 338.8 | D56: 364.75 | E56: 338.8 | F56: 353.15 | G56: 352 | H56: 341.15 | I56: 24334 | J56: 8579416.55 | K56: 2020-04-08 | L56: 1220 | M56: INE155C01010
A57: ALCHEM | B57: BE | C57: 1.4 | D57: 1.4 | E57: 1.4 | F57: 1.4 | G57: 1.4 | H57: 1.35 | I57: 8608 | J57: 12051.2 | K57: 2020-04-08 | L57: 18 | M57: INE964B01033
A58: ALEMBICLTD | B58: EQ | C58: 43.7 | D58: 48.05 | E58: 39.7 | F58: 45.05 | G58: 45.5 | H58: 42.15 | I58: 695128 | J58: 31779132.75 | K58: 2020-04-08 | L58: 6991 | M58: INE426A01027
A59: ALICON | B59: EQ | C59: 195.95 | D59: 196 | E59: 181.05 | F59: 184.75 | G59: 184 | H59: 189.25 | I59: 3909 | J59: 722322.5 | K59: 2020-04-08 | L59: 123 | M59: INE062D01024
A60: ALKALI | B60: EQ | C60: 29.95 | D60: 31.75 | E60: 29.65 | F60: 31.75 | G60: 31.75 | H60: 28.9 | I60: 9346 | J60: 289594.95 | K60: 2020-04-08 | L60: 349 | M60: INE773I01017
A61: ALKEM | B61: EQ | C61: 2360 | D61: 2736.5 | E61: 2326.2 | F61: 2671.15 | G61: 2639 | H61: 2324.05 | I61: 371259 | J61: 967330461.6 | K61: 2020-04-08 | L61: 44106 | M61: INE540L01014
A62: ALKYLAMINE | B62: EQ | C62: 1236.6 | D62: 1398 | E62: 1222.2 | F62: 1334.05 | G62: 1334 | H62: 1232.45 | I62: 41501 | J62: 55061848.25 | K62: 2020-04-08 | L62: 3832 | M62: INE150B01021
A63: ALLCARGO | B63: EQ | C63: 63.05 | D63: 65.85 | E63: 63 | F63: 65.7 | G63: 65.85 | H63: 59.9 | I63: 300794 | J63: 19569467.05 | K63: 2020-04-08 | L63: 3098 | M63: INE418H01029
A64: ALLSEC | B64: EQ | C64: 131.7 | D64: 131.9 | E64: 129.35 | F64: 131.9 | G64: 131.9 | H64: 125.65 | I64: 1335 | J64: 175836.2 | K64: 2020-04-08 | L64: 37 | M64: INE835G01018
A65: ALOKINDS | B65: EQ | C65: 4.7 | D65: 4.7 | E65: 4.7 | F65: 4.7 | G65: 4.7 | H65: 4.5 | I65: 1698707 | J65: 7983922.9 | K65: 2020-04-08 | L65: 397 | M65: INE270A01029
A66: ALPA | B66: EQ | C66: 18.55 | D66: 20.15 | E66: 17.8 | F66: 20.15 | G66: 20.15 | H66: 16.8 | I66: 131233 | J66: 2593665.9 | K66: 2020-04-08 | L66: 858 | M66: INE385I01010
A67: ALPHAGEO | B67: EQ | C67: 126 | D67: 137.5 | E67: 126 | F67: 134.45 | G67: 133.3 | H67: 129.7 | I67: 22258 | J67: 2986986.5 | K67: 2020-04-08 | L67: 783 | M67: INE137C01018
A68: ALPSINDUS | B68: EQ | C68: 0.65 | D68: 0.75 | E68: 0.65 | F68: 0.75 | G68: 0.7 | H68: 0.7 | I68: 25369 | J68: 18108.8 | K68: 2020-04-08 | L68: 33 | M68: INE093B01015
A69: AMARAJABAT | B69: EQ | C69: 501.1 | D69: 513.65 | E69: 488.45 | F69: 502.05 | G69: 504.9 | H69: 501.1 | I69: 755312 | J69: 378881689.9 | K69: 2020-04-08 | L69: 18162 | M69: INE885A01032
A70: AMBER | B70: EQ | C70: 1189.9 | D70: 1199 | E70: 1072 | F70: 1108.05 | G70: 1109.25 | H70: 1189.9 | I70: 93512 | J70: 105805912.2 | K70: 2020-04-08 | L70: 14252 | M70: INE371P01015
A71: AMBIKCO | B71: EQ | C71: 539.25 | D71: 559 | E71: 531.05 | F71: 545.2 | G71: 536.4 | H71: 537.25 | I71: 3988 | J71: 2168349.4 | K71: 2020-04-08 | L71: 406 | M71: INE540G01014
A72: AMBUJACEM | B72: EQ | C72: 158.5 | D72: 159.5 | E72: 148.2 | F72: 149.7 | G72: 149.55 | H72: 159 | I72: 10421438 | J72: 1597618498 | K72: 2020-04-08 | L72: 84074 | M72: INE079A01024
A73: AMDIND | B73: EQ | C73: 9.9 | D73: 10.5 | E73: 9.5 | F73: 9.8 | G73: 9.55 | H73: 10 | I73: 17757 | J73: 177659.15 | K73: 2020-04-08 | L73: 707 | M73: INE005I01014
A74: AMJLAND | B74: EQ | C74: 14.3 | D74: 14.95 | E74: 13.7 | F74: 14 | G74: 14 | H74: 14.25 | I74: 12523 | J74: 176065.3 | K74: 2020-04-08 | L74: 106 | M74: INE606A01024
A75: AMRUTANJAN | B75: EQ | C75: 326 | D75: 352 | E75: 320.1 | F75: 345.45 | G75: 344.3 | H75: 324 | I75: 278725 | J75: 95586275.35 | K75: 2020-04-08 | L75: 9075 | M75: INE098F01031
A76: ANANTRAJ | B76: EQ | C76: 19.55 | D76: 20.15 | E76: 18.6 | F76: 18.75 | G76: 18.8 | H76: 19.55 | I76: 184694 | J76: 3509270.8 | K76: 2020-04-08 | L76: 1012 | M76: INE242C01024
A77: ANDHRACEMT | B77: EQ | C77: 1.8 | D77: 1.9 | E77: 1.7 | F77: 1.85 | G77: 1.9 | H77: 1.75 | I77: 105618 | J77: 196578.05 | K77: 2020-04-08 | L77: 227 | M77: INE666E01012
A78: ANDHRAPAP | B78: EQ | C78: 148.55 | D78: 148.55 | E78: 147 | F78: 148.55 | G78: 148.55 | H78: 141.5 | I78: 2622 | J78: 389210.05 | K78: 2020-04-08 | L78: 70 | M78: INE435A01028
A79: ANDHRSUGAR | B79: EQ | C79: 206.95 | D79: 212 | E79: 195 | F79: 206.05 | G79: 205.85 | H79: 203.55 | I79: 35494 | J79: 7286675.25 | K79: 2020-04-08 | L79: 1328 | M79: INE715B01013
A80: ANIKINDS | B80: EQ | C80: 7.25 | D80: 7.25 | E80: 6.65 | F80: 6.8 | G80: 6.8 | H80: 6.95 | I80: 4994 | J80: 34701.65 | K80: 2020-04-08 | L80: 35 | M80: INE087B01017
A81: ANKITMETAL | B81: EQ | C81: 0.4 | D81: 0.45 | E81: 0.35 | F81: 0.45 | G81: 0.45 | H81: 0.4 | I81: 64810 | J81: 27213.05 | K81: 2020-04-08 | L81: 29 | M81: INE106I01010
A82: ANSALAPI | B82: EQ | C82: 3.65 | D82: 3.8 | E82: 3.65 | F82: 3.8 | G82: 3.8 | H82: 3.65 | I82: 3974 | J82: 15023.75 | K82: 2020-04-08 | L82: 28 | M82: INE436A01026
A83: ANSALHSG | B83: EQ | C83: 3 | D83: 3 | E83: 2.8 | F83: 2.9 | G83: 2.9 | H83: 2.9 | I83: 31510 | J83: 91846.6 | K83: 2020-04-08 | L83: 64 | M83: INE880B01015
A84: ANUP | B84: EQ | C84: 304.75 | D84: 323.7 | E84: 303.1 | F84: 313.2 | G84: 313.05 | H84: 312.75 | I84: 11786 | J84: 3732090.6 | K84: 2020-04-08 | L84: 460 | M84: INE294Z01018
A85: APARINDS | B85: EQ | C85: 296.95 | D85: 300.35 | E85: 290.6 | F85: 295.85 | G85: 295.5 | H85: 296.05 | I85: 6051 | J85: 1806443.45 | K85: 2020-04-08 | L85: 427 | M85: INE372A01015
A86: APCL | B86: EQ | C86: 102.4 | D86: 102.4 | E86: 95.2 | F86: 97.35 | G86: 97 | H86: 98.5 | I86: 3739 | J86: 362867.6 | K86: 2020-04-08 | L86: 79 | M86: INE071F01012
A87: APCOTEXIND | B87: EQ | C87: 87.55 | D87: 94.85 | E87: 86 | F87: 87.5 | G87: 86.1 | H87: 87.45 | I87: 13115 | J87: 1175575.25 | K87: 2020-04-08 | L87: 323 | M87: INE116A01032
A88: APEX | B88: EQ | C88: 190 | D88: 201.65 | E88: 185.1 | F88: 201.65 | G88: 201.65 | H88: 183.35 | I88: 141806 | J88: 27768799.35 | K88: 2020-04-08 | L88: 3293 | M88: INE346W01013
A89: APLAPOLLO | B89: EQ | C89: 1245 | D89: 1274 | E89: 1220 | F89: 1259.5 | G89: 1258 | H89: 1231.75 | I89: 21152 | J89: 26442272.1 | K89: 2020-04-08 | L89: 3032 | M89: INE702C01019
A90: APLLTD | B90: EQ | C90: 630 | D90: 702.65 | E90: 615.5 | F90: 640.85 | G90: 626 | H90: 610.2 | I90: 540272 | J90: 353935242.1 | K90: 2020-04-08 | L90: 30323 | M90: INE901L01018
A91: APOLLO | B91: EQ | C91: 45.5 | D91: 56 | E91: 45.25 | F91: 54.3 | G91: 53.55 | H91: 46.7 | I91: 68951 | J91: 3631629.4 | K91: 2020-04-08 | L91: 1694 | M91: INE713T01010
A92: APOLLOHOSP | B92: EQ | C92: 1225.9 | D92: 1338.4 | E92: 1211 | F92: 1263.95 | G92: 1261 | H92: 1225.95 | I92: 2070270 | J92: 2654141027 | K92: 2020-04-08 | L92: 156926 | M92: INE437A01024
A93: APOLLOPIPE | B93: EQ | C93: 279.5 | D93: 304 | E93: 262.95 | F93: 281.3 | G93: 281 | H93: 280.1 | I93: 12940 | J93: 3607793.25 | K93: 2020-04-08 | L93: 543 | M93: INE126J01016
A94: APOLLOTYRE | B94: EQ | C94: 83.5 | D94: 87.15 | E94: 82 | F94: 83.4 | G94: 83.15 | H94: 83.5 | I94: 2950752 | J94: 248872037.1 | K94: 2020-04-08 | L94: 19408 | M94: INE438A01022
A95: APOLSINHOT | B95: EQ | C95: 460.35 | D95: 460.4 | E95: 421.1 | F95: 439.8 | G95: 436 | H95: 438.6 | I95: 694 | J95: 306874.65 | K95: 2020-04-08 | L95: 84 | M95: INE451F01024
A96: APTECHT | B96: EQ | C96: 85.3 | D96: 87.7 | E96: 83.55 | F96: 84.6 | G96: 84.3 | H96: 85.3 | I96: 106721 | J96: 9133416.7 | K96: 2020-04-08 | L96: 2385 | M96: INE266F01018
A97: ARCHIDPLY | B97: EQ | C97: 16.55 | D97: 17 | E97: 16.45 | F97: 16.85 | G97: 16.95 | H97: 16.75 | I97: 4083 | J97: 68300.2 | K97: 2020-04-08 | L97: 63 | M97: INE877I01016
A98: ARCHIES | B98: EQ | C98: 9.4 | D98: 9.5 | E98: 9 | F98: 9.05 | G98: 9.15 | H98: 9.45 | I98: 24343 | J98: 224667.6 | K98: 2020-04-08 | L98: 150 | M98: INE731A01020
A99: ARCOTECH | B99: EQ | C99: 0.9 | D99: 0.95 | E99: 0.85 | F99: 0.9 | G99: 0.9 | H99: 0.9 | I99: 51482 | J99: 47500.05 | K99: 2020-04-08 | L99: 77 | M99: INE574I01035
A100: ARENTERP | B100: EQ | C100: 12.65 | D100: 12.65 | E100: 12.05 | F100: 12.05 | G100: 12.05 | H100: 12.65 | I100: 63 | J100: 765.15 | K100: 2020-04-08 | L100: 4 | M100: INE610C01014
A101: ARIES | B101: EQ | C101: 44.4 | D101: 47.6 | E101: 42.65 | F101: 43.6 | G101: 44 | H101: 44.4 | I101: 50875 | J101: 2250478.25 | K101: 2020-04-08 | L101: 1080 | M101: INE298I01015
A102: ARIHANT | B102: EQ | C102: 12.05 | D102: 12.55 | E102: 11.6 | F102: 12.15 | G102: 12.5 | H102: 12.05 | I102: 964 | J102: 11418.15 | K102: 2020-04-08 | L102: 27 | M102: INE413D01011
A103: ARIHANTSUP | B103: EQ | C103: 21.4 | D103: 21.45 | E103: 19.45 | F103: 19.5 | G103: 21 | H103: 20.45 | I103: 4362 | J103: 85414.05 | K103: 2020-04-08 | L103: 80 | M103: INE643K01018
A104: ARMANFIN | B104: EQ | C104: 340 | D104: 373.2 | E104: 337.7 | F104: 373.05 | G104: 373.2 | H104: 355.45 | I104: 50867 | J104: 18465582.65 | K104: 2020-04-08 | L104: 911 | M104: INE109C01017
A105: AROGRANITE | B105: EQ | C105: 21.95 | D105: 24.5 | E105: 20.85 | F105: 24.2 | G105: 24.5 | H105: 22.35 | I105: 26052 | J105: 602565.3 | K105: 2020-04-08 | L105: 183 | M105: INE210C01013
A106: ARROWGREEN | B106: BE | C106: 33.55 | D106: 35 | E106: 33.45 | F106: 33.45 | G106: 33.45 | H106: 33.85 | I106: 5735 | J106: 195198.5 | K106: 2020-04-08 | L106: 32 | M106: INE570D01018
A107: ARSHIYA | B107: EQ | C107: 7.1 | D107: 7.6 | E107: 7.1 | F107: 7.6 | G107: 7.6 | H107: 7.25 | I107: 23178 | J107: 175819.45 | K107: 2020-04-08 | L107: 63 | M107: INE968D01022
A108: ARSSINFRA | B108: EQ | C108: 11.25 | D108: 12.3 | E108: 10.9 | F108: 11.8 | G108: 11.85 | H108: 11.15 | I108: 16388 | J108: 189874.85 | K108: 2020-04-08 | L108: 107 | M108: INE267I01010
A109: ARTEMISMED | B109: EQ | C109: 140 | D109: 147 | E109: 136.3 | F109: 138 | G109: 137 | H109: 139.15 | I109: 1729 | J109: 245138.4 | K109: 2020-04-08 | L109: 31 | M109: INE025R01013
A110: ARVIND | B110: EQ | C110: 23.5 | D110: 24.4 | E110: 22.45 | F110: 23.75 | G110: 23.75 | H110: 22.2 | I110: 2137547 | J110: 50521243.45 | K110: 2020-04-08 | L110: 7057 | M110: INE034A01011
A111: ARVINDFASN | B111: EQ | C111: 139.8 | D111: 141.9 | E111: 132.2 | F111: 133.8 | G111: 134.75 | H111: 139.85 | I111: 46445 | J111: 6387304.5 | K111: 2020-04-08 | L111: 1243 | M111: INE955V01021
A112: ARVSMART | B112: EQ | C112: 64.05 | D112: 67 | E112: 64 | F112: 65.4 | G112: 65.5 | H112: 65 | I112: 10000 | J112: 656036.65 | K112: 2020-04-08 | L112: 320 | M112: INE034S01021
A113: ASAHIINDIA | B113: EQ | C113: 152 | D113: 158 | E113: 147.05 | F113: 155.5 | G113: 152.35 | H113: 153.2 | I113: 5605 | J113: 858978.65 | K113: 2020-04-08 | L113: 218 | M113: INE439A01020
A114: ASAHISONG | B114: EQ | C114: 80.8 | D114: 88.95 | E114: 80.05 | F114: 85.25 | G114: 86 | H114: 80.9 | I114: 8055 | J114: 692533.2 | K114: 2020-04-08 | L114: 314 | M114: INE228I01012
A115: ASAL | B115: EQ | C115: 14.8 | D115: 14.9 | E115: 14.5 | F115: 14.5 | G115: 14.5 | H115: 14.25 | I115: 8037 | J115: 118819.3 | K115: 2020-04-08 | L115: 36 | M115: INE900C01027
A116: ASALCBR | B116: EQ | C116: 164.9 | D116: 175 | E116: 158 | F116: 165.7 | G116: 165 | H116: 162.9 | I116: 31033 | J116: 5116102.05 | K116: 2020-04-08 | L116: 970 | M116: INE073G01016
A117: ASHAPURMIN | B117: EQ | C117: 22.1 | D117: 22.1 | E117: 22.05 | F117: 22.1 | G117: 22.1 | H117: 21.05 | I117: 8770 | J117: 193792 | K117: 2020-04-08 | L117: 43 | M117: INE348A01023
A118: ASHIANA | B118: EQ | C118: 52.9 | D118: 52.9 | E118: 49.1 | F118: 49.95 | G118: 50 | H118: 50 | I118: 69042 | J118: 3480534.3 | K118: 2020-04-08 | L118: 621 | M118: INE365D01021
A119: ASHIMASYN | B119: EQ | C119: 3.9 | D119: 3.9 | E119: 3.9 | F119: 3.9 | G119: 3.9 | H119: 3.55 | I119: 28914 | J119: 112764.6 | K119: 2020-04-08 | L119: 46 | M119: INE440A01010
A120: ASHOKA | B120: EQ | C120: 38.35 | D120: 42.7 | E120: 37.8 | F120: 42.7 | G120: 42.7 | H120: 38.85 | I120: 1577514 | J120: 65134101.3 | K120: 2020-04-08 | L120: 8475 | M120: INE442H01029
A121: ASHOKLEY | B121: EQ | C121: 39.85 | D121: 47.8 | E121: 38.75 | F121: 43.85 | G121: 43.6 | H121: 39.85 | I121: 76817768 | J121: 3355417806 | K121: 2020-04-08 | L121: 169889 | M121: INE208A01029
A122: ASIANHOTNR | B122: EQ | C122: 70 | D122: 71.8 | E122: 66 | F122: 71.55 | G122: 71.5 | H122: 65.4 | I122: 4982 | J122: 349215.55 | K122: 2020-04-08 | L122: 198 | M122: INE363A01022
A123: ASIANPAINT | B123: EQ | C123: 1623.8 | D123: 1687.8 | E123: 1600 | F123: 1608.95 | G123: 1608 | H123: 1623.8 | I123: 2382216 | J123: 3911658954 | K123: 2020-04-08 | L123: 101146 | M123: INE021A01026
A124: ASIANTILES | B124: EQ | C124: 156 | D124: 162.9 | E124: 155 | F124: 157.6 | G124: 156.5 | H124: 157.65 | I124: 19917 | J124: 3151924.4 | K124: 2020-04-08 | L124: 431 | M124: INE022I01019
A125: ASPINWALL | B125: EQ | C125: 93 | D125: 98.7 | E125: 83.55 | F125: 93 | G125: 93 | H125: 90 | I125: 413 | J125: 38837.15 | K125: 2020-04-08 | L125: 20 | M125: INE991I01015
A126: ASTEC | B126: EQ | C126: 450.65 | D126: 465.05 | E126: 440 | F126: 460.05 | G126: 460.3 | H126: 443.9 | I126: 5283 | J126: 2392645.5 | K126: 2020-04-08 | L126: 494 | M126: INE563J01010
A127: ASTERDM | B127: EQ | C127: 96 | D127: 103.5 | E127: 93.8 | F127: 99.25 | G127: 99 | H127: 94.55 | I127: 996205 | J127: 98978623.7 | K127: 2020-04-08 | L127: 4570 | M127: INE914M01019
A128: ASTRAL | B128: EQ | C128: 962 | D128: 986 | E128: 952 | F128: 955.45 | G128: 954 | H128: 973.85 | I128: 59212 | J128: 57381672.65 | K128: 2020-04-08 | L128: 7623 | M128: INE006I01046
A129: ASTRAMICRO | B129: EQ | C129: 56.9 | D129: 62.55 | E129: 55.85 | F129: 61.7 | G129: 62.55 | H129: 56.9 | I129: 253097 | J129: 15146656.55 | K129: 2020-04-08 | L129: 1961 | M129: INE386C01029
A130: ASTRAZEN | B130: EQ | C130: 2700 | D130: 2830 | E130: 2544 | F130: 2561.6 | G130: 2549 | H130: 2693.65 | I130: 38510 | J130: 104113109 | K130: 2020-04-08 | L130: 6647 | M130: INE203A01020
A131: ASTRON | B131: EQ | C131: 26.15 | D131: 29.9 | E131: 25.3 | F131: 27.5 | G131: 27.8 | H131: 27.65 | I131: 61618 | J131: 1693449.45 | K131: 2020-04-08 | L131: 1743 | M131: INE646X01014
A132: ATFL | B132: EQ | C132: 479.65 | D132: 499 | E132: 475 | F132: 481.55 | G132: 475 | H132: 479.65 | I132: 6104 | J132: 2975754.9 | K132: 2020-04-08 | L132: 411 | M132: INE209A01019
A133: ATLANTA | B133: EQ | C133: 3 | D133: 3.15 | E133: 3 | F133: 3.15 | G133: 3.15 | H133: 3 | I133: 8624 | J133: 26936.35 | K133: 2020-04-08 | L133: 28 | M133: INE285H01022
A134: ATLASCYCLE | B134: BE | C134: 30 | D134: 31.5 | E134: 29.5 | F134: 30.7 | G134: 30.7 | H134: 30 | I134: 2000 | J134: 60118.65 | K134: 2020-04-08 | L134: 42 | M134: INE446A01025
A135: ATNINTER | B135: BE | C135: 0.1 | D135: 0.1 | E135: 0.1 | F135: 0.1 | G135: 0.1 | H135: 0.1 | I135: 12716 | J135: 1271.6 | K135: 2020-04-08 | L135: 5 | M135: INE803A01027
A136: ATUL | B136: EQ | C136: 3930 | D136: 4005 | E136: 3908.35 | F136: 3951.85 | G136: 3954.95 | H136: 3927.1 | I136: 76768 | J136: 304824820.4 | K136: 2020-04-08 | L136: 11635 | M136: INE100A01010
A137: ATULAUTO | B137: EQ | C137: 151.35 | D137: 154.05 | E137: 146.8 | F137: 153.45 | G137: 153.95 | H137: 146.75 | I137: 13699 | J137: 2093863.3 | K137: 2020-04-08 | L137: 810 | M137: INE951D01028
A138: AUBANK | B138: EQ | C138: 461.2 | D138: 490 | E138: 457 | F138: 480.3 | G138: 473 | H138: 478.4 | I138: 1791057 | J138: 837589012.6 | K138: 2020-04-08 | L138: 59410 | M138: INE949L01017
A139: AURIONPRO | B139: EQ | C139: 41.75 | D139: 43.7 | E139: 40 | F139: 42.9 | G139: 42.9 | H139: 40.95 | I139: 8828 | J139: 376649.05 | K139: 2020-04-08 | L139: 213 | M139: INE132H01018
A140: AUROPHARMA | B140: EQ | C140: 432.5 | D140: 476.3 | E140: 426.3 | F140: 438.15 | G140: 438.9 | H140: 445.7 | I140: 13186213 | J140: 5925576015 | K140: 2020-04-08 | L140: 205238 | M140: INE406A01037
A141: AUSOMENT | B141: EQ | C141: 26.1 | D141: 26.1 | E141: 26.1 | F141: 26.1 | G141: 26.1 | H141: 25 | I141: 100 | J141: 2610 | K141: 2020-04-08 | L141: 1 | M141: INE218C01016
A142: AUTOAXLES | B142: EQ | C142: 413 | D142: 423.5 | E142: 398.05 | F142: 413.45 | G142: 416 | H142: 399.3 | I142: 5448 | J142: 2244823.45 | K142: 2020-04-08 | L142: 638 | M142: INE449A01011
A143: AUTOIND | B143: EQ | C143: 11.3 | D143: 11.35 | E143: 11.1 | F143: 11.35 | G143: 11.35 | H143: 10.85 | I143: 9358 | J143: 105383.05 | K143: 2020-04-08 | L143: 68 | M143: INE718H01014
A144: AUTOLITIND | B144: EQ | C144: 13.2 | D144: 14.4 | E144: 13.2 | F144: 13.8 | G144: 13.9 | H144: 13.75 | I144: 4699 | J144: 65525.8 | K144: 2020-04-08 | L144: 68 | M144: INE448A01013
A145: AVADHSUGAR | B145: EQ | C145: 143.55 | D145: 143.55 | E145: 143.55 | F145: 143.55 | G145: 143.55 | H145: 136.75 | I145: 13174 | J145: 1891127.7 | K145: 2020-04-08 | L145: 157 | M145: INE349W01017
A146: AVANTIFEED | B146: EQ | C146: 311 | D146: 341.55 | E146: 310.5 | F146: 341.35 | G146: 341.55 | H146: 310.5 | I146: 748404 | J146: 246839085.1 | K146: 2020-04-08 | L146: 23272 | M146: INE871C01038
A147: AVTNPL | B147: EQ | C147: 25.45 | D147: 27.8 | E147: 24.25 | F147: 27.25 | G147: 27 | H147: 25.05 | I147: 213540 | J147: 5643644.4 | K147: 2020-04-08 | L147: 1601 | M147: INE488D01021
A148: AXISBANK | B148: EQ | C148: 383.75 | D148: 427.7 | E148: 373.5 | F148: 391.35 | G148: 391.4 | H148: 388.85 | I148: 64930772 | J148: 2.575974593e+10 | K148: 2020-04-08 | L148: 769506 | M148: INE238A01034
A149: AXISCADES | B149: EQ | C149: 30.9 | D149: 31.5 | E149: 28.65 | F149: 31.4 | G149: 31.5 | H149: 30 | I149: 39670 | J149: 1232336.75 | K149: 2020-04-08 | L149: 621 | M149: INE555B01013
A150: AXISGOLD | B150: EQ | C150: 3969.9 | D150: 3989 | E150: 3925 | F150: 3973.3 | G150: 3983 | H150: 3919.55 | I150: 701 | J150: 2769851.6 | K150: 2020-04-08 | L150: 206 | M150: INF846K01347
A151: AXISNIFTY | B151: EQ | C151: 1000.01 | D151: 1000.01 | E151: 1000.01 | F151: 1000.01 | G151: 1000.01 | H151: 1007 | I151: 2 | J151: 2000.02 | K151: 2020-04-08 | L151: 1 | M151: INF846K01ZL0
A152: AYMSYNTEX | B152: EQ | C152: 15.5 | D152: 16.8 | E152: 15.5 | F152: 16.5 | G152: 16.5 | H152: 16.1 | I152: 2637 | J152: 43548.55 | K152: 2020-04-08 | L152: 26 | M152: INE193B01039
A153: BAFNAPH | B153: EQ | C153: 16.05 | D153: 16.05 | E153: 16.05 | F153: 16.05 | G153: 16.05 | H153: 15.3 | I153: 272 | J153: 4365.6 | K153: 2020-04-08 | L153: 8 | M153: INE878I01022
A154: BAGFILMS | B154: BE | C154: 1.75 | D154: 1.8 | E154: 1.75 | F154: 1.8 | G154: 1.8 | H154: 1.75 | I154: 3861 | J154: 6912.3 | K154: 2020-04-08 | L154: 20 | M154: INE116D01028
A155: BAJAJ-AUTO | B155: EQ | C155: 2180 | D155: 2383.45 | E155: 2168.55 | F155: 2241.7 | G155: 2260 | H155: 2280.05 | I155: 840875 | J155: 1933266167 | K155: 2020-04-08 | L155: 59866 | M155: INE917I01010
A156: BAJAJCON | B156: EQ | C156: 136 | D156: 148.65 | E156: 135.1 | F156: 137.95 | G156: 138 | H156: 138.15 | I156: 1031633 | J156: 145711259.1 | K156: 2020-04-08 | L156: 26102 | M156: INE933K01021
A157: BAJAJELEC | B157: EQ | C157: 277.3 | D157: 294.5 | E157: 277.3 | F157: 287.8 | G157: 289 | H157: 277.3 | I157: 58251 | J157: 16797537.55 | K157: 2020-04-08 | L157: 3821 | M157: INE193E01025
A158: BAJAJFINSV | B158: EQ | C158: 4575 | D158: 4950 | E158: 4537.8 | F158: 4608.5 | G158: 4604 | H158: 4724.9 | I158: 1113057 | J158: 5259493342 | K158: 2020-04-08 | L158: 158158 | M158: INE918I01018
A159: BAJAJHIND | B159: EQ | C159: 3.05 | D159: 3.05 | E159: 3.05 | F159: 3.05 | G159: 3.05 | H159: 2.95 | I159: 80900 | J159: 246745 | K159: 2020-04-08 | L159: 110 | M159: INE306A01021
A160: BAJAJHLDNG | B160: EQ | C160: 2027.95 | D160: 2073.85 | E160: 1925 | F160: 2024.75 | G160: 2025 | H160: 1978.9 | I160: 25453 | J160: 51363834.45 | K160: 2020-04-08 | L160: 6198 | M160: INE118A01012
A161: BAJFINANCE | B161: EQ | C161: 2184 | D161: 2374 | E161: 2144.15 | F161: 2332.9 | G161: 2329 | H161: 2253.35 | I161: 9109346 | J161: 2.088826331e+10 | K161: 2020-04-08 | L161: 516967 | M161: INE296A01024
A162: BALAJITELE | B162: EQ | C162: 43 | D162: 45 | E162: 40.8 | F162: 41.9 | G162: 42.15 | H162: 43.75 | I162: 194912 | J162: 8414452.4 | K162: 2020-04-08 | L162: 1677 | M162: INE794B01026
A163: BALAMINES | B163: EQ | C163: 277 | D163: 296 | E163: 260.4 | F163: 283.65 | G163: 284.45 | H163: 271.2 | I163: 70594 | J163: 20058887.5 | K163: 2020-04-08 | L163: 2337 | M163: INE050E01027
A164: BALAXI | B164: BE | C164: 82.7 | D164: 82.7 | E164: 75.05 | F164: 79.9 | G164: 79.9 | H164: 79 | I164: 1047 | J164: 78761.9 | K164: 2020-04-08 | L164: 24 | M164: INE618N01014
A165: BALKRISHNA | B165: EQ | C165: 8.6 | D165: 8.8 | E165: 8.35 | F165: 8.8 | G165: 8.8 | H165: 8.4 | I165: 7860 | J165: 67624.35 | K165: 2020-04-08 | L165: 49 | M165: INE875R01011
A166: BALKRISIND | B166: EQ | C166: 822 | D166: 862 | E166: 815 | F166: 821.35 | G166: 818.3 | H166: 823.55 | I166: 444079 | J166: 371870250.3 | K166: 2020-04-08 | L166: 24462 | M166: INE787D01026
A167: BALLARPUR | B167: EQ | C167: 0.4 | D167: 0.4 | E167: 0.3 | F167: 0.35 | G167: 0.35 | H167: 0.35 | I167: 9769871 | J167: 3419941.15 | K167: 2020-04-08 | L167: 514 | M167: INE294A01037
A168: BALMLAWRIE | B168: EQ | C168: 84 | D168: 87.9 | E168: 81 | F168: 84.75 | G168: 85.65 | H168: 85.5 | I168: 202053 | J168: 17357055.25 | K168: 2020-04-08 | L168: 3105 | M168: INE164A01016
A169: BALPHARMA | B169: EQ | C169: 38.9 | D169: 41.7 | E169: 38.9 | F169: 41.7 | G169: 41.7 | H169: 37.95 | I169: 40933 | J169: 1688199.5 | K169: 2020-04-08 | L169: 518 | M169: INE083D01012
A170: BALRAMCHIN | B170: EQ | C170: 123.85 | D170: 126.4 | E170: 123 | F170: 126.4 | G170: 126.4 | H170: 120.4 | I170: 642515 | J170: 80884980.2 | K170: 2020-04-08 | L170: 7125 | M170: INE119A01028
A171: BANARBEADS | B171: EQ | C171: 30.25 | D171: 32.5 | E171: 29.6 | F171: 29.75 | G171: 29.75 | H171: 31.5 | I171: 160 | J171: 4873.85 | K171: 2020-04-08 | L171: 26 | M171: INE655B01011
A172: BANARISUG | B172: EQ | C172: 900 | D172: 925 | E172: 880 | F172: 886.1 | G172: 880 | H172: 893.1 | I172: 410 | J172: 368979.1 | K172: 2020-04-08 | L172: 94 | M172: INE459A01010
A173: BANCOINDIA | B173: EQ | C173: 65.45 | D173: 67.5 | E173: 64.1 | F173: 65.95 | G173: 66 | H173: 65.45 | I173: 40062 | J173: 2654130.6 | K173: 2020-04-08 | L173: 1013 | M173: INE213C01025
A174: BANDHANBNK | B174: EQ | C174: 167.95 | D174: 209.05 | E174: 167.5 | F174: 193.75 | G174: 195.25 | H174: 167.25 | I174: 30692919 | J174: 5833285762 | K174: 2020-04-08 | L174: 332020 | M174: INE545U01014
A175: BANG | B175: EQ | C175: 12.05 | D175: 13.1 | E175: 11.9 | F175: 13.1 | G175: 13.1 | H175: 12.5 | I175: 1590 | J175: 20489 | K175: 2020-04-08 | L175: 31 | M175: INE863I01016
A176: BANKBARODA | B176: EQ | C176: 48 | D176: 51.5 | E176: 47.3 | F176: 48.35 | G176: 48.45 | H176: 48.15 | I176: 27159204 | J176: 1340103716 | K176: 2020-04-08 | L176: 77070 | M176: INE028A01039
A177: BANKBEES | B177: EQ | C177: 190 | D177: 205.4 | E177: 186.06 | F177: 191.28 | G177: 191.4 | H177: 192.12 | I177: 676832 | J177: 131368353.2 | K177: 2020-04-08 | L177: 10023 | M177: INF204KB15I9
A178: BANKINDIA | B178: EQ | C178: 32.7 | D178: 34.75 | E178: 32.5 | F178: 33.35 | G178: 33.25 | H178: 32.95 | I178: 1236627 | J178: 41574499.75 | K178: 2020-04-08 | L178: 6257 | M178: INE084A01016
A179: BANSWRAS | B179: EQ | C179: 77.4 | D179: 77.4 | E179: 70.2 | F179: 71.15 | G179: 70.2 | H179: 73.75 | I179: 22922 | J179: 1667255.55 | K179: 2020-04-08 | L179: 137 | M179: INE629D01012
A180: BASF | B180: EQ | C180: 1154 | D180: 1154 | E180: 1105 | F180: 1119.95 | G180: 1120.5 | H180: 1138.25 | I180: 26139 | J180: 29425244.35 | K180: 2020-04-08 | L180: 2640 | M180: INE373A01013
A181: BASML | B181: EQ | C181: 74.05 | D181: 84 | E181: 74.05 | F181: 80 | G181: 80 | H181: 78.7 | I181: 1648 | J181: 135366.45 | K181: 2020-04-08 | L181: 154 | M181: INE186H01014
A182: BATAINDIA | B182: EQ | C182: 1246.5 | D182: 1339 | E182: 1228 | F182: 1240.05 | G182: 1238.95 | H182: 1246.4 | I182: 1346088 | J182: 1726485633 | K182: 2020-04-08 | L182: 66274 | M182: INE176A01028
A183: BAYERCROP | B183: EQ | C183: 3500 | D183: 3946.6 | E183: 3499.3 | F183: 3818.15 | G183: 3772.15 | H183: 3510 | I183: 32833 | J183: 125437264 | K183: 2020-04-08 | L183: 6737 | M183: INE462A01022
A184: BBL | B184: EQ | C184: 590 | D184: 621.25 | E184: 590 | F184: 613.05 | G184: 621.25 | H184: 589.55 | I184: 9335 | J184: 5684085.45 | K184: 2020-04-08 | L184: 804 | M184: INE464A01028
A185: BBTC | B185: EQ | C185: 810 | D185: 854.3 | E185: 774 | F185: 784.2 | G185: 787.95 | H185: 788.4 | I185: 76612 | J185: 62014517.65 | K185: 2020-04-08 | L185: 5281 | M185: INE050A01025
A186: BCG | B186: EQ | C186: 3.6 | D186: 3.65 | E186: 3.55 | F186: 3.65 | G186: 3.65 | H186: 3.5 | I186: 305718 | J186: 1113234.95 | K186: 2020-04-08 | L186: 149 | M186: INE425B01027
A187: BCP | B187: EQ | C187: 10.75 | D187: 10.75 | E187: 10.5 | F187: 10.75 | G187: 10.75 | H187: 10.25 | I187: 8192 | J187: 87934.6 | K187: 2020-04-08 | L187: 28 | M187: INE905P01028
A188: BDL | B188: EQ | C188: 191 | D188: 229 | E188: 188.2 | F188: 218.2 | G188: 216.4 | H188: 191.4 | I188: 448405 | J188: 97968192.25 | K188: 2020-04-08 | L188: 13672 | M188: INE171Z01018
A189: BEARDSELL | B189: EQ | C189: 6.7 | D189: 7.3 | E189: 6.7 | F189: 7.3 | G189: 7.3 | H189: 7.05 | I189: 1250 | J189: 8417 | K189: 2020-04-08 | L189: 4 | M189: INE520H01022
A190: BEDMUTHA | B190: EQ | C190: 12.8 | D190: 13.05 | E190: 12.45 | F190: 12.45 | G190: 12.45 | H190: 13.1 | I190: 19584 | J190: 245429.15 | K190: 2020-04-08 | L190: 32 | M190: INE844K01012
A191: BEL | B191: EQ | C191: 69 | D191: 71.3 | E191: 65.1 | F191: 66.4 | G191: 66.5 | H191: 69 | I191: 16699885 | J191: 1138705070 | K191: 2020-04-08 | L191: 69587 | M191: INE263A01024
A192: BEML | B192: EQ | C192: 492 | D192: 523.5 | E192: 492 | F192: 503.6 | G192: 503 | H192: 475.95 | I192: 890527 | J192: 458689246.6 | K192: 2020-04-08 | L192: 23670 | M192: INE258A01016
A193: BEPL | B193: EQ | C193: 31 | D193: 32.75 | E193: 30.3 | F193: 31.25 | G193: 31.6 | H193: 30.25 | I193: 333595 | J193: 10578641.1 | K193: 2020-04-08 | L193: 3321 | M193: INE922A01025
A194: BERGEPAINT | B194: EQ | C194: 479.9 | D194: 487.65 | E194: 460 | F194: 463.5 | G194: 462 | H194: 479.2 | I194: 1729062 | J194: 817908730.6 | K194: 2020-04-08 | L194: 32950 | M194: INE463A01038
A195: BFINVEST | B195: EQ | C195: 258 | D195: 268.8 | E195: 244.6 | F195: 246.3 | G195: 248.95 | H195: 257.45 | I195: 4938 | J195: 1236639.95 | K195: 2020-04-08 | L195: 244 | M195: INE878K01010
A196: BFUTILITIE | B196: EQ | C196: 158.35 | D196: 158.35 | E196: 151.05 | F196: 154.05 | G196: 153.7 | H196: 150.85 | I196: 138134 | J196: 21700813.75 | K196: 2020-04-08 | L196: 1649 | M196: INE243D01012
A197: BGRENERGY | B197: EQ | C197: 22.1 | D197: 22.85 | E197: 20.95 | F197: 21.1 | G197: 21.15 | H197: 22.2 | I197: 172282 | J197: 3763089.75 | K197: 2020-04-08 | L197: 1108 | M197: INE661I01014
A198: BHAGERIA | B198: EQ | C198: 85 | D198: 91.05 | E198: 80.65 | F198: 81.6 | G198: 82.3 | H198: 84.2 | I198: 34795 | J198: 2944870.7 | K198: 2020-04-08 | L198: 925 | M198: INE354C01027
A199: BHAGYANGR | B199: EQ | C199: 14.05 | D199: 15.2 | E199: 14 | F199: 14.4 | G199: 14.4 | H199: 14.4 | I199: 1338 | J199: 19622.25 | K199: 2020-04-08 | L199: 50 | M199: INE458B01036
A200: BHAGYAPROP | B200: EQ | C200: 18 | D200: 20 | E200: 18 | F200: 20 | G200: 20 | H200: 19 | I200: 999 | J200: 19011 | K200: 2020-04-08 | L200: 5 | M200: INE363W01018
... 1470 more rows

Sheet Sheet1 (hidden)

Sheet Sheet3 (hidden)

Sheet Sheet4 (hidden)

Sheet Sheet5 (hidden)
